Workbook

Sheet COVER
A1: ="Due to ROE on " -> Due to ROE on | B1: =+'AFR22'!E4 -> 2022-10-14 | I1: ILLINOIS STATE BOARD OF EDUCATION
A2: ="Due to ISBE on " -> Due to ISBE on | B2: =+'AFR22'!F4 -> 2022-11-15 | I2: School Business Services Department
A3: ="SD/JA"&MID('AFR22'!E2,3,2) -> SD/JA22 | I3: 100 North First Street, Springfield, Illinois 62777-0001
I4: 217/785-8779
C5: School District | I5: Illinois School District/Joint Agreement
C6: Joint Agreement | I6: Annual Financial Report *
B7: =IF(AND(B5="",B6=""),"Check School District or Joint Agreement","") -> Check School District or Joint Agreement | I7: ="June 30, "&'AFR22'!E2 -> June 30, 2022
I9: Accounting Basis: | T9: Certified Public Accountant Information
A10: School District/Joint Agreement Information
A11: (See instructions on inside of this page.) | P11: CASH
A12: School District/Joint Agreement Number: | P12: ACCRUAL | T12: Name of Auditing Firm:
A13: =IFERROR(VLOOKUP(A17,'SDJA Listing for cover page'!$B$2:$C$993,2,"false"),"Please select district from drop-down list on line 17.") -> Please select district from drop-down list on line 17.
A14: County Name: | T14: Name of Audit Manager:
A16: Name of School District/Joint Agreement (use drop-down arrow to locate district, RCDT will populate): | M16: School District Lookup Tool | Q16: School District Directory | T16: Address:
A18: Address: | I18: Filing Status: | T18: City: | X18: State: | Z18: Zip Code:
I19: Submit electronic AFR directly to ISBE via IWAS -School District Financial Reports system (for auditor use only)
A20: City: | T20: Phone Number: | X20: Fax Number:
I21: Annual Financial Report (AFR) Instructions
A22: Email Address: | T22: IL License Number (9 digit): | X22: Expiration Date:
J23: =IF(B5="x",IF(AUDITCHECK!D32="AFR form Incomplete.","",IF(AUDITCHECK!D32="Deficit reduction plan is required.","School District must complete a deficit reduction plan in the 2022-2023 Budget",)),"") -> 
A24: Zip Code: | T24: Email Address:
I26: Annual Financial Report Questions 217-785-8779 or finance1@isbe.net
C27: Annual Financial Report
C28: Type of Auditor's Report Issued: | W28: ISBE Use Only
C29: Qualified | F29: Unqualified | I29: Single Audit Questions 217-782-5630 or GATA@isbe.net
C30: Adverse
C31: Disclaimer
C34: Reviewed by District Superintendent/Administrator | M34: Reviewed by Township Treasurer (Cook County only) | V34: Reviewed by Regional Superintendent/Cook ISC
L35: Name of Township:
A37: District Superintendent/Administrator Name (Type or Print): | I37: Township Treasurer Name (type or print) | T37: RegionalSuperintendent/Cook ISC Name (Type or Print):
A39: Email Address: | I39: Email Address: | T39: Email Address:
A41: Telephone: | D41: Fax Number: | I41: Telephone: | P41: Fax Number: | T41: Telephone: | X41: Fax Number:
A43: Signature & Date: | I43: Signature & Date: | T43: Signature & Date:
A45: * This form is based on 23 Illinois Administrative Code 100, Subtitle A, Chapter I, Subchapter C (Part 100). | Q45: This form is based on 23 Illinois Administrative Code, Subtitle A, Chapter I, Subchapter C, Part 100.
A46: ="ISBE Form SD50-35/JA50-60 (05/"&MID('AFR22'!E2,3,2)&"-version"&'AFR22'!F2&")" -> ISBE Form SD50-35/JA50-60 (05/22-version1) | Q46: In some instances, use of open account codes (cells) may not be authorized by statute or administrative rule.
Q47: Each school district or joint agreement is responsible for obtaining the concurring legal opinion and/or other
A48: =VLOOKUP(A17,'SDJA Listing for cover page'!$B$2:$D$993,3,FALSE) ->  | Q48: supporting authorization/documentation, as necessary, to use the applicable account code (cell).

Sheet TOC
A1: TABLE OF CONTENTS
D2: TAB Name | E2: AFR Page No.
A4: Auditor's Questionnaire……………………………...………....…………………………..………....................................................................................................... | D4: Aud Quest | E4: 2
A5: Comments Applicable to the Auditor's Questionnaire……..……..…………………………………………………………………………………………………………………….. | D5: Aud Quest | E5: 2
A6: Financial Profile Information …………………………………………….……………………………………………........................................................................... | D6: FP Info | E6: 3
A7: Estimated Financial Profile Summary…………………………………………………………………………………………………………................................................... | D7: Financial Profile | E7: 4
A8: Basic Financial Statements
B9: Statement of Assets and Liabilities Arising from Cash Transactions/Statement of Position ………………............................................... | D9: Assets-Liab | E9: 5 - 6
B10: Statement of Revenues Received/Revenues, Expenditures Disbursed/Expenditures, Other
B11: Sources (Uses) and Changes in Fund Balances (All Funds)…...……………..……………………................................................................................. | D11: Acct Summary | E11: 7-9
B12: Statements of Revenues Received/Revenues (All Funds)……………………………………………………………….............................................................. | D12: Revenues | E12: 10-15
B13: Statements of Expenditures Disbursed/Expenditures Budget to Actual (All Funds)……………………….................................................... | D13: Expenditures | E13: 16-24
A14: Supplementary Schedules
B15: Schedule of Ad Valorem Tax Receipts…………………………………………………………………………………………………………………………………………………………….. | D15: Tax Sched | E15: 25
B16: Schedule of Short-Term Debt/Long-Term Debt …………………………………………………………............................................................................. | D16: Short-Term Long-Term Debt | E16: 26
B17: Schedule of Restricted Local Tax Levies and Selected Revenue Sources/
B18: Schedule of Tort Immunity Expenditures…………………………………..….……………….……………………..…............................................................. | D18: Rest Tax Levies-Tort Im | E18: 27
B19: CARES CRRSA ARP Schedule……………………………………………………………………….……………............................................................................................. | D19: CARES CRRSA ARP | E19: 28-35
A20: Statistical Section
B21: Schedule of Capital Outlay and Depreciation……………………………………………………………………................................................................. | D21: Cap Outlay Deprec | E21: 36
B22: Estimated Operating Expenditures Per Pupil and Per Capita Tuition Charge Computation………………………………………………………. | D22: PCTC-OEPP | E22: 37-39
B23: Indirect Cost Rate - Contracts paid in Current Year……………………………………………………………………………………………………………………. | D23: Contracts Paid in CY | E23: 40
B24: Indirect Cost Rate - Computation………………………………………………………………………………………………………………………………………………… | D24: ICR Computation | E24: 41
A25: Report on Shared Services or Outsourcing ………………………………………………................................................................................................................ | D25: Shared Outsourced Serv. | E25: 42
A26: Administrative Cost Worksheet……………………………………………………………………….……………............................................................................ | D26: AC | E26: 43
A27: Itemization Schedule…………………………………………………………………………………………………................................................................................. | D27: ITEMIZATION | E27: 44
A28: Reference Page………………………………………………………………………………………………………..................................................................................... | D28: REF | E28: 45
A29: Notes, Opinion Letters, etc……………………………………………………………………………………………………………………………………………………………….. | D29: Opinion-Notes | E29: 46
A30: Deficit Reduction Calculation……………………………………………………………………………………………………………………………………………………………… | D30: Deficit AFR Sum Calc | E30: 47
A31: Audit Checklist/Balancing Schedule……………………………………………………………………………….............................................................................. | D31: AUDITCHECK | E31: Auditcheck
A32: Single Audit and GATA Information……………………………………………………………………………….............................................................................. | D32: Single Audit and GATA Information | E32: ---
A34: INSTRUCTIONS/REQUIREMENTS: For School Districts/Joint Agreements
A39: All School Districts/Joint Agreements must complete this form (Note: joint agreement supplementary/statistical schedules may not be applicable)
A40: This form complies with Part 100 (Requirements for Accounting, Budgeting, Financial Reporting, and Auditing).
A41: 23, Illinois Administrative Code 100, Subtitle A, Chapter I, Subchapter C (Part 100)
A43: 1. | B43: Round all amounts to the nearest dollar. Do not enter cents. (Exception: 9 Month ADA on PCTC OEPP Tab)
A45: 2. | B45: Any errors left unresolved by the Audit Checklist/Balancing Schedule must be explained in the itemization page.
A47: 3. | B47: Be sure to break all links in AFR before submitting to ISBE. If links are not broken, amounts entered have changed when opening the AFR.
A49: 4. | B49: Submit AFR Electronically
B50: • The Annual Financial Reports (AFR) must be submitted directly through the School District Financial Reports system in IWAS by the Auditor (not from the school district)
B51: on before November 15 with the exception of Extension Approvals. (Please see AFR Instructions for complete submission procedures). Note: CD/Disk no longer accepted.
B53: IWAS
B55: • AFR supporting documentation must be embedded as Microsoft Word (.doc), Word Perfect (*.wpd) or Adobe (*.pdf) and inserted within tab "Opinions & Notes".
B56: These documents include: The Audit, Management letter, Opinion letters, Compliance letters, Financial notes etc…. For embedding instructions see
B57: "Opinions & Notes" tab of this form.
B58: Note: In Windows 7 and above, files can be saved in Adobe Acrobat (*.pdf) and embedded even if you do not have the software.
A61: 5. | B61: Submit Paper Copy of AFR with Signatures
B62: a) The auditor must send three paper copies of the AFR form (cover through page 9 at minimum) to the School District with the auditor signature.
B63: Note: School Districts and Regional Superintendents may prefer a complete paper copy in lieu of an electronic file. Please comply with their requests as necessary.
B64: b) Upon receipt, the School District retains one copy for their records, signs, and forwards the remaining two copies to the Regional Superintendent's
B65: office no later than October 15, annually.
B66: c) Upon receipt, the Regional Superintendent's office retains one copy for their records, signs, and forwards the remaining paper copy to ISBE no later
B67: than November 15, annually.
B68: • If the 15th falls on a Saturday, the due date is the Friday before. If the 15th falls on a Sunday, the due date is the Monday after.
B69: • Yellow Book, CPE, and Peer Review requirements must be met if the Auditor issues an opinion stating "Governmental Auditing Standards" were utilized.
B70: Federal Single Audit 2 CFR 200.500
A72: 6. | B72: Requesting an Extension of Time must be submitted in writing via email or letter to the Regional Office of Education (at the discretion of the ROE).
B73: Approval may be provided up to and no later than December 15 annually. After December 15, audits are considered late and out of compliance per Illinois School Code.
A75: 7. | B75: Qualifications of Auditing Firm
B76: • School district/joint Agreement entities must verify the qualifications of the auditing firm by requesting the most current peer review report and the
B77: corresponding acceptance letter from the approved peer review program, for the current peer review period.
B78: • A school district/joint agreement who engages with an auditing firm who is not licensed and qualified will be required to complete a new audit by a qualified
B79: auditing firm at the school district's/joint agreement's expense.

Sheet Aud Quest 2
A2: AUDITOR'S QUESTIONNAIRE
A4: INSTRUCTIONS: If your review and testing of state, local, and federal Programs revealed any of the following statements to be true, then check the box on the left and
A5: attach the appropriate findings/comments.
A7: PART A - FINDINGS
C9: 1 | D9: One or more school board members, administrators, certified school business officials, or other qualifying district employees failed to file economic interested
D10: statements pursuant to the Illinois Government Ethics Act. [5 ILCS 420/4A-101]
C11: 2 | D11: One or more custodians of funds failed to comply with the bonding requirements pursuant to Illinois School Code [105 ILCS 5/8-2;10-20.19;19-6].
C13: 3 | D13: One or more contracts were executed or purchases made contrary to the provisions of the Illinois School Code [105 ILCS 5/10-20.21].
C14: 4 | D14: One or more violations of the Public Funds Deposit Act or the Public Funds Investment Act were noted [30 ILCS 225/1 et. seq. and 30 ILCS 235/1 et. seq.].
C15: 5 | D15: Restricted funds were commingled in the accounting records or used for other than the purpose for which they were restricted.
C16: 6 | D16: One or more short-term loans or short-term debt instruments were executed in non-conformity with the applicable authorizing statute or without statutory Authority.
C18: 7 | D18: One or more long-term loans or long-term debt instruments were executed in non-conformity with the applicable authorizing statute or without statutory Authority.
C20: 8 | D20: Corporate Personal Property Replacement Tax monies were deposited and/or used without first satisfying the lien imposed pursuant to the Illinois State Revenue
D21: Sharing Act [30 ILCS 115/12].
C22: 9 | D22: One or more interfund loans were made in non-conformity with the applicable authorizing statute or without statutory authorization per Illinois School Code [105 ILCS
D23: 5/10-22.33, 20-4 and 20-5].
C24: 10 | D24: One or more interfund loans were outstanding beyond the term provided by statute Illinois School Code [105 ILCS 5/10-22.33, 20-4, 20-5].
C25: 11 | D25: One or more permanent transfers were made in non-conformity with the applicable authorizing statute/regulation or without statutory/regulatory authorization per Illinois
D26: School Code [105 ILCS 5/17-2A].
C27: 12 | D27: Substantial, or systematic misclassification of budgetary items such as, but not limited to, revenues, receipts, expenditures, disbursements or expenses were observed.
C29: 13 | D29: The Chart of Accounts used to define and control budget and accounting records does not conform to the minimum requirements imposed by
D30: ISBE rules pursuant to Illinois School Code [105 ILCS 5/2-3.27; 2-3.28].
C31: 14 | D31: ="At least one of the following forms was filed with ISBE late: The FY"&MID('AFR22'!E2,3,2)-1&" AFR (ISBE FORM 50-35), FY"&MID('AFR22'!E2,3,2)-1&" Annual Statement of Affairs (ISBE Form 50-37) and FY"&MID('AFR22'!E2,3,2) -> At least one of the following forms was filed with ISBE late: The FY21 AFR (ISBE FORM 50-35), FY21 Annual Statement of Affairs (ISBE Form 50-37) and FY22
D32: Budget (ISBE FORM 50-36). Explain in the comments box below in pursuant to Illinois School Code [105 ILCS 5/3-15.1; 5/10-17; 5/17-1].
A35: PART B - FINANCIAL DIFFICULTIES/CERTIFICATION Criteria pursuant to the Illinois School Code [105 ILCS 5/1A-8].
C37: 15 | D37: The district has issued tax anticipation warrants or tax anticipation notes in anticipation of a second year's taxes when warrants or notes in
D38: anticipation of current year taxes are still outstanding, as authorized by Illinois School Code [105 ILCS 5/17-16 or 34-23 through 34-27].
C40: 16 | D40: The district has issued short-term debt against two future revenue sources, such as, but not limited to, tax anticipation warrants and General State Aid
D41: certificates or tax anticipation warrants and revenue anticipation notes.
C42: 17 | D42: The district has issued school or teacher orders for wages as permitted in Illinois School Code [105 ILCS 5/8-16, 32-7.2 and 34-76] or issued funding
D43: bonds for this purpose pursuant to Illinois School Code [105 ILCS 5/8-6; 32-7.2; 34-76; and 19-8].
C44: 18 | D44: The district has for two consecutive years shown an excess of expenditures/other uses over revenues/other sources and beginning fund balances
D45: on its annual financial report for the aggregate totals of the Educational, Operations & Maintenance, Transportation, and Working Cash Funds.
A47: PART C - OTHER ISSUES
C49: 19 | D49: Student Activity Funds, Imprest Funds, or other funds maintained by the district were excluded from the audit.
C50: 20 | D50: Findings, other than those listed in Part A (above), were reported (e.g. student activity findings). These findings may be described extensively in the financial notes.
C51: 21 | D51: Check this box if the district is subject to the Property Tax Extension Limitation Law. | G51: Effective Date: | I51: (Ex: 00/00/0000)
C52: 22 | D52: If the type of Auditor Report designated on the cover page is other than an unqualified opinion and is due to reason(s) other than solely Cash Basis Accounting,
D53: please check and explain the reason(s) in the box below.
A68: PART D - EXPLANATION OF ACCOUNTING PRACTICES FOR LATE MANDATED CATEGORICAL PAYMENTS
D69: (For School Districts who report on an Accrual/Modified Accrual Accounting Basis only)
A71: School districts that report on the accrual/modified accrual basis of accounting must identify where late mandated categorical payments (Acct Codes 3100, 3120, 3500, 3510, 3950)
A72: are recorded. Depending on the accounting procedure these amounts will be used to adjust the Direct Receipts/Revenues in calculation 1 and 2 of the Financial Profile Score.
A73: ="In FY "&'AFR22'!E2&", identify those late payments recorded as Intergovermental Receivables, Other Recievables, or Deferred Revenue & Other Current Liabilities or Direct Receipts/Revenue. " -> In FY 2022, identify those late payments recorded as Intergovermental Receivables, Other Recievables, or Deferred Revenue & Other Current Liabilities or Direct Receipts/Revenue.
A74: Payments should only be listed once.
C75: 24 | D75: Enter the date that the district used to accrue mandated categorical payments | G75: Date:
C77: 25 | D77: For the listed mandated categorical (Revenue Code (3100, 3120, 3500, 3510, 3950) that were vouchered prior to June 30, but not released until after year end
D78: as reported in ISBE Financial Reimbursement Information System (FRIS), enter the amounts that were accrued in the chart below.
A81: Account Name | E81: 3100 | F81: 3120 | G81: 3500 | H81: 3510 | I81: 3950 | J81: Total
A82: Deferred Revenues (490)
A83: Mandated Categoricals Payments (3100, 3120, 3500, 3510, 3950) | J83: =SUM(E83:I83) -> 0
A85: Direct Receipts/Revenue
A86: Mandated Categoricals Payments (3100, 3120, 3500, 3510, 3950) | J86: =SUM(E86:I86) -> 0
A88: Total | J88: =SUM(J83:J87) -> 0
B90: • Revenue Code (3100-Sp Ed Private Facilities, 3120-Sp Ed Regular Orphanage Individual, 3500-Regular/Vocational Transportation,
C91: 3510-Sp Ed Transportation, 3950-Regular Orphans & Foster Children)
A92: PART E - QUALIFICATIONS OF AUDITING FIRM
B93: • School district/joint Agreement entities must verify the qualifications of the auditing firm by requesting the most current peer review report and the corresponding acceptance
B94: letter from the approved peer review program for the current peer review.
B95: • A school district/joint agreement who engages with an auditing firm who is not licensed and qualified will be required to complete a new audit by a qualified auditing firm
B96: at the school district's/joint agreement's expense.
B99: Comments Applicable to the Auditor's Questionnaire:
D113: Name of Audit Firm (print)
C115: The undersigned affirms that this audit was conducted by a qualified auditing firm and in accordance with the applicable standards [23 Illinois Administrative Code Part 100] and the scope of the audit conformed to the requirements of subsection (a) or (b) of 23 Illinois Administrative Code Part 100 Section 110, as applicable.
D117: Signature | F117: mm/dd/yyyy
B119: Note: A PDF (of the Audit Questionnaire) with signature is acceptable for this page. Enter the location on signature line e.g. PDF in Opinion Page with signature

Sheet FP Info 3
A1: FINANCIAL PROFILE INFORMATION
A3: Required to be completed for school districts only.
A5: A. | B5: Tax Rates (Enter the tax rate - ex: .0150 for $1.50)
D7: ="Tax Year "&'AFR22'!E2-1 -> Tax Year 2021 | F7: Equalized Assessed Valuation (EAV):
D9: Educational | F9: Operations & Maintenance | H9: Transportation | J9: Combined Total | L9: Working Cash
A10: Rate(s): | E10: + | G10: + | I10: = | J10: =ROUND(D10+F10+H10,5) -> 0
D11: =IF(SUM(J10)<=0.0999999,"","Enter the Tax Rates by moving the decimal two places to the left.") -> 
D13: A tax rate must be entered in the Educational, Operations and Maintenance, Transportation, and Working Cash boxes above. If the tax rate is zero, enter "0".
A14: B. | B14: Results of Operations *
D16: Receipts/Revenues | F16: Disbursements/ Expenditures | H16: Excess/ (Deficiency) | J16: Fund Balance
D17: =SUM('Acct Summary 7-9'!C8,'Acct Summary 7-9'!D8,'Acct Summary 7-9'!F8,'Acct Summary 7-9'!I8) -> 0 | F17: =SUM('Acct Summary 7-9'!C17,'Acct Summary 7-9'!D17,'Acct Summary 7-9'!F17) -> 0 | H17: =SUM(D17-F17) -> 0 | J17: =SUM('Acct Summary 7-9'!C81,'Acct Summary 7-9'!D81,'Acct Summary 7-9'!F81,'Acct Summary 7-9'!I81) -> 0
B18: * | C18: The numbers shown are the sum of entries on Pages 7 & 8, lines 8, 17, 20, and 81 for the Educational, Operations & Maintenance,
C19: Transportation and Working Cash Funds.
A21: C. | B21: Short-Term Debt **
D22: CPPRT Notes | F22: TAWs | H22: TANs | J22: TO/EMP. Orders | L22: EBF/GSA Certificates
D23: ='Short-Term Long-Term Debt 26'!F4 -> 0 | E23: + | F23: ='Short-Term Long-Term Debt 26'!F15 -> 0 | G23: + | H23: ='Short-Term Long-Term Debt 26'!F21 -> 0 | I23: + | J23: ='Short-Term Long-Term Debt 26'!F23 -> 0 | K23: + | L23: ='Short-Term Long-Term Debt 26'!F25 -> 0 | M23: +
D24: Other | F24: Total
D25: ='Short-Term Long-Term Debt 26'!F27 -> 0 | E25: = | F25: =SUM(D23,F23,H23,J23,L23, D25) -> 0
B26: ** | C26: The numbers shown are the sum of entries on page 26.
A29: D. | B29: Long-Term Debt
B30: Check the applicable box for long-term debt allowance by type of district.
C32: a. | D32: 6.9% for elementary and high school districts, | H32: =IF(B32="X",(J7*0.069),IF(B33="X",(J7*0.138),"Enter x in a.or b.")) -> Enter x in a.or b.
C33: b. | D33: 13.8% for unit districts.
B35: Long-Term Debt Outstanding:
C37: c. | D37: Long-Term Debt (Principal only) | G37: Acct
D38: Outstanding:……….....…………….... | G38: 511 | H38: ='Assets-Liab 5-6'!N36 -> 0
A41: E. | B41: Material Impact on Financial Position
B42: If applicable, check any of the following items that may have a material impact on the entity's financial position during future reporting periods.
B43: Attach sheets as needed explaining each item checked.
C45: Pending Litigation
C46: Material Decrease in EAV
C47: Material Increase/Decrease in Enrollment
C48: Adverse Arbitration Ruling
C49: Passage of Referendum
C50: Taxes Filed Under Protest
C51: Decisions By Local Board of Review or Illinois Property Tax Appeal Board (PTAB)
C52: Other Ongoing Concerns (Describe & Itemize)
B54: Comments:

Sheet Fin Profile 4
A2: ESTIMATED FINANCIAL PROFILE SUMMARY
A3: Financial Profile Website
C7: District Name: | D7: =COVER!A17 -> 0
C8: District Code: | D8: =COVER!A13 -> Please select district from drop-down list on line 17.
C9: County Name: | D9: =COVER!A15 -> 0
B11: 1. | C11: Fund Balance to Revenue Ratio: | H11: Total | K11: Ratio | M11: Score | O11: =IF(K12>0.24999,"4",IF(K12>0.09999,"3",IF(K12>=0,"2",1))) -> 
C12: Total Sum of Fund Balance (P8, Cells C81, D81, F81 & I81) | F12: Funds 10, 20, 40, 70 + (50 & 80 if negative) | H12: =SUM('Acct Summary 7-9'!C81+'Acct Summary 7-9'!D81+'Acct Summary 7-9'!F81+'Acct Summary 7-9'!I81+IF('Acct Summary 7-9'!G81<0,'Acct Summary 7-9'!G81,"0")+IF('Acct Summary 7-9'!J81<0,'Acct Summary 7-9'!J81,"0")) -> 0 | K12: =TRUNC((H12/H13*100000),5)/100000 ->  | M12: Weight | O12: 0.35
C13: Total Sum of Direct Revenues (P7, Cell C8, D8, F8 & I8) | F13: Funds 10, 20, 40, & 70, | H13: =SUM('Acct Summary 7-9'!C8+'Acct Summary 7-9'!D8+'Acct Summary 7-9'!F8+'Acct Summary 7-9'!I8)+H14 -> 0 | M13: Value | O13: =(O11*O12) -> 
C14: Less: Operating Debt Pledged to Other Funds (P8, Cell C54 thru D74) | F14: Minus Funds 10 & 20 | H14: =-SUM('Acct Summary 7-9'!C54:D56,'Acct Summary 7-9'!C58:D60,'Acct Summary 7-9'!C62:D64,'Acct Summary 7-9'!C66:D68,'Acct Summary 7-9'!C70:D72,'Acct Summary 7-9'!C74:D74) -> 0
C15: (Excluding C:D57, C:D61, C:D65, C:D69 and C:D73)
B16: 2. | C16: Expenditures to Revenue Ratio: | H16: Total | K16: Ratio | M16: Score | O16: =IF(K17>1.2,"1",IF(K17>1.1,"2",IF(K17>1,"3",4))) -> 
C17: Total Sum of Direct Expenditures (P7, Cell C17, D17, F17, I17) | F17: Funds 10, 20 & 40 | H17: =SUM('Acct Summary 7-9'!C17+'Acct Summary 7-9'!D17+'Acct Summary 7-9'!F17) -> 0 | K17: =TRUNC((H17/H18*100000),5)/100000 ->  | M17: Adjustment | O17: =IF(AND(O16="2", J20 > 2),"1",IF(AND(O16 = "1", J20 > 2),"2",IF(AND(O16="1", J20 >1),"1","0"))) -> 
C18: Total Sum of Direct Revenues (P7, Cell C8, D8, F8, & I8) | F18: Funds 10, 20, 40 & 70, | H18: =SUM('Acct Summary 7-9'!C8+'Acct Summary 7-9'!D8+'Acct Summary 7-9'!F8+'Acct Summary 7-9'!I8)+H19 -> 0 | M18: Weight | O18: 0.35
C19: Less: Operating Debt Pledged to Other Funds (P8, Cell C54 thru D74) | F19: Minus Funds 10 & 20 | H19: =-SUM('Acct Summary 7-9'!C54:D56,'Acct Summary 7-9'!C58:D60,'Acct Summary 7-9'!C62:D64,'Acct Summary 7-9'!C66:D68,'Acct Summary 7-9'!C70:D72,'Acct Summary 7-9'!C74:D74) -> 0
C20: (Excluding C:D57, C:D61, C:D65, C:D69 and C:D73) | J20: =IF(K17<=1,"0",TRUNC(((K12-0.1)/(K17-1)*100),5)/100) ->  | K20: =IF(K17<=1,"0",IF(AND(O16="2", J20 > 2),TRUNC(((K12-0.1)/(K17-1)*100),5)/100,IF(AND(O16 = "1", J20 > 2),TRUNC(((K12-0.1)/(K17-1)*100),5)/100,IF(AND(O16="1", J20 >1),TRUNC(((K12-0.1)/(K17-1)*100),5)/100,"")))) ->  | M20: Value | O20: =(O16+O17)*O18 -> 
C21: Possible Adjustment:
B23: 3. | C23: Days Cash on Hand: | H23: Total | K23: Days | M23: Score | O23: =IF(K24>=180,"4",IF(K24>=90,"3",IF(K24>=30,"2",1))) -> 
C24: Total Sum of Cash & Investments (P5, Cell C4, D4, F4, I4 & C5, D5, F5 & I5) | F24: Funds 10, 20 40 & 70 | H24: =SUM('Assets-Liab 5-6'!C4+'Assets-Liab 5-6'!D4+'Assets-Liab 5-6'!F4+'Assets-Liab 5-6'!I4+'Assets-Liab 5-6'!C5+'Assets-Liab 5-6'!D5+'Assets-Liab 5-6'!F5+'Assets-Liab 5-6'!I5) -> 0 | K24: =TRUNC(((H24/H25*100000)/100000),2) ->  | M24: Weight | O24: 0.1
C25: Total Sum of Direct Expenditures (P7, Cell C17, D17, F17 & I17) | F25: Funds 10, 20, 40 divided by 360 | H25: =ROUND((H17/360),5) -> 0 | M25: Value | O25: =O23*O24 -> 
B27: 4. Percent of Short-Term Borrowing Maximum Remaining: | H27: Total | K27: Percent | M27: Score | O27: =IF(K28>=75,"4",IF(K28>=50,"3",IF(K28>=25,"2",1))) -> 
C28: Tax Anticipation Warrants Borrowed (P26, Cell F6-7 & F11) | F28: Funds 10, 20 & 40 | H28: =SUM('Short-Term Long-Term Debt 26'!F6,'Short-Term Long-Term Debt 26'!F7,'Short-Term Long-Term Debt 26'!F11) -> 0 | K28: =TRUNC(100-((((H28/H29*100))*100)/100),2) ->  | M28: Weight | O28: 0.1
C29: EAV x 85% x Combined Tax Rates (P3, Cell J7 and J10) | F29: (.85 x EAV) x Sum of Combined Tax Rates | H29: =ROUND((0.85*'FP Info 3'!J7*'FP Info 3'!J10),5) -> 0 | M29: Value | O29: =O27*O28 -> 
B31: 5. Percent of Long-Term Debt Margin Remaining: | H31: Total | K31: Percent | M31: Score | O31: =IF(K32>=75,"4",IF(K32>=50,"3",IF(K32>=25,"2",1))) -> 
C32: Long-Term Debt Outstanding (P3, Cell H38) | H32: ='FP Info 3'!H38 -> 0 | K32: =TRUNC(100-((((H32/H33*100))*100)/100),2) ->  | M32: Weight | O32: 0.1
C33: Total Long-Term Debt Allowed (P3, Cell H32) | H33: =IF('FP Info 3'!H32="Enter X in a or b"," ",'FP Info 3'!H32) -> Enter x in a.or b. | M33: Value | O33: =(O31*O32) -> 
M35: Total Profile Score: | O35: =(O13+O20+O25+O29+O33) ->  | P35: *
M37: ="Estimated "&'AFR22'!E2+1&" Financial Profile Designation:" -> Estimated 2023 Financial Profile Designation: | O37: =IF(O35>3.53,"RECOGNITION",IF(O35>3.07,"REVIEW ",IF(O35>2.61,"WARNING","WATCH"))) -> 
F39: * | H39: Total Profile Score may change based on data provided on the Financial Profile
H40: Information page 3 and by the timing of mandated categorical payments. Final score
H41: will be calculated by ISBE.

Sheet Assets-Liab 5-6
A1: ASSETS (Enter Whole Dollars) | C1: (10) | D1: (20) | E1: (30) | F1: (40) | G1: (50) | H1: (60) | I1: (70) | J1: (80) | K1: (90) | M1: Account Groups
B2: Acct. # | C2: Educational | D2: Operations & Maintenance | E2: Debt Services | F2: Transportation | G2: Municipal Retirement/Social Security | H2: Capital Projects | I2: Working Cash | J2: Tort | K2: Fire Prevention & Safety | L2: Agency Fund | M2: General Fixed Assets | N2: General Long-Term Debt
A3: CURRENT ASSETS (100)
A4: Cash (Accounts 111 through 115) 1
A5: Investments | B5: 120
A6: Taxes Receivable | B6: 130
A7: Interfund Receivables | B7: 140
A8: Intergovernmental Accounts Receivable | B8: 150
A9: Other Receivables | B9: 160
A10: Inventory | B10: 170
A11: Prepaid Items | B11: 180
A12: Other Current Assets (Describe & Itemize) | B12: 190
A13: Total Current Assets | C13: =SUM(C4:C12) -> 0 | D13: =SUM(D4:D12) -> 0 | E13: 0 | F13: 0 | G13: 0 | H13: 0 | I13: 0 | J13: 0 | K13: 0 | L13: 0
A14: CAPITAL ASSETS (200)
A15: Works of Art & Historical Treasures | B15: 210
A16: Land | B16: 220
A17: Building & Building Improvements | B17: 230
A18: Site Improvements & Infrastructure | B18: 240
A19: Capitalized Equipment | B19: 250
A20: Construction in Progress | B20: 260
A21: Amount Available in Debt Service Funds | B21: 340
A22: Amount to be Provided for Payment on Long-Term Debt | B22: 350 | N22: ='Short-Term Long-Term Debt 26'!J49 -> 0
A23: Total Capital Assets | M23: =SUM(M15:M22) -> 0 | N23: =SUM(N21:N22) -> 0
A24: CURRENT LIABILITIES (400)
A25: Interfund Payables | B25: 410
A26: Intergovernmental Accounts Payable | B26: 420
A27: Other Payables | B27: 430
A28: Contracts Payable | B28: 440
A29: Loans Payable | B29: 460
A30: Salaries & Benefits Payable | B30: 470
A31: Payroll Deductions & Withholdings | B31: 480
A32: Deferred Revenues & Other Current Liabilities | B32: 490
A33: Due to Activity Fund Organizations | B33: 493
A34: Total Current Liabilities | C34: =SUM(C25:C33) -> 0 | D34: =SUM(D25:D33) -> 0 | E34: 0 | F34: 0 | G34: 0 | H34: 0 | I34: 0 | J34: 0 | K34: 0 | L34: =SUM(L33) -> 0
A35: LONG-TERM LIABILITIES (500)
A36: Long-Term Debt Payable (General Obligation, Revenue, Other) | B36: 511 | N36: ='Short-Term Long-Term Debt 26'!I49 -> 0
A37: Total Long-Term Liabilities | N37: =SUM(N36:N36) -> 0
A38: Reserved Fund Balance | B38: 714
A39: Unreserved Fund Balance | B39: 730
A40: Investment in General Fixed Assets
A41: Total Liabilities and Fund Balance | C41: =(SUM(C34,C37,C38,C39)) -> 0 | D41: =SUM(D34,D37,D38:D39) -> 0 | E41: 0 | F41: 0 | G41: 0 | H41: 0 | I41: 0 | J41: 0 | K41: 0 | L41: 0 | M41: =SUM(M40) -> 0 | N41: =SUM(N37) -> 0
A43: ASSETS /LIABILITIES for Student Activity Funds
A44: CURRENT ASSETS (100) for Student Activity Funds
A45: Student Activity Fund Cash and Investments | B45: 126
A46: Total Student Activity Current Assets For Student Activity Funds | C46: =C45 -> 0
A47: CURRENT LIABILITIES (400) For Student Activity Funds
A48: Total Current Liabilities For Student Activity Funds
A49: Reserved Student Activity Fund Balance For Student Activity Funds | B49: 715
A50: Total Student Activity Liabilities and Fund Balance For Student Activity Funds | C50: =C48+C49 -> 0
A52: Total ASSETS /LIABILITIES District with Student Activity Funds
A53: Total Current Assets District with Student Activity Funds | C53: =C13+C46 -> 0 | D53: =D13 -> 0 | E53: =E13 -> 0 | F53: 0 | G53: 0 | H53: 0 | I53: 0 | J53: 0 | K53: 0 | L53: 0
A54: Total Capital Assets District with Student Activity Funds | M54: =M23 -> 0 | N54: =N23 -> 0
A55: CURRENT LIABILITIES (400) District with Student Activity Funds
A56: Total Current Liabilities District with Student Activity Funds | C56: =C34+C48 -> 0 | D56: =D34 -> 0 | E56: =E34 -> 0 | F56: 0 | G56: 0 | H56: 0 | I56: 0 | J56: 0 | K56: 0 | L56: 0
A57: LONG-TERM LIABILITIES (500) District with Student Activity Funds
A58: Total Long-Term Liabilities District with Student Activity Funds | N58: =N37 -> 0
A59: Reserved Fund Balance District with Student Activity Funds | B59: 714 | C59: =C38+C49 -> 0 | D59: =D38 -> 0 | E59: =E38 -> 0 | F59: 0 | G59: 0 | H59: 0 | I59: 0 | J59: 0 | K59: 0 | L59: 0
A60: Unreserved Fund Balance District with Student Activity Funds | B60: 730 | C60: =C39 -> 0 | D60: =D39 -> 0 | E60: 0 | F60: 0 | G60: 0 | H60: 0 | I60: 0 | J60: 0 | K60: 0 | L60: 0
A61: Investment in General Fixed Assets District with Student Activity Funds | M61: =M40 -> 0
A62: Total Liabilities and Fund Balance District with Student Activity Funds | C62: =C41+C50 -> 0 | D62: =D41 -> 0 | E62: =E41 -> 0 | F62: 0 | G62: 0 | H62: 0 | I62: 0 | J62: 0 | K62: 0 | L62: 0 | M62: =M41 -> 0 | N62: =N41 -> 0

Sheet Acct Summary 7-9
A1: Description (Enter Whole Dollars) | C1: (10) | D1: (20) | E1: (30) | F1: (40) | G1: (50) | H1: (60) | I1: (70) | J1: (80) | K1: (90)
B2: Acct # | C2: Educational | D2: Operations & Maintenance | E2: Debt Services | F2: Transportation | G2: Municipal Retirement/ Social Security | H2: Capital Projects | I2: Working Cash | J2: Tort | K2: Fire Prevention & Safety
A3: RECEIPTS/REVENUES
A4: LOCAL SOURCES | B4: 1000 | C4: ='Revenues 10-15'!C111 -> 0 | D4: ='Revenues 10-15'!D111 -> 0 | E4: ='Revenues 10-15'!E111 -> 0 | F4: ='Revenues 10-15'!F111 -> 0 | G4: ='Revenues 10-15'!G111 -> 0 | H4: ='Revenues 10-15'!H111 -> 0 | I4: ='Revenues 10-15'!I111 -> 0 | J4: ='Revenues 10-15'!J111 -> 0 | K4: ='Revenues 10-15'!K111 -> 0
A5: FLOW-THROUGH RECEIPTS/REVENUES FROM ONE DISTRICT TO ANOTHER DISTRICT | B5: 2000 | C5: ='Revenues 10-15'!C117 -> 0 | D5: ='Revenues 10-15'!D117 -> 0 | F5: ='Revenues 10-15'!F117 -> 0 | G5: ='Revenues 10-15'!G117 -> 0
A6: STATE SOURCES | B6: 3000 | C6: ='Revenues 10-15'!C172 -> 0 | D6: ='Revenues 10-15'!D172 -> 0 | E6: ='Revenues 10-15'!E172 -> 0 | F6: ='Revenues 10-15'!F172 -> 0 | G6: ='Revenues 10-15'!G172 -> 0 | H6: ='Revenues 10-15'!H172 -> 0 | I6: ='Revenues 10-15'!I172 -> 0 | J6: ='Revenues 10-15'!J172 -> 0 | K6: ='Revenues 10-15'!K172 -> 0
A7: FEDERAL SOURCES | B7: 4000 | C7: ='Revenues 10-15'!C269 -> 0 | D7: ='Revenues 10-15'!D269 -> 0 | E7: ='Revenues 10-15'!E269 -> 0 | F7: ='Revenues 10-15'!F269 -> 0 | G7: ='Revenues 10-15'!G269 -> 0 | H7: ='Revenues 10-15'!H269 -> 0 | I7: ='Revenues 10-15'!I269 -> 0 | J7: ='Revenues 10-15'!J269 -> 0 | K7: ='Revenues 10-15'!K269 -> 0
A8: Total Direct Receipts/Revenues | C8: =SUM(C4:C7) -> 0 | D8: 0 | E8: 0 | F8: 0 | G8: 0 | H8: 0 | I8: 0 | J8: 0 | K8: 0
A9: Receipts/Revenues for "On Behalf" Payments 2 | B9: 3998
A10: Total Receipts/Revenues | C10: =SUM(C8:C9) -> 0 | D10: =SUM(D8:D9) -> 0 | E10: 0 | F10: 0 | G10: 0 | H10: 0 | I10: 0 | J10: 0 | K10: 0
A11: DISBURSEMENTS/EXPENDITURES
A12: Instruction | B12: 1000 | C12: ='Expenditures 16-24'!K34 -> 0 | G12: ='Expenditures 16-24'!K233 -> 0 | J12: ='Expenditures 16-24'!K344 -> 0
A13: Support Services | B13: 2000 | C13: ='Expenditures 16-24'!K76 -> 0 | D13: ='Expenditures 16-24'!K133 -> 0 | F13: ='Expenditures 16-24'!K188 -> 0 | G13: ='Expenditures 16-24'!K276 -> 0 | H13: ='Expenditures 16-24'!K300 -> 0 | J13: ='Expenditures 16-24'!K387 -> 0 | K13: ='Expenditures 16-24'!K439 -> 0
A14: Community Services | B14: 3000 | C14: ='Expenditures 16-24'!K77 -> 0 | D14: ='Expenditures 16-24'!K134 -> 0 | F14: ='Expenditures 16-24'!K189 -> 0 | G14: ='Expenditures 16-24'!K277 -> 0 | J14: ='Expenditures 16-24'!K388 -> 0
A15: Payments to Other Districts & Governmental Units | B15: 4000 | C15: ='Expenditures 16-24'!K104 -> 0 | D15: ='Expenditures 16-24'!K143 -> 0 | E15: ='Expenditures 16-24'!K164 -> 0 | F15: ='Expenditures 16-24'!K200 -> 0 | G15: ='Expenditures 16-24'!K282 -> 0 | H15: ='Expenditures 16-24'!K307 -> 0 | J15: ='Expenditures 16-24'!K415 -> 0 | K15: ='Expenditures 16-24'!K444 -> 0
A16: Debt Service | B16: 5000 | C16: ='Expenditures 16-24'!K114 -> 0 | D16: ='Expenditures 16-24'!K153 -> 0 | E16: ='Expenditures 16-24'!K176 -> 0 | F16: ='Expenditures 16-24'!K212 -> 0 | G16: ='Expenditures 16-24'!K290 -> 0 | J16: ='Expenditures 16-24'!K427 -> 0 | K16: ='Expenditures 16-24'!K452 -> 0
A17: Total Direct Disbursements/Expenditures | C17: =SUM(C12:C16) -> 0 | D17: 0 | E17: 0 | F17: 0 | G17: 0 | H17: =SUM(H12:H16) -> 0 | J17: =SUM(J12:J16) -> 0 | K17: =SUM(K12:K16) -> 0
A18: Disbursements/Expenditures for "On Behalf" Payments 2 | B18: 4180 | C18: =C9 -> 0 | D18: 0 | E18: 0 | F18: 0 | G18: 0 | H18: 0 | J18: =J9 -> 0 | K18: =K9 -> 0
A19: Total Disbursements/Expenditures | C19: =SUM(C17:C18) -> 0 | D19: 0 | E19: 0 | F19: 0 | G19: 0 | H19: 0 | J19: =SUM(J17:J18) -> 0 | K19: =SUM(K17:K18) -> 0
A20: Excess of Direct Receipts/Revenues Over (Under) Direct Disbursements/Expenditures 3 | C20: =C8-C17 -> 0 | D20: 0 | E20: 0 | F20: 0 | G20: 0 | H20: 0 | I20: 0 | J20: 0 | K20: 0
A21: OTHER SOURCES/USES OF FUNDS
A22: OTHER SOURCES OF FUNDS (7000)
A23: PERMANENT TRANSFER FROM VARIOUS FUNDS
A24: Abolishment of the Working Cash Fund 12 | B24: 7110
A25: Abatement of the Working Cash Fund 12 | B25: 7110
A26: Transfer of Working Cash Fund Interest | B26: 7120
A27: Transfer Among Funds | B27: 7130
A28: Transfer of Interest | B28: 7140
A29: Transfer from Capital Project Fund to O&M Fund | B29: 7150
A30: Transfer of Excess Fire Prevention & Safety Tax and Interest Proceeds to O&M Fund 4 | B30: 7160
A31: Transfer to Excess Fire Prevention & Safety Bond and Interest Proceeds to Debt Service Fund 5 | B31: 7170
A32: SALE OF BONDS (7200)
A33: Principal on Bonds Sold | B33: 7210
A34: Premium on Bonds Sold | B34: 7220
A35: Accrued Interest on Bonds Sold | B35: 7230
A36: Sale or Compensation for Fixed Assets 6 | B36: 7300
A37: Transfer to Debt Service to Pay Principal on GASB 87 Leases13 | B37: 7400 | E37: =SUM(C54:D57,H54:H57) -> 0
A38: Transfer to Debt Service to Pay Interest on GASB 87 Leases13 | B38: 7500 | E38: =SUM(C58:D61,H58:H61) -> 0
A39: Transfer to Debt Service to Pay Principal on Revenue Bonds | B39: 7600 | E39: =SUM(C62:D65) -> 0
A40: Transfer to Debt Service Fund to Pay Interest on Revenue Bonds | B40: 7700 | E40: =SUM(C66:D69) -> 0
A41: Transfer to Capital Projects Fund | B41: 7800 | H41: =SUM(C70:D73) -> 0
A42: ISBE Loan Proceeds | B42: 7900
A43: Other Sources Not Classified Elsewhere | B43: 7990
A44: Total Other Sources of Funds | C44: =SUM(C24:C43) -> 0 | D44: =SUM(D24:D43) -> 0 | E44: 0 | F44: 0 | G44: 0 | H44: 0 | I44: 0 | J44: 0 | K44: 0
A45: OTHER USES OF FUNDS (8000)
A46: PERMANENT TRANSFER TO VARIOUS OTHER FUNDS (8100)
A47: Abolishment or Abatement of the Working Cash Fund 12 | B47: 8110 | I47: =SUM(C24,C25:H25,J25:K25) -> 0
A48: Transfer of Working Cash Fund Interest 12 | B48: 8120 | I48: =SUM(C26:H26,J26,K26) -> 0
A49: Transfer Among Funds | B49: 8130
A50: Transfer of Interest | B50: 8140
A51: Transfer from Capital Project Fund to O&M Fund | B51: 8150 | H51: =SUM(D29) -> 0
A52: Transfer of Excess Fire Prevention & Safety Tax & Interest Proceeds to O&M Fund 4 | B52: 8160 | K52: =D30 -> 0
A53: Transfer of Excess Fire Prevention & Safety Bond and Interest Proceeds to Debt Service Fund 5 | B53: 8170 | K53: =E31 -> 0
A54: Taxes Pledged to Pay Principal on GASB 87 Leases13 | B54: 8410
A55: Grants/Reimbursements Pledged to Pay Principal on GASB 87 Leases13 | B55: 8420
A56: Other Revenues Pledged to Pay Principal on GASB 87 Leases13 | B56: 8430
A57: Fund Balance Transfers Pledged to Pay Principal on GASB 87 Leases13 | B57: 8440
A58: Taxes Pledged to Pay Interest on GASB 87 Leases13 | B58: 8510
A59: Grants/Reimbursements Pledged to Pay Interest on GASB 87 Leases13 | B59: 8520
A60: Other Revenues Pledged to Pay Interest on GASB 87 Leases13 | B60: 8530
A61: Fund Balance Transfers Pledged to Pay Interest on GASB 87 Leases13 | B61: 8540
A62: Taxes Pledged to Pay Principal on Revenue Bonds | B62: 8610
A63: Grants/Reimbursements Pledged to Pay Principal on Revenue Bonds | B63: 8620
A64: Other Revenues Pledged to Pay Principal on Revenue Bonds | B64: 8630
A65: Fund Balance Transfers Pledged to Pay Principal on Revenue Bonds | B65: 8640
A66: Taxes Pledged to Pay Interest on Revenue Bonds | B66: 8710
A67: Grants/Reimbursements Pledged to Pay Interest on Revenue Bonds | B67: 8720
A68: Other Revenues Pledged to Pay Interest on Revenue Bonds | B68: 8730
A69: Fund Balance Transfers Pledged to Pay Interest on Revenue Bonds | B69: 8740
A70: Taxes Transferred to Pay for Capital Projects | B70: 8810
A71: Grants/Reimbursements Pledged to Pay for Capital Projects | B71: 8820
A72: Other Revenues Pledged to Pay for Capital Projects | B72: 8830
A73: Fund Balance Transfers Pledged to Pay for Capital Projects | B73: 8840
A74: Transfer to Debt Service Fund to Pay Principal on ISBE Loans | B74: 8910
A75: Other Uses Not Classified Elsewhere | B75: 8990
A76: Total Other Uses of Funds | C76: =SUM(C47:C75) -> 0 | D76: 0 | E76: 0 | F76: 0 | G76: 0 | H76: 0 | I76: 0 | J76: 0 | K76: 0
A77: Total Other Sources/Uses of Funds | C77: =C44-C76 -> 0 | D77: 0 | E77: 0 | F77: 0 | G77: 0 | H77: 0 | I77: 0 | J77: 0 | K77: 0
A78: Excess of Receipts/Revenues and Other Sources of Funds (Over/Under) Expenditures/Disbursements and Other Uses of Funds | C78: =C20+C77 -> 0 | D78: 0 | E78: 0 | F78: 0 | G78: 0 | H78: 0 | I78: 0 | J78: 0 | K78: 0
A79: ="Fund Balances without Student Activity Funds - July 1, "&'AFR22'!E2-1 -> Fund Balances without Student Activity Funds - July 1, 2021
A80: Other Changes in Fund Balances - Increases (Decreases) (Describe & Itemize)
A81: ="Fund Balances without Student Activity Funds - June 30, "&'AFR22'!E2 -> Fund Balances without Student Activity Funds - June 30, 2022 | C81: =(SUM(C78:C80)) -> 0 | D81: =SUM(D78:D80) -> 0 | E81: =SUM(E78:E80) -> 0 | F81: 0 | G81: 0 | H81: 0 | I81: 0 | J81: 0 | K81: 0
A82: Change in Fund Balance FY09 - FY10 | C82: =(C81-C79) -> 0 | D82: =(D81-D79) -> 0 | E82: 0 | F82: 0 | G82: 0 | H82: 0 | I82: 0 | J82: 0 | K82: 0
A83: % Change in Fund Balance FY09 - FY10 | C83: =C82/C81 ->  | D83: =D82/D81 -> 
A85: ="Student Activity Fund Balance - July 1, "&'AFR22'!E2-1&"" -> Student Activity Fund Balance - July 1, 2021
A86: RECEIPTS/REVENUES -Student Activity Funds
A87: Total Student Activity Direct Receipts/Revenues | B87: 1799 | C87: ='Revenues 10-15'!C82 -> 0
A88: DISBURSEMENTS/EXPENDITURES -Students Activity Funds
A89: Total Student Activity Disbursements/Expenditures | B89: 1999 | C89: ='Expenditures 16-24'!H33 -> 0
A90: Excess of Direct Receipts/Revenues Over (Under) Direct Disbursements/Expenditures 3 | C90: =C87-C89 -> 0
A91: ="Student Activity Fund Balance - June 30, "&'AFR22'!E2&"" -> Student Activity Fund Balance - June 30, 2022 | C91: =C85+C90 -> 0
A93: RECEIPTS/REVENUES (with Student Activity Funds)
A94: LOCAL SOURCES | B94: 1000 | C94: =C4+C87 -> 0 | D94: =D4 -> 0 | E94: 0 | F94: 0 | G94: 0 | H94: 0 | I94: 0 | J94: 0 | K94: 0
A95: FLOW-THROUGH RECEIPTS/REVENUES FROM ONE DISTRICT TO ANOTHER DISTRICT | B95: 2000 | C95: =C5 -> 0 | D95: =D5 -> 0 | F95: =F5 -> 0 | G95: =G5 -> 0
A96: STATE SOURCES | B96: 3000 | C96: 0 | D96: =D6 -> 0 | E96: 0 | F96: 0 | G96: 0 | H96: 0 | I96: 0 | J96: 0 | K96: 0
A97: FEDERAL SOURCES | B97: 4000 | C97: 0 | D97: =D7 -> 0 | E97: 0 | F97: 0 | G97: 0 | H97: 0 | I97: 0 | J97: 0 | K97: 0
A98: Total Direct Receipts/Revenues | C98: =SUM(C94:C97) -> 0 | D98: =D8 -> 0 | E98: 0 | F98: 0 | G98: 0 | H98: 0 | I98: 0 | J98: 0 | K98: 0
A99: Receipts/Revenues for "On Behalf" Payments 2 | B99: 3998 | C99: 0 | D99: =D9 -> 0 | E99: 0 | F99: 0 | G99: 0 | H99: 0 | J99: =J9 -> 0 | K99: =K9 -> 0
A100: Total Receipts/Revenues | C100: =SUM(C98:C99) -> 0 | D100: =D10 -> 0 | E100: 0 | F100: 0 | G100: 0 | H100: 0 | I100: 0 | J100: 0 | K100: 0
A101: DISBURSEMENTS/EXPENDITURES (with Student Activity Funds)
A102: Instruction | B102: 1000 | C102: =C12+C89 -> 0 | G102: =G12 -> 0
A103: Support Services | B103: 2000 | C103: =C13 -> 0 | D103: =D13 -> 0 | F103: =F13 -> 0 | G103: =G13 -> 0 | H103: =H13 -> 0 | J103: =J13 -> 0 | K103: =K13 -> 0
A104: Community Services | B104: 3000 | C104: 0 | D104: =D14 -> 0 | F104: =F14 -> 0 | G104: =G14 -> 0
A105: Payments to Other Districts & Governmental Units | B105: 4000 | C105: 0 | D105: =D15 -> 0 | E105: =E15 -> 0 | F105: 0 | G105: 0 | H105: 0 | J105: =J15 -> 0 | K105: 0
A106: Debt Service | B106: 5000 | C106: 0 | D106: =D16 -> 0 | E106: 0 | F106: 0 | G106: 0 | J106: 0 | K106: 0
A107: Total Direct Disbursements/Expenditures | C107: =SUM(C102:C106) -> 0 | D107: =D17 -> 0 | E107: 0 | F107: 0 | G107: 0 | H107: 0 | J107: 0 | K107: 0
A108: Disbursements/Expenditures for "On Behalf" Payments 2 | B108: 4180 | C108: 0 | D108: =D18 -> 0 | E108: 0 | F108: 0 | G108: 0 | H108: 0 | J108: 0 | K108: 0
A109: Total Disbursements/Expenditures | C109: =SUM(C107:C108) -> 0 | D109: =D19 -> 0 | E109: 0 | F109: 0 | G109: 0 | H109: 0 | J109: 0 | K109: 0
A110: Excess of Direct Receipts/Revenues Over (Under) Direct Disbursements/Expenditures 3 | C110: =C98-C107 -> 0 | D110: =D20 -> 0 | E110: 0 | F110: 0 | G110: 0 | H110: 0 | I110: 0 | J110: 0 | K110: 0
A111: OTHER SOURCES/USES OF FUNDS (with Student Activity Funds)
A112: OTHER SOURCES OF FUNDS (7000)
A113: Total Other Sources of Funds | C113: =C44 -> 0 | D113: =D44 -> 0 | E113: 0 | F113: 0 | G113: 0 | H113: 0 | I113: 0 | J113: 0 | K113: 0
A114: OTHER USES OF FUNDS (8000)
A115: Total Other Uses of Funds | C115: =C76 -> 0 | D115: =D76 -> 0 | E115: 0 | F115: 0 | G115: 0 | H115: 0 | I115: 0 | J115: 0 | K115: 0
A116: Total Other Sources/Uses of Funds | C116: =C77 -> 0 | D116: =D77 -> 0 | E116: 0 | F116: 0 | G116: 0 | H116: 0 | I116: 0 | J116: 0 | K116: 0
A117: ="Fund Balances (All sources with Student Activity Funds) - June 30, "&'AFR22'!E2&"" -> Fund Balances (All sources with Student Activity Funds) - June 30, 2022 | C117: =C81+C91 -> 0 | D117: =D81+D91 -> 0 | E117: 0 | F117: 0 | G117: 0 | H117: 0 | I117: 0 | J117: 0 | K117: 0

Sheet Revenues 10-15
A1: Description (Enter Whole Dollars) | C1: (10) | D1: (20) | E1: (30) | F1: (40) | G1: (50) | H1: (60) | I1: (70) | J1: (80) | K1: (90)
B2: Acct # | C2: Educational | D2: Operations & Maintenance | E2: Debt Services | F2: Transportation | G2: Municipal Retirement/ Social Security | H2: Capital Projects | I2: Working Cash | J2: Tort | K2: Fire Prevention & Safety
A3: RECEIPTS/REVENUES FROM LOCAL SOURCES (1000)
A4: AD VALOREM TAXES LEVIED BY LOCAL EDUCATION AGENCY | B4: 1100
A5: Designated Purposes Levies (1110-1120) 7
A6: Leasing Purposes Levy 8 | B6: 1130
A7: Special Education Purposes Levy | B7: 1140
A8: FICA/Medicare Only Purposes Levies | B8: 1150
A9: Area Vocational Construction Purposes Levy | B9: 1160
A10: Summer School Purposes Levy | B10: 1170
A11: Other Tax Levies (Describe & Itemize) | B11: 1190
A12: Total Ad Valorem Taxes Levied By District | C12: =SUM(C5:C11) -> 0 | D12: 0 | E12: 0 | F12: 0 | G12: 0 | H12: 0 | I12: 0 | J12: 0 | K12: 0
A13: PAYMENTS IN LIEU OF TAXES | B13: 1200
A14: Mobile Home Privilege Tax | B14: 1210
A15: Payments from Local Housing Authorities | B15: 1220
A16: Corporate Personal Property Replacement Taxes 9 | B16: 1230
A17: Other Payments in Lieu of Taxes (Describe & Itemize) | B17: 1290
A18: Total Payments in Lieu of Taxes | C18: =SUM(C14:C17) -> 0 | D18: =SUM(D14:D17) -> 0 | E18: 0 | F18: 0 | G18: 0 | H18: 0 | I18: 0 | J18: 0 | K18: 0
A19: TUITION | B19: 1300
A20: Regular - Tuition from Pupils or Parents (In State) | B20: 1311
A21: Regular - Tuition from Other Districts (In State) | B21: 1312
A22: Regular - Tuition from Other Sources (In State) | B22: 1313
A23: Regular - Tuition from Other Sources (Out of State) | B23: 1314
A24: Summer Sch - Tuition from Pupils or Parents (In State) | B24: 1321
A25: Summer Sch - Tuition from Other Districts (In State) | B25: 1322
A26: Summer Sch - Tuition from Other Sources (In State) | B26: 1323
A27: Summer Sch - Tuition from Other Sources (Out of State) | B27: 1324
A28: CTE - Tuition from Pupils or Parents (In State) | B28: 1331
A29: CTE - Tuition from Other Districts (In State) | B29: 1332
A30: CTE - Tuition from Other Sources (In State) | B30: 1333
A31: CTE - Tuition from Other Sources (Out of State) | B31: 1334
A32: Special Ed - Tuition from Pupils or Parents (In State) | B32: 1341
A33: Special Ed - Tuition from Other Districts (In State) | B33: 1342
A34: Special Ed - Tuition from Other Sources (In State) | B34: 1343
A35: Special Ed - Tuition from Other Sources (Out of State) | B35: 1344
A36: Adult - Tuition from Pupils or Parents (In State) | B36: 1351
A37: Adult - Tuition from Other Districts (In State) | B37: 1352
A38: Adult - Tuition from Other Sources (In State) | B38: 1353
A39: Adult - Tuition from Other Sources (Out of State) | B39: 1354
A40: Total Tuition | C40: =SUM(C20:C39) -> 0
A41: TRANSPORTATION FEES | B41: 1400
A42: Regular -Transp Fees from Pupils or Parents (In State) | B42: 1411
A43: Regular - Transp Fees from Other Districts (In State) | B43: 1412
A44: Regular - Transp Fees from Other Sources (In State) | B44: 1413
A45: Regular - Transp Fees from Co-curricular Activities (In State) | B45: 1415
A46: Regular Transp Fees from Other Sources (Out of State) | B46: 1416
A47: Summer Sch - Transp. Fees from Pupils or Parents (In State) | B47: 1421
A48: Summer Sch - Transp. Fees from Other Districts (In State) | B48: 1422
A49: Summer Sch - Transp. Fees from Other Sources (In State) | B49: 1423
A50: Summer Sch - Transp. Fees from Other Sources (Out of State) | B50: 1424
A51: CTE - Transp Fees from Pupils or Parents (In State) | B51: 1431
A52: CTE - Transp Fees from Other Districts (In State) | B52: 1432
A53: CTE - Transp Fees from Other Sources (In State) | B53: 1433
A54: CTE - Transp Fees from Other Sources (Out of State) | B54: 1434
A55: Special Ed - Transp Fees from Pupils or Parents (In State) | B55: 1441
A56: Special Ed - Transp Fees from Other Districts (In State) | B56: 1442
A57: Special Ed - Transp Fees from Other Sources (In State) | B57: 1443
A58: Special Ed - Transp Fees from Other Sources (Out of State) | B58: 1444
A59: Adult - Transp Fees from Pupils or Parents (In State) | B59: 1451
A60: Adult - Transp Fees from Other Districts (In State) | B60: 1452
A61: Adult - Transp Fees from Other Sources (In State) | B61: 1453
A62: Adult - Transp Fees from Other Sources (Out of State) | B62: 1454
A63: Total Transportation Fees | F63: =SUM(F42:F62) -> 0
A64: EARNINGS ON INVESTMENTS | B64: 1500
A65: Interest on Investments | B65: 1510
A66: Gain or Loss on Sale of Investments | B66: 1520
A67: Total Earnings on Investments | C67: =SUM(C65:C66) -> 0 | D67: =SUM(D65:D66) -> 0 | E67: 0 | F67: 0 | G67: 0 | H67: 0 | I67: 0 | J67: 0 | K67: 0
A68: FOOD SERVICE | B68: 1600
A69: Sales to Pupils - Lunch | B69: 1611
A70: Sales to Pupils - Breakfast | B70: 1612
A71: Sales to Pupils - A la Carte | B71: 1613
A72: Sales to Pupils - Other (Describe & Itemize) | B72: 1614
A73: Sales to Adults | B73: 1620
A74: Other Food Service (Describe & Itemize) | B74: 1690
A75: Total Food Service | C75: =SUM(C69:C74) -> 0
A76: DISTRICT/SCHOOL ACTIVITY INCOME | B76: 1700
A77: Admissions - Athletic | B77: 1711
A78: Admissions - Other (Describe & Itemize) | B78: 1719
A79: Fees | B79: 1720
A80: Book Store Sales | B80: 1730
A81: Other District/School Activity Revenue (Describe & Itemize) | B81: 1790
A82: Student Activity Funds Revenues | B82: 1799
A83: Total District/School Activity Income (without Student Activity Funds) | C83: =SUM(C77:C81) -> 0 | D83: =SUM(D77:D81) -> 0
A84: Total District/School Activity Income (with Student Activity Funds) | C84: =SUM(C77:C82) -> 0
A85: TEXTBOOK INCOME | B85: 1800
A86: Rentals - Regular Textbooks | B86: 1811
A87: Rentals - Summer School Textbooks | B87: 1812
A88: Rentals - Adult/Continuing Education Textbooks | B88: 1813
A89: Rentals - Other (Describe & Itemize) | B89: 1819
A90: Sales - Regular Textbooks | B90: 1821
A91: Sales - Summer School Textbooks | B91: 1822
A92: Sales - Adult/Continuing Education Textbooks | B92: 1823
A93: Sales - Other (Describe & Itemize) | B93: 1829
A94: Other (Describe & Itemize) | B94: 1890
A95: Total Textbook Income | C95: =SUM(C86:C94) -> 0
A96: OTHER REVENUE FROM LOCAL SOURCES | B96: 1900
A97: Rentals | B97: 1910
A98: Contributions and Donations from Private Sources | B98: 1920
A99: Impact Fees from Municipal or County Governments | B99: 1930
A100: Services Provided Other Districts | B100: 1940
A101: Refund of Prior Years' Expenditures | B101: 1950
A102: Payments of Surplus Moneys from TIF Districts | B102: 1960
A103: Drivers' Education Fees | B103: 1970
A104: Proceeds from Vendors' Contracts | B104: 1980
A105: School Facility Occupation Tax Proceeds | B105: 1983
A106: Payment from Other Districts | B106: 1991
A107: Sale of Vocational Projects | B107: 1992
A108: Other Local Fees (Describe & Itemize) | B108: 1993
A109: Other Local Revenues (Describe & Itemize) | B109: 1999
A110: Total Other Revenue from Local Sources | C110: =SUM(C97:C109) -> 0 | D110: =SUM(D97:D109) -> 0 | E110: 0 | F110: 0 | G110: 0 | H110: 0 | I110: 0 | J110: 0 | K110: 0
A111: Total Receipts/Revenues from Local Sources (without Student Activity Funds 1799) | B111: 1000 | C111: =SUM(C12,C18,C40,C63,C67,C75,C83,C95,C110,) -> 0 | D111: =SUM(D12,D18,D40,D63,D67,D75,D83,D95,D110,) -> 0 | E111: 0 | F111: 0 | G111: 0 | H111: 0 | I111: 0 | J111: 0 | K111: 0
A112: Total Receipts/Revenues from Local Sources (with Student Activity Funds 1799) | B112: 1000 | C112: =SUM(C12,C18,C40,C63,C67,C75,C84,C95,C110) -> 0
A113: FLOW-THROUGH RECEIPTS/REVENUES FROM ONE DISTRICT TO ANOTHER DISTRICT (2000)
A114: Flow-through Revenue from State Sources | B114: 2100
A115: Flow-through Revenue from Federal Sources | B115: 2200
A116: Other Flow-Through (Describe & Itemize) | B116: 2300
A117: Total Flow-Through Receipts/Revenues from One District to Another District | B117: 2000 | C117: =SUM(C114:C116) -> 0 | D117: =SUM(D114:D116) -> 0 | F117: =SUM(F114:F116) -> 0 | G117: =SUM(G114:G116) -> 0
A118: RECEIPTS/REVENUES FROM STATE SOURCES (3000)
A119: UNRESTRICTED GRANTS-IN-AID (3001-3099)
A120: Evidence Based Funding Formula (Section 18-8.15) | B120: 3001
A121: Reorganization Incentives (Accounts 3005-3021) | B121: 3005
A122: General State Aid - Fast Growth District Grant | B122: 3030
A123: Other Unrestricted Grants-In-Aid from State Sources (Describe & Itemize) | B123: 3099
A124: Total Unrestricted Grants-In-Aid | C124: =SUM(C120:C123) -> 0 | D124: 0 | E124: 0 | F124: 0 | G124: 0 | H124: 0 | J124: =SUM(J120:J123) -> 0 | K124: =SUM(K120:K123) -> 0
A125: RESTRICTED GRANTS-IN-AID (3100 - 3900)
A126: SPECIAL EDUCATION
A127: Special Education - Private Facility Tuition | B127: 3100
A128: Special Education - Funding for Children Requiring Sp Ed Services | B128: 3105
A129: Special Education - Personnel | B129: 3110
A130: Special Education - Orphanage - Individual | B130: 3120
A131: Special Education - Orphanage - Summer Individual | B131: 3130
A132: Special Education - Summer School | B132: 3145
A133: Special Education - Other (Describe & Itemize) | B133: 3199
A134: Total Special Education | C134: =SUM(C127:C133) -> 0 | D134: =SUM(D127:D133) -> 0 | F134: =SUM(F127:F133) -> 0
A135: CAREER AND TECHNICAL EDUCATION (CTE)
A136: CTE - Technical Education - Tech Prep | B136: 3200
A137: CTE - Secondary Program Improvement (CTEI) | B137: 3220
A138: CTE - WECEP | B138: 3225
A139: CTE - Agriculture Education | B139: 3235
A140: CTE - Instructor Practicum | B140: 3240
A141: CTE - Student Organizations | B141: 3270
A142: CTE - Other (Describe & Itemize) | B142: 3299
A143: Total Career and Technical Education | C143: =SUM(C136:C142) -> 0 | D143: =SUM(D136:D142) -> 0 | G143: =SUM(G136:G142) -> 0
A144: BILINGUAL EDUCATION
A145: Bilingual Ed - Downstate - TPI and TBE | B145: 3305
A146: Bilingual Education Downstate - Transitional Bilingual Education | B146: 3310
A147: Total Bilingual Ed | C147: =SUM(C145:C146) -> 0 | G147: =SUM(G145:G146) -> 0
A148: State Free Lunch & Breakfast | B148: 3360
A149: School Breakfast Initiative | B149: 3365
A150: Driver Education | B150: 3370
A151: Adult Ed (from ICCB) | B151: 3410
A152: Adult Ed - Other (Describe & Itemize) | B152: 3499
A153: TRANSPORTATION
A154: Transportation - Regular and Vocational | B154: 3500
A155: Transportation - Special Education | B155: 3510
A156: Transportation - Other (Describe & Itemize) | B156: 3599
A157: Total Transportation | C157: =SUM(C154:C156) -> 0 | D157: =SUM(D154:D156) -> 0 | F157: =SUM(F154:F156) -> 0 | G157: =SUM(G154:G156) -> 0
A158: Learning Improvement - Change Grants | B158: 3610
A159: Scientific Literacy | B159: 3660
A160: Truant Alternative/Optional Education | B160: 3695
A161: Early Childhood - Block Grant | B161: 3705
A162: Chicago General Education Block Grant | B162: 3766
A163: Chicago Educational Services Block Grant | B163: 3767
A164: School Safety & Educational Improvement Block Grant | B164: 3775
A165: Technology - Technology for Success | B165: 3780
A166: State Charter Schools | B166: 3815
A167: Extended Learning Opportunities - Summer Bridges | B167: 3825
A168: Infrastructure Improvements - Planning/Construction | B168: 3920
A169: School Infrastructure - Maintenance Projects | B169: 3925
A170: Other Restricted Revenue from State Sources (Describe & Itemize) | B170: 3999
A171: Total Restricted Grants-In-Aid | C171: =SUM(C134,C143,C147,C148:C152,C157,C158:C169,C170) -> 0 | D171: 0 | E171: 0 | F171: 0 | G171: 0 | H171: 0 | I171: 0 | J171: 0 | K171: 0
A172: Total Receipts from State Sources | B172: 3000 | C172: =SUM(C124,C171) -> 0 | D172: 0 | E172: 0 | F172: 0 | G172: 0 | H172: 0 | I172: 0 | J172: 0 | K172: 0
A173: RECEIPTS/REVENUES FROM FEDERAL SOURCES (4000)
A174: UNRESTRICTED GRANTS-IN-AID RECEIVED DIRECTLY FROM FEDERAL GOVT (4001-4009)
A175: Federal Impact Aid | B175: 4001
A176: Other Unrestricted Grants-In-Aid Received Directly from the Fed Govt (Describe & Itemize) | B176: 4009
A177: Total Unrestricted Grants-In-Aid Received Directly from the Federal Govt | C177: =SUM(C175:C176) -> 0 | D177: =SUM(D175:D176) -> 0 | E177: 0 | F177: 0 | G177: 0 | H177: 0 | I177: 0 | J177: 0 | K177: 0
A178: RESTRICTED GRANTS-IN-AID RECEIVED DIRECTLY FROM FEDERAL GOVT (4045-4090)
A179: Head Start | B179: 4045
A180: Construction (Impact Aid) | B180: 4050
A181: MAGNET | B181: 4060
A182: Other Restricted Grants-In-Aid Received Directly from the Federal Govt (Describe & Itemize) | B182: 4090
A183: Total Restricted Grants-In-Aid Received Directly from Federal Govt | C183: =SUM(C179:C182) -> 0 | D183: =SUM(D179:D182) -> 0 | F183: =SUM(F179:F182) -> 0 | G183: =SUM(G179:G182) -> 0 | H183: =SUM(H179:H182) -> 0 | K183: =SUM(K179:K182) -> 0
A184: RESTRICTED GRANTS-IN-AID RECEIVED FROM FEDERAL GOVT THRU THE STATE (4100-4999)
A185: TITLE V
A186: Title V - Innovation and Flexibility Formula | B186: 4100
A187: Title V - District Projects | B187: 4105
A188: Title V - Rural Education Initiative (REI) | B188: 4107
A189: Title V - Other (Describe & Itemize) | B189: 4199
A190: Total Title V | C190: =SUM(C186:C189) -> 0 | D190: =SUM(D186:D189) -> 0 | F190: =SUM(F186:F189) -> 0 | G190: =SUM(G186:G189) -> 0
A191: FOOD SERVICE
A192: Breakfast Start-Up Expansion | B192: 4200
A193: National School Lunch Program | B193: 4210
A194: Special Milk Program | B194: 4215
A195: School Breakfast Program | B195: 4220
A196: Summer Food Service Program | B196: 4225
A197: Child and Adult Care Food Program | B197: 4226
A198: Fresh Fruits & Vegetables | B198: 4240
A199: Food Service - Other (Describe & Itemize) | B199: 4299
A200: Total Food Service | C200: =SUM(C192:C199) -> 0 | G200: =SUM(G192:G199) -> 0
... 71 more rows

Sheet Expenditures 16-24
A1: Description (Enter Whole Dollars) | C1: (100) | D1: (200) | E1: (300) | F1: (400) | G1: (500) | H1: (600) | I1: (700) | J1: (800) | K1: (900)
B2: Funct # | C2: Salaries | D2: Employee Benefits | E2: Purchased Services | F2: Supplies & Materials | G2: Capital Outlay | H2: Other Objects | I2: Non-Capitalized Equipment | J2: Termination Benefits | K2: Total | L2: Budget
A3: 10 - EDUCATIONAL FUND (ED)
A4: INSTRUCTION (ED) | B4: 1000
A5: Regular Programs | B5: 1100 | K5: =SUM(C5:J5) -> 0
A6: Tuition Payment to Charter Schools | B6: 1115 | K6: =SUM(C6,E6) -> 0
A7: Pre-K Programs | B7: 1125 | K7: =SUM(C7:J7) -> 0
A8: Special Education Programs (Functions 1200-1220) | B8: 1200 | K8: 0
A9: Special Education Programs Pre-K | B9: 1225 | K9: 0
A10: Remedial and Supplemental Programs K-12 | B10: 1250 | K10: 0
A11: Remedial and Supplemental Programs Pre-K | B11: 1275 | K11: 0
A12: Adult/Continuing Education Programs | B12: 1300 | K12: 0
A13: CTE Programs | B13: 1400 | K13: 0
A14: Interscholastic Programs | B14: 1500 | K14: 0
A15: Summer School Programs | B15: 1600 | K15: 0
A16: Gifted Programs | B16: 1650 | K16: 0
A17: Driver's Education Programs | B17: 1700 | K17: 0
A18: Bilingual Programs | B18: 1800 | K18: 0
A19: Truant Alternative & Optional Programs | B19: 1900 | K19: 0
A20: Pre-K Programs - Private Tuition | B20: 1910 | K20: 0
A21: Regular K-12 Programs - Private Tuition | B21: 1911 | K21: 0
A22: Special Education Programs K-12 - Private Tuition | B22: 1912 | K22: 0
A23: Special Education Programs Pre-K - Tuition | B23: 1913 | K23: 0
A24: Remedial/Supplemental Programs K-12 - Private Tuition | B24: 1914 | K24: 0
A25: Remedial/Supplemental Programs Pre-K - Private Tuition | B25: 1915 | K25: 0
A26: Adult/Continuing Education Programs - Private Tuition | B26: 1916 | K26: 0
A27: CTE Programs - Private Tuition | B27: 1917 | K27: 0
A28: Interscholastic Programs - Private Tuition | B28: 1918 | K28: 0
A29: Summer School Programs - Private Tuition | B29: 1919 | K29: 0
A30: Gifted Programs - Private Tuition | B30: 1920 | K30: 0
A31: Bilingual Programs - Private Tuition | B31: 1921 | K31: 0
A32: Truants Alternative/Optional Ed Progms - Private Tuition | B32: 1922 | K32: 0
A33: Student Activity Fund Expenditures | B33: 1999 | K33: 0
A34: Total Instruction 10 (without Student Activity Funds) | B34: 1000 | C34: =SUM(C5:C32) -> 0 | D34: =SUM(D5:D32) -> 0 | E34: 0 | F34: 0 | G34: 0 | H34: 0 | I34: 0 | J34: 0 | K34: 0 | L34: 0
A35: Total Instruction 10 (with Student Activity Funds) | B35: 1000 | C35: =SUM(C5:C33) -> 0 | D35: =SUM(D5:D33) -> 0 | E35: 0 | F35: 0 | G35: 0 | H35: 0 | I35: 0 | J35: 0 | K35: 0 | L35: =SUM(L5:L33) -> 0
A36: SUPPORT SERVICES (ED) | B36: 2000
A37: SUPPORT SERVICES - PUPILS
A38: Attendance & Social Work Services | B38: 2110 | K38: =SUM(C38:J38) -> 0
A39: Guidance Services | B39: 2120 | K39: 0
A40: Health Services | B40: 2130 | K40: 0
A41: Psychological Services | B41: 2140 | K41: 0
A42: Speech Pathology & Audiology Services | B42: 2150 | K42: 0
A43: Other Support Services - Pupils (Describe & Itemize) | B43: 2190 | K43: 0
A44: Total Support Services - Pupils | B44: 2100 | C44: =SUM(C38:C43) -> 0 | D44: =SUM(D38:D43) -> 0 | E44: 0 | F44: 0 | G44: 0 | H44: 0 | I44: 0 | J44: 0 | K44: 0 | L44: 0
A45: SUPPORT SERVICES - INSTRUCTIONAL STAFF
A46: Improvement of Instruction Services | B46: 2210 | K46: =SUM(C46:J46) -> 0
A47: Educational Media Services | B47: 2220 | K47: =SUM(C47:J47) -> 0
A48: Assessment & Testing | B48: 2230 | K48: =SUM(C48:J48) -> 0
A49: Total Support Services - Instructional Staff | B49: 2200 | C49: =SUM(C46:C48) -> 0 | D49: =SUM(D46:D48) -> 0 | E49: 0 | F49: 0 | G49: 0 | H49: 0 | I49: 0 | J49: 0 | K49: 0 | L49: =SUM(L46:L48) -> 0
A50: SUPPORT SERVICES - GENERAL ADMINISTRATION
A51: Board of Education Services | B51: 2310 | K51: =SUM(C51:J51) -> 0
A52: Executive Administration Services | B52: 2320 | K52: =SUM(C52:J52) -> 0
A53: Special Area Administration Services | B53: 2330 | K53: =SUM(C53:J53) -> 0
A54: Tort Immunity Services | B54: 2361, 2365 | K54: =SUM(C54:J54) -> 0
A55: Total Support Services - General Administration | B55: 2300 | C55: =SUM(C51:C54) -> 0 | D55: =SUM(D51:D54) -> 0 | E55: 0 | F55: 0 | G55: 0 | H55: 0 | I55: 0 | J55: 0 | K55: 0 | L55: 0
A56: SUPPORT SERVICES - SCHOOL ADMINISTRATION
A57: Office of the Principal Services | B57: 2410 | K57: =SUM(C57:J57) -> 0
A58: Other Support Services - School Admin (Describe & Itemize) | B58: 2490 | K58: =SUM(C58:J58) -> 0
A59: Total Support Services - School Administration | B59: 2400 | C59: =SUM(C57:C58) -> 0 | D59: =SUM(D57:D58) -> 0 | E59: 0 | F59: 0 | G59: 0 | H59: 0 | I59: 0 | J59: 0 | K59: 0 | L59: =SUM(L57:L58) -> 0
A60: SUPPORT SERVICES - BUSINESS
A61: Direction of Business Support Services | B61: 2510 | K61: =SUM(C61:J61) -> 0
A62: Fiscal Services | B62: 2520 | K62: 0
A63: Operation & Maintenance of Plant Services | B63: 2540 | K63: 0
A64: Pupil Transportation Services | B64: 2550 | K64: 0
A65: Food Services | B65: 2560 | K65: 0
A66: Internal Services | B66: 2570 | K66: 0
A67: Total Support Services - Business | B67: 2500 | C67: =SUM(C61:C66) -> 0 | D67: =SUM(D61:D66) -> 0 | E67: 0 | F67: 0 | G67: 0 | H67: 0 | I67: 0 | J67: 0 | K67: 0 | L67: 0
A68: SUPPORT SERVICES - CENTRAL
A69: Direction of Central Support Services | B69: 2610 | K69: =SUM(C69:J69) -> 0
A70: Planning, Research, Development, & Evaluation Services | B70: 2620 | K70: =SUM(C70:J70) -> 0
A71: Information Services | B71: 2630 | K71: =SUM(C71:J71) -> 0
A72: Staff Services | B72: 2640 | K72: =SUM(C72:J72) -> 0
A73: Data Processing Services | B73: 2660 | K73: =SUM(C73:J73) -> 0
A74: Total Support Services - Central | B74: 2600 | C74: =SUM(C69:C73) -> 0 | D74: =SUM(D69:D73) -> 0 | E74: 0 | F74: 0 | G74: 0 | H74: 0 | I74: 0 | J74: 0 | K74: 0 | L74: =SUM(L69:L73) -> 0
A75: Other Support Services (Describe & Itemize) | B75: 2900 | K75: =SUM(C75:J75) -> 0
A76: Total Support Services | B76: 2000 | C76: =SUM(C44,C49,C55,C59,C67,C74,C75) -> 0 | D76: =SUM(D44,D49,D55,D59,D67,D74,D75) -> 0 | E76: 0 | F76: 0 | G76: 0 | H76: 0 | I76: 0 | J76: 0 | K76: 0 | L76: =SUM(L44,L49,L55,L59,L67,L74,L75) -> 0
A77: COMMUNITY SERVICES (ED) | B77: 3000 | K77: =SUM(C77:J77) -> 0
A78: PAYMENTS TO OTHER DISTRICTS & GOVT UNITS (ED) | B78: 4000
A79: PAYMENTS TO OTHER GOVT UNITS (IN-STATE)
A80: Payments for Regular Programs | B80: 4110 | K80: =SUM(C80:J80) -> 0
A81: Payments for Special Education Programs | B81: 4120 | K81: 0
A82: Payments for Adult/Continuing Education Programs | B82: 4130 | K82: 0
A83: Payments for CTE Programs | B83: 4140 | K83: 0
A84: Payments for Community College Programs | B84: 4170 | K84: 0
A85: Other Payments to In-State Govt. Units (Describe & Itemize) | B85: 4190 | K85: 0
A86: Total Payments to Other Govt Units (In-State) | B86: 4100 | E86: =SUM(E80:E85) -> 0 | H86: =SUM(H80:H85) -> 0 | K86: =SUM(K80:K85) -> 0 | L86: =SUM(L80:L85) -> 0
A87: Payments for Regular Programs - Tuition | B87: 4210 | K87: =H87 -> 0
A88: Payments for Special Education Programs - Tuition | B88: 4220 | K88: =H88 -> 0
A89: Payments for Adult/Continuing Education Programs - Tuition | B89: 4230 | K89: 0
A90: Payments for CTE Programs - Tuition | B90: 4240 | K90: 0
A91: Payments for Community College Programs - Tuition | B91: 4270 | K91: 0
A92: Payments for Other Programs - Tuition | B92: 4280 | K92: 0
A93: Other Payments to In-State Govt Units | B93: 4290 | K93: 0
A94: Total Payments to Other Govt Units -Tuition (In State) | B94: 4200 | H94: =SUM(H87:H93) -> 0 | K94: 0 | L94: =SUM(L87:L93) -> 0
A95: Payments for Regular Programs - Transfers | B95: 4310 | K95: 0
A96: Payments for Special Education Programs - Transfers | B96: 4320 | K96: 0
A97: Payments for Adult/Continuing Ed Programs-Transfers | B97: 4330 | K97: 0
A98: Payments for CTE Programs - Transfers | B98: 4340 | K98: 0
A99: Payments for Community College Program - Transfers | B99: 4370 | K99: 0
A100: Payments for Other Programs - Transfers | B100: 4380 | K100: 0
A101: Other Payments to In-State Govt Units - Transfers | B101: 4390 | K101: =SUM(E101,H101) -> 0
A102: Total Payments to Other Govt Units -Transfers (In-State) | B102: 4300 | E102: =SUM(E95:E101) -> 0 | H102: =SUM(H95:H101) -> 0 | K102: =SUM(K95:K101) -> 0 | L102: =SUM(L95:L101) -> 0
A103: Payments to Other Govt Units (Out-of-State) | B103: 4400 | K103: =SUM(C103:J103) -> 0
A104: Total Payments to Other Govt Units | B104: 4000 | E104: =SUM(E86,E94,E102,E103) -> 0 | H104: =SUM(H86,H94,H102,H103) -> 0 | K104: =SUM(K86,K94,K102,K103) -> 0 | L104: =SUM(L86,L94,L102,L103) -> 0
A105: DEBT SERVICES (ED) | B105: 5000
A106: DEBT SERVICES - INTEREST ON SHORT-TERM DEBT
A107: Tax Anticipation Warrants | B107: 5110 | K107: =H107 -> 0
A108: Tax Anticipation Notes | B108: 5120 | K108: =H108 -> 0
A109: Corporate Personal Prop. Repl. Tax Anticipation Notes | B109: 5130 | K109: =H109 -> 0
A110: State Aid Anticipation Certificates | B110: 5140 | K110: =H110 -> 0
A111: Other Interest on Short-Term Debt | B111: 5150 | K111: =H111 -> 0
A112: Total Interest on Short-Term Debt | B112: 5100 | H112: =SUM(H107:H111) -> 0 | K112: =SUM(K107:K111) -> 0 | L112: =SUM(L107:L111) -> 0
A113: Debt Services - Interest on Long-Term Debt | B113: 5200 | K113: =H113 -> 0
A114: Total Debt Services | B114: 5000 | H114: =SUM(H112:H113) -> 0 | K114: =SUM(K112:K113) -> 0 | L114: =SUM(L112,L113) -> 0
A115: PROVISIONS FOR CONTINGENCIES (ED) | B115: 6000
A116: Total Direct Disbursements/Expenditures (without Student Activity Funds 1999) | C116: =SUM(C34,C76,C77,C104,C114,C115) -> 0 | D116: =SUM(D34,D76,D77,D104,D114,D115) -> 0 | E116: 0 | F116: 0 | G116: 0 | H116: =SUM(H34,H76,H77,H104,H114,H115) -> 0 | I116: 0 | J116: 0 | K116: 0 | L116: =SUM(L34,L76,L77,L104,L114,L115) -> 0
A117: Total Direct Disbursements/Expenditures (with Student Activity Funds 1999) | C117: =SUM(C35,C76,C77,C104,C114,C115) -> 0 | D117: =SUM(D35,D76,D77,D104,D114,D115) -> 0 | E117: 0 | F117: 0 | G117: 0 | H117: 0 | I117: 0 | J117: 0 | K117: 0 | L117: 0
A118: Excess (Deficiency) of Receipts/Revenues Over Disbursements/Expenditures (without Student Activity Funds 1999) | K118: ='Revenues 10-15'!C270-'Expenditures 16-24'!K116 -> 0
A119: Excess (Deficiency) of Receipts/Revenues Over Disbursements/Expenditures (with Student Activity Funds 1999) | K119: ='Revenues 10-15'!C271-'Expenditures 16-24'!K117 -> 0
A121: 20 - OPERATIONS & MAINTENANCE FUND (O&M)
A122: SUPPORT SERVICES (O&M) | B122: 2000
A123: SUPPORT SERVICES - PUPILS
A124: Other Support Services - Pupils (Func. 2190 Describe & Itemize) | B124: 2100 | K124: =SUM(C124:J124) -> 0
A125: SUPPORT SERVICES - BUSINESS
A126: Direction of Business Support Services | B126: 2510 | K126: =SUM(C126:J126) -> 0
A127: Facilities Acquisition & Construction Services | B127: 2530 | K127: =SUM(C127:J127) -> 0
A128: Operation & Maintenance of Plant Services | B128: 2540 | K128: =SUM(C128:J128) -> 0
A129: Pupil Transportation Services | B129: 2550 | K129: =SUM(C129:J129) -> 0
A130: Food Services | B130: 2560 | K130: =SUM(C130:J130) -> 0
A131: Total Support Services - Business | B131: 2500 | C131: =SUM(C126:C130) -> 0 | D131: =SUM(D126:D130) -> 0 | E131: 0 | F131: 0 | G131: 0 | H131: 0 | I131: 0 | J131: 0 | K131: 0 | L131: 0
A132: Other Support Services (Describe & Itemize) | B132: 2900 | K132: =SUM(C132:J132) -> 0
A133: Total Support Services | B133: 2000 | C133: =SUM(C124,C131,C132) -> 0 | D133: =SUM(D124,D131,D132) -> 0 | E133: 0 | F133: 0 | G133: 0 | H133: 0 | I133: 0 | J133: 0 | K133: 0 | L133: 0
A134: COMMUNITY SERVICES (O&M) | B134: 3000 | K134: =SUM(C134:J134) -> 0
A135: PAYMENTS TO OTHER DIST & GOVT UNITS (O&M) | B135: 4000
A136: PAYMENTS TO OTHER GOVT UNITS (IN-STATE)
A137: Payments for Regular Programs | B137: 4110 | K137: =SUM(E137,H137) -> 0
A138: Payments for Special Education Programs | B138: 4120 | K138: =SUM(E138,H138) -> 0
A139: Payments for CTE Programs | B139: 4140 | K139: =SUM(E139,H139) -> 0
A140: Other Payments to In-State Govt. Units (Describe & Itemize) | B140: 4190 | K140: =SUM(E140,H140) -> 0
A141: Total Payments to Other Govt. Units (In-State) | B141: 4100 | E141: =SUM(E137:E140) -> 0 | H141: =SUM(H137:H140) -> 0 | K141: =SUM(K137:K140) -> 0 | L141: =SUM(L137:L140) -> 0
A142: Payments to Other Govt. Units (Out of State) | B142: 4400 | K142: =SUM(E142,H142) -> 0
A143: Total Payments to Other Govt Units | B143: 4000 | E143: =SUM(E141,E142) -> 0 | H143: =SUM(H141:H142) -> 0 | K143: =SUM(K141,K142) -> 0 | L143: =SUM(L141,L142) -> 0
A144: DEBT SERVICES (O&M) | B144: 5000
A145: DEBT SERVICES - INTEREST ON SHORT-TERM DEBT
A146: Tax Anticipation Warrants | B146: 5110 | K146: =SUM(H146) -> 0
A147: Tax Anticipation Notes | B147: 5120 | K147: =SUM(H147) -> 0
A148: Corporate Personal Prop. Repl. Tax Anticipation Notes | B148: 5130 | K148: =SUM(H148) -> 0
A149: State Aid Anticipation Certificates | B149: 5140 | K149: =SUM(H149) -> 0
A150: Other Interest on Short-Term Debt (Describe & Itemize) | B150: 5150 | K150: =SUM(H150) -> 0
A151: Total Debt Service - Interest on Short-Term Debt | B151: 5100 | H151: =SUM(H146:H150) -> 0 | K151: =SUM(K146:K150) -> 0 | L151: =SUM(L146:L150) -> 0
A152: DEBT SERVICE - INTEREST ON LONG-TERM DEBT | B152: 5200 | K152: =SUM(H152) -> 0
A153: Total Debt Services | B153: 5000 | H153: =SUM(H151,H152) -> 0 | K153: =SUM(K151:K152) -> 0 | L153: =SUM(L146:L150,L152) -> 0
A154: PROVISIONS FOR CONTINGENCIES (O&M) | B154: 6000
A155: Total Direct Disbursements/Expenditures | C155: =SUM(C133,C134,C143,C153,C154) -> 0 | D155: =SUM(D133,D134,D143,D153,D154) -> 0 | E155: 0 | F155: 0 | G155: 0 | H155: 0 | I155: 0 | J155: 0 | K155: 0 | L155: =SUM(L133,L134,L143,L153,L154) -> 0
A156: Excess (Deficiency) of Receipts/Revenues/Over Disbursements/ Expenditures | K156: ='Revenues 10-15'!D270-'Expenditures 16-24'!K155 -> 0
A158: 30 - DEBT SERVICES (DS)
A159: PAYMENTS TO OTHER DIST & GOVT UNITS (DS) | B159: 4000
A160: PAYMENTS TO OTHER DIST & GOVT UNITS (In-State)
A161: Payments for Regular Programs | B161: 4110 | K161: =H161 -> 0
A162: Payments for Special Education Programs | B162: 4120 | K162: =H162 -> 0
A163: Other Payments to In-State Govt Units (Describe & Itemize) | B163: 4190 | K163: =H163 -> 0
A164: Total Payments to Other Districts & Govt Units (In-State) | B164: 4000 | H164: =SUM(H161:H163) -> 0 | K164: =SUM(K161:K163) -> 0 | L164: =SUM(L161:L163) -> 0
A165: DEBT SERVICES (DS) | B165: 5000
A166: DEBT SERVICES - INTEREST ON SHORT-TERM DEBT
A167: Tax Anticipation Warrants | B167: 5110 | K167: =SUM(C167:J167) -> 0
A168: Tax Anticipation Notes | B168: 5120 | K168: =SUM(C168:J168) -> 0
A169: Corporate Personal Prop. Repl. Tax Anticipation Notes | B169: 5130 | K169: =SUM(C169:J169) -> 0
A170: State Aid Anticipation Certificates | B170: 5140 | K170: =SUM(C170:J170) -> 0
A171: Other Interest on Short-Term Debt (Describe & Itemize) | B171: 5150 | K171: =SUM(C171:J171) -> 0
A172: Total Debt Services - Interest On Short-Term Debt | B172: 5100 | H172: =SUM(H167:H171) -> 0 | K172: =SUM(K167:K171) -> 0 | L172: =SUM(L167:L171) -> 0
A173: DEBT SERVICES - INTEREST ON LONG-TERM DEBT | B173: 5200 | K173: =SUM(C173:H173) -> 0
A174: DEBT SERVICES - PAYMENTS OF PRINCIPAL ON LONG-TERM DEBT (Lease/Purchase Principal Retired) 11 | B174: 5300 | K174: =SUM(C174:J174) -> 0
A175: DEBT SERVICES - OTHER (Describe & Itemize) | B175: 5400 | K175: =SUM(C175:J175) -> 0
A176: Total Debt Services | B176: 5000 | E176: =SUM(E172,E173,E174,E175) -> 0 | H176: =SUM(H172,H173,H174,H175) -> 0 | K176: =SUM(K172,K173,K174,K175) -> 0 | L176: =SUM(L172,L173,L174,L175) -> 0
A177: PROVISION FOR CONTINGENCIES (DS) | B177: 6000
A178: Total Disbursements/ Expenditures | E178: =SUM(E176,E177) -> 0 | H178: =SUM(H164,H176,H177) -> 0 | K178: =SUM(K164,K176,K177) -> 0 | L178: =SUM(L164,L176,L177) -> 0
A179: Excess (Deficiency) of Receipts/Revenues Over Disbursements/Expenditures | K179: ='Revenues 10-15'!E270-'Expenditures 16-24'!K178 -> 0
A181: 40 - TRANSPORTATION FUND (TR)
A182: SUPPORT SERVICES (TR)
A183: SUPPORT SERVICES - PUPILS
A184: Other Support Services - Pupils (Func. 2190 Describe & Itemize) | B184: 2100 | K184: =SUM(C184:J184) -> 0
A185: SUPPORT SERVICES - BUSINESS
A186: Pupil Transportation Services | B186: 2550 | K186: =SUM(C186:J186) -> 0
A187: Other Support Services (Describe & Itemize) | B187: 2900 | K187: =SUM(C187:J187) -> 0
A188: Total Support Services | B188: 2000 | C188: =SUM(C184,C186,C187) -> 0 | D188: =SUM(D184,D186,D187) -> 0 | E188: 0 | F188: 0 | G188: 0 | H188: 0 | I188: 0 | J188: 0 | K188: =SUM(K184,K186,K187) -> 0 | L188: =SUM(L184, L186:L187) -> 0
A189: COMMUNITY SERVICES (TR) | B189: 3000 | K189: =SUM(C189:J189) -> 0
A190: PAYMENTS TO OTHER DIST & GOVT UNITS (TR) | B190: 4000
A191: PAYMENTS TO OTHER GOVT UNITS (IN-STATE)
A192: Payments for Regular Programs | B192: 4110 | K192: =SUM(E192,H192) -> 0
A193: Payments for Special Education Programs | B193: 4120 | K193: 0
A194: Payments for Adult/Continuing Education Programs | B194: 4130 | K194: 0
A195: Payments for CTE Programs | B195: 4140 | K195: 0
A196: Payments for Community College Programs | B196: 4170 | K196: 0
A197: Other Payments to In-State Govt. Units (Describe & Itemize) | B197: 4190 | K197: 0
A198: Total Payments to Other Govt. Units (In-State) | B198: 4100 | E198: =SUM(E192:E197) -> 0 | H198: =SUM(H192:H197) -> 0 | K198: =SUM(K192:K197) -> 0 | L198: =SUM(L192:L197) -> 0
A199: PAYMENTS TO OTHER GOVT UNITS (OUT-OF-STATE) | B199: 4400 | K199: =SUM(E199,H199) -> 0
A200: Total Payments to Other Govt Units | B200: 4000 | E200: =SUM(E198,E199) -> 0 | H200: =SUM(H198,H199) -> 0 | K200: =SUM(K198,K199) -> 0 | L200: =SUM(L198,L199) -> 0
A201: DEBT SERVICES (TR) | B201: 5000
A202: DEBT SERVICE - INTEREST ON SHORT-TERM DEBT
A203: Tax Anticipation Warrants | B203: 5110 | K203: =SUM(H203) -> 0
... 247 more rows

Sheet Tax Sched 25
A1: SCHEDULE OF AD VALOREM TAX RECEIPTS
A2: Description (Enter Whole Dollars) | B2: ="Taxes Received 7-1-"&MID('AFR22'!E2,3,2)-1&" thru 6-30-"&MID('AFR22'!E2,3,2)&" (from "&'AFR22'!E2-2&" Levy & Prior Levies) *" -> Taxes Received 7-1-21 thru 6-30-22 (from 2020 Levy & Prior Levies) * | C2: ="Taxes Received (from the "&'AFR22'!E2-1&" Levy)" -> Taxes Received (from the 2021 Levy) | D2: ="Taxes Received (from "&'AFR22'!E2-2&" & Prior Levies)" -> Taxes Received (from 2020 & Prior Levies) | E2: ="Total Estimated Taxes (from the "&'AFR22'!E2-1&" Levy) " -> Total Estimated Taxes (from the 2021 Levy) | F2: ="Estimated Taxes Due (from the "&'AFR22'!E2-1&" Levy)" -> Estimated Taxes Due (from the 2021 Levy)
D3: (Column B - C) | F3: (Column E - C)
A4: Educational | B4: ='Revenues 10-15'!C5 -> 0 | D4: =B4-C4 -> 0 | F4: =E4-C4 -> 0
A5: Operations & Maintenance | B5: ='Revenues 10-15'!D5 -> 0 | D5: =B5-C5 -> 0 | F5: =E5-C5 -> 0
A6: Debt Services ** | B6: ='Revenues 10-15'!E5 -> 0 | D6: 0 | F6: =E6-C6 -> 0
A7: Transportation | B7: ='Revenues 10-15'!F5 -> 0 | D7: 0 | F7: 0
A8: Municipal Retirement | B8: ='Revenues 10-15'!G5 -> 0 | D8: 0 | F8: 0
A9: Capital Improvements | B9: ='Revenues 10-15'!H5 -> 0 | D9: 0 | F9: 0
A10: Working Cash | B10: ='Revenues 10-15'!I5 -> 0 | D10: 0 | F10: 0
A11: Tort Immunity | B11: ='Revenues 10-15'!J5 -> 0 | D11: 0 | F11: 0
A12: Fire Prevention & Safety | B12: ='Revenues 10-15'!K5 -> 0 | D12: 0 | F12: 0
A13: Leasing Levy | B13: =SUM('Revenues 10-15'!C6:D6) -> 0 | D13: 0 | F13: 0
A14: Special Education | B14: =SUM('Revenues 10-15'!C7:D7,'Revenues 10-15'!F7:H7) -> 0 | D14: 0 | F14: 0
A15: Area Vocational Construction | B15: =SUM('Revenues 10-15'!D9:E9,'Revenues 10-15'!H9) -> 0 | D15: 0 | F15: 0
A16: Social Security/Medicare Only | B16: ='Revenues 10-15'!G8 -> 0 | D16: 0 | F16: 0
A17: Summer School | B17: ='Revenues 10-15'!C10 -> 0 | D17: 0 | F17: 0
A18: Other (Describe & Itemize) | B18: =SUM('Revenues 10-15'!C11:K11) -> 0 | D18: 0 | F18: 0
A19: Totals | B19: =SUM(B4:B18) -> 0 | C19: =SUM(C4:C18) -> 0 | D19: =SUM(D4:D18) -> 0 | E19: =SUM(E4:E18) -> 0 | F19: =SUM(F4:F18) -> 0
A21: * The formulas in column B are unprotected to be overridden when reporting on an ACCRUAL basis.
A22: ** All tax receipts for debt service payments on bonds must be recorded on line 6 (Debt Services).

Sheet Short-Term Long-Term Debt 26
A1: SCHEDULE OF SHORT-TERM DEBT
A2: Description (Enter Whole Dollars) | C2: ="Outstanding Beginning July 1, "&'AFR22'!$E$2-1 -> Outstanding Beginning July 1, 2021 | D2: ="Issued July 1, "&'AFR22'!$E$2-1&" thru June 30, "&'AFR22'!$E$2 -> Issued July 1, 2021 thru June 30, 2022 | E2: ="Retired July 1, "&'AFR22'!$E$2-1&" thru June 30, "&'AFR22'!$E$2 -> Retired July 1, 2021 thru June 30, 2022 | F2: ="Outstanding Ending June 30, "&'AFR22'!$E$2 -> Outstanding Ending June 30, 2022
A3: CORPORATE PERSONAL PROPERTY REPLACEMENT TAX ANTICIPATION NOTES (CPPRT)
A4: Total CPPRT Notes | F4: =SUM(C4+D4)-E4 -> 0
A5: TAX ANTICIPATION WARRANTS (TAW)
A6: Educational Fund | F6: =SUM(C6+D6)-E6 -> 0
A7: Operations & Maintenance Fund | F7: 0
A8: Debt Services - Construction | F8: 0
A9: Debt Services - Working Cash | F9: 0
A10: Debt Services - Refunding Bonds | F10: 0
A11: Transportation Fund | F11: 0
A12: Municipal Retirement/Social Security Fund | F12: 0
A13: Fire Prevention & Safety Fund | F13: 0
A14: Other - (Describe & Itemize) | F14: 0
A15: Total TAWs | C15: =SUM(C6:C14) -> 0 | D15: =SUM(D6:D14) -> 0 | E15: =SUM(E6:E14) -> 0 | F15: =SUM(F6:F14) -> 0
A16: TAX ANTICIPATION NOTES (TAN)
A17: Educational Fund | F17: =SUM(C17+D17)-E17 -> 0
A18: Operations & Maintenance Fund | F18: =SUM(C18+D18)-E18 -> 0
A19: Fire Prevention & Safety Fund | F19: =SUM(C19+D19)-E19 -> 0
A20: Other - (Describe & Itemize) | F20: =SUM(C20+D20)-E20 -> 0
A21: Total TANs | C21: =SUM(C17:C20) -> 0 | D21: =SUM(D17:D20) -> 0 | E21: =SUM(E17:E20) -> 0 | F21: =SUM(F17:F20) -> 0
A22: TEACHERS'/EMPLOYEES' ORDERS (T/EO)
A23: Total T/EOs (Educational, Operations & Maintenance, & Transportation Funds) | F23: =SUM(C23+D23)-E23 -> 0
A24: General State Aid/Evidence-Based Funding Anticipation Certificates
A25: Total (All Funds) | F25: =SUM(C25+D25)-E25 -> 0
A26: OTHER SHORT-TERM BORROWING
A27: Total Other Short-Term Borrowing (Describe & Itemize) | F27: =SUM(C27+D27)-E27 -> 0
A29: SCHEDULE OF LONG-TERM DEBT
A30: Identification or Name of Issue | B30: Date of Issue (mm/dd/yy) | C30: Amount of Original Issue | D30: Type of Issue * | E30: ="Outstanding Beginning July 1, "&'AFR22'!$E$2-1 -> Outstanding Beginning July 1, 2021 | F30: ="Issued July 1, "&'AFR22'!$E$2-1&" thru June 30, "&'AFR22'!$E$2 -> Issued July 1, 2021 thru June 30, 2022 | G30: Any differences (Described and Itemize) | H30: ="Retired July 1, "&'AFR22'!$E$2-1&" thru June 30, "&'AFR22'!$E$2 -> Retired July 1, 2021 thru June 30, 2022 | I30: ="Outstanding Ending June 30, "&'AFR22'!$E$2 -> Outstanding Ending June 30, 2022 | J30: Amount to be Provided for Payment on Long-Term Debt
I31: =((E31+F31)-H31)+G31 -> 0
I32: =((E32+F32)-H32)+G32 -> 0
I33: =((E33+F33)-H33)+G33 -> 0
I34: 0
I35: 0
I36: 0
I37: 0
I38: 0
I39: 0
I40: 0
I41: 0
I42: 0
I43: 0
I44: 0
I45: 0
I46: 0
I47: 0
I48: 0
C49: =SUM(C31:C48) -> 0 | E49: =SUM(E31:E48) -> 0 | F49: 0 | G49: 0 | H49: 0 | I49: 0 | J49: 0
A51: • Each type of debt issued must be identified separately with the amount:
A52: 1. Working Cash Fund Bonds | B52: 4. Fire Prevent, Safety, Environmental and Energy Bonds | E52: 7. GASB 87 Leases | H52: 10. Other
A53: 2. Funding Bonds | B53: 5. Tort Judgment Bonds | E53: 8. Other | H53: 11. Other
A54: 3. Refunding Bonds | B54: 6. Building Bonds | E54: 9. Other | H54: 12. Other

Sheet Rest Tax Levies-Tort Im 27
A1: SCHEDULE OF RESTRICTED LOCAL TAX LEVIES AND SELECTED REVENUE SOURCES
A2: Description (Enter Whole Dollars) | F2: Account No | G2: Tort Immunity a | H2: Special Education | I2: Area Vocational Construction | J2: School Facility Occupation Taxes b | K2: Driver Education
A3: ="Cash Basis Fund Balance as of July 1, "&'AFR22'!E2-1 -> Cash Basis Fund Balance as of July 1, 2021
A4: RECEIPTS:
A5: Ad Valorem Taxes Received by District | F5: 10, 20, 40 or 50-1100, 80 | G5: ='Revenues 10-15'!J12+'Revenues 10-15'!J18 -> 0
A6: Earnings on Investments | F6: 10, 20, 40, 50 or 60-1500, 80 | G6: ='Revenues 10-15'!J67 -> 0
A7: Drivers' Education Fees | F7: 10-1970
A8: School Facility Occupation Tax Proceeds | F8: 30 or 60-1983
A9: Driver Education | F9: 10 or 20-3370
A10: Other Receipts (Describe & Itemize) | F10: -- | G10: ='Revenues 10-15'!J110+'Revenues 10-15'!J172+'Revenues 10-15'!J269 -> 0
A11: Sale of Bonds | F11: 10, 20, 40 or 60-7200
A12: Total Receipts | G12: =SUM(G5:G11) -> 0 | H12: =SUM(H5:H11) -> 0 | I12: =SUM(I5:I11) -> 0 | J12: =SUM(J5:J11) -> 0 | K12: =SUM(K5:K11) -> 0
A13: DISBURSEMENTS:
A14: Instruction | F14: 10 or 50-1000
A15: Facilities Acquisition & Construction Services | F15: 20 or 60-2530
A16: Tort Immunity Services | F16: 80 | G16: ='Expenditures 16-24'!K429 -> 0
A17: DEBT SERVICE
A18: Debt Services - Interest on Long-Term Debt | F18: 30-5200
A19: Debt Services - Principal Payments on Long-Term Debt (Lease/Purchase Principal Retired) | F19: 30-5300
A20: Debt Services Other (Describe & Itemize) | F20: 30-5400
A21: Total Debt Services | J21: =SUM(J18:J20) -> 0
A22: Other Disbursements (Describe & Itemize) | F22: --
A23: Total Disbursements | G23: =SUM(G14:G16,G21,G22) -> 0 | H23: =SUM(H14:H16,H21,H22) -> 0 | I23: =SUM(I14:I16,I21,I22) -> 0 | J23: =SUM(J14:J16,J21,J22) -> 0 | K23: =SUM(K14:K16,K21,K22) -> 0
A24: ="Ending Cash Basis Fund Balance as of June 30, "&'AFR22'!E2 -> Ending Cash Basis Fund Balance as of June 30, 2022 | G24: =SUM(G3,G12)-G23 -> 0 | H24: =SUM(H3,H12)-H23 -> 0 | I24: =SUM(I3,I12)-I23 -> 0 | J24: =SUM(J3,J12)-J23 -> 0 | K24: =SUM(K3,K12)-K23 -> 0
A25: Reserved Cash Balance | F25: 714
A26: Unreserved Cash Balance | F26: 730 | G26: =G24-G25 -> 0 | H26: =H24-H25 -> 0 | I26: =I24-I25 -> 0 | J26: =J24-J25 -> 0 | K26: =K24-K25 -> 0
A28: SCHEDULE OF TORT IMMUNITY EXPENDITURES a
A30: Yes | C30: No | E30: Has the entity established an insurance reserve pursuant to 745 ILCS 10/9-103?
E31: If yes, list in the aggregate the following: | F31: Total Claims Payments: | G31: ='Expenditures 16-24'!K429 -> 0
F32: Total Reserve Remaining: | G32: =G26 -> 0
A34: In the following categories, itemize the Tort Immunity expenditures in line 31 above. Enter total dollar amount for each category.
A35: Expenditures:
A36: Workers' Compensation Act and/or Workers' Occupational Disease Act
A37: Unemployment Insurance Act
A38: Insurance (Regular or Self-Insurance)
A39: Risk Management and Claims Service
A40: Judgments/Settlements
A41: Educational, Inspectional, Supervisory Services Related to Loss Prevention and/or Reduction
A42: Reciprocal Insurance Payments (Insurance Code 72, 76, and 81)
A43: Legal Services
A44: Principal and Interest on Tort Bonds
A45: Other -Explain on Itemization 44 tab
A46: Total | G46: =G31-SUM(G36:G45) -> 0
B47: G31 (Total Tort Expenditures) minus (G36 through G45) must equal 0 | G47: =IF(OR((G46>5),(G46<-5),(G36=""),(G37=""),(G38=""),(G39=""),(G40=""),(G41=""),(G42=""),(G43=""),(G44=""),(G45="")),"ERROR. If N/A, enter 0 in G36-G45","OK") -> ERROR. If N/A, enter 0 in G36-G45
B49: Schedules for Tort Immunity are to be completed for the revenues and expenditures reported in the Tort Immunity Fund (80) during the year.
B50: 55 ILCS 5/5-1006.7

Sheet CARES CRRSA ARP 28-35
A1: CARES, CRRSA, and ARP SCHEDULE - FY 2022
A3: Please read schedule instructions before completing.
A4: Did the school district/joint agreement receive/expend CARES, CRRSA, or ARP Federal Stimulus Funds in FY 2022? | E4: Yes | H4: No
A5: If the answer to the above question is "YES", this schedule must be completed.
A6: PLEASE DO NOT REMOVE AND REINSERT THIS SCHEDULE INTO THE AFR. IF THE LINKS ARE BROKEN, THE AFR WILL BE SENT BACK TO THE AUDITOR FOR CORRECTION.
A7: Part 1: CARES, CRRSA, and ARP REVENUE
A8: Revenue Section A | B8: Section A is for revenue recognized in FY 2022 reported on the FY 2022 AFR for FY 2020 and/or FY 2021 EXPENDITURES claimed on July 1, 2021, through June 30, 2022, FRIS grant expenditure reports for expenditures reported in the prior year FY 2020 and/or FY 2021 AFR.
A9: Description (Enter Whole Dollars) *See instructions for detailed descriptions of revenue | C9: (10) | D9: (20) | E9: (30) | F9: (40) | G9: (50) | H9: (60) | I9: (70) | J9: (80) | K9: (90) | L9: Total
B11: Acct # | C11: Educational | D11: Operations & Maintenance | E11: Debt Services | F11: Transportation | G11: Municipal Retirement/ Social Security | H11: Capital Projects | I11: Working Cash | J11: Tort | K11: Fire Prevention & Safety
A12: ESSER I (only) (CARES Act) (FRIS SUB PROGRAM CODES: ER, DE, EE, PL) | B12: 4998 | L12: =(C12+D12+F12+G12+H12+K12) -> 0
A13: ESSER II (only) (CRRSA Act) (FRIS SUB PROGRAM CODES: E2, FG, SE, PM, CP, D2) | B13: 4998 | L13: =(C13+D13+F13+G13+H13+K13) -> 0
A14: GEER I (only) (CARES Act) (FRIS SUB PROGRAM CODE: DG, EC) | B14: 4998 | L14: 0
A15: Other CARES Act Revenue (not accounted for above) (Describe on Itemization tab) | B15: 4998 | L15: 0
A16: Other CRRSA Revenue (not accounted for above) (Describe on Itemization tab) | B16: 4998 | L16: 0
A17: Other ARP Revenue (not accounted for above) (Describe on Itemization tab) | B17: 4998 | L17: 0
A18: Total Revenue Section A | C18: =SUM(C12:C17) -> 0 | D18: =SUM(D12:D17) -> 0 | F18: =SUM(F12:F17) -> 0 | G18: =SUM(G12:G17) -> 0 | H18: =SUM(H12:H17) -> 0 | K18: =SUM(K12:K17) -> 0 | L18: =SUM(L12:L17) -> 0
A19: Revenue Section B | B19: Section B is for revenue recognized in FY 2022 reported on the FY 2022 AFR and for FY 2022 EXPENDITURES claimed on July 1, 2021, through June 30, 2022, FRIS grant expenditure reports and reported in the FY 2022 AFR.
A20: Description (Enter Whole Dollars) *See instructions for detailed descriptions of revenue | C20: (10) | D20: (20) | E20: (30) | F20: (40) | G20: (50) | H20: (60) | I20: (70) | J20: (80) | K20: (90) | L20: Total
B22: Acct # | C22: Educational | D22: Operations & Maintenance | E22: Debt Services | F22: Transportation | G22: Municipal Retirement/ Social Security | H22: Capital Projects | I22: Working Cash | J22: Tort | K22: Fire Prevention & Safety
A23: ESSER I (only) (CARES Act) (FRIS SUB PROGRAM CODES: ER, DE, EE, PL) | B23: 4998 | L23: =(C23+D23+F23+G23+H23+K23) -> 0
A24: ESSER II (only) (CRRSA Act) (FRIS SUB PROGRAM CODES: E2, FG, SE, PM, CP, D2) | B24: 4998 | L24: =(C24+D24+F24+G24+H24+K24) -> 0
A25: GEER I (only) (CARES Act) (FRIS SUB PROGRAM CODE: DG, EC) | B25: 4998 | L25: =(C25+D25+F25+G25+H25+K25) -> 0
A26: GEER II (only) (CRRSA) (FRIS SUBPROGRAM CODE: GO, RC, JK) | B26: 4998 | L26: 0
A27: ESSER III (only) (ARP) (FRIS SUBPROGRAM CODE: E3, CO) | B27: 4998 | L27: 0
A28: CRRSA Child Nutrition (CRRSA) (FRIS SUBPROGRAM CODE: SN) | B28: 4210 | L28: =(C28+D28+F28+G28+H28+K28) -> 0
A29: ARP Child Nutrition (ARP) (FRIS SUBPROGRAM CODE: BT, SC) | B29: 4210 | L29: 0
A30: ARP IDEA (ARP) (FRIS SUBPROGRAM CODE: ID, EI, PS) | B30: 4998 | L30: 0
A31: ARP Homeless I (ARP) (FRIS SUBPROGRAM CODE: HM, HL) | B31: 4998 | L31: 0
A32: CURES (Coronavirus State and Local Fiscal Recovery Funds) (FRIS PROGRAM CODE: BG, AP, FS) | B32: 4998 | L32: 0
A33: Other CARES Act Revenue (not accounted for above) (Describe on Itemization tab) | B33: 4998 | L33: 0
A34: Other CRRSA Revenue (not accounted for above) (Describe on Itemization tab) | B34: 4998 | L34: 0
A35: Other ARP Revenue (not accounted for above) (Describe on Itemization tab) | B35: 4998 | L35: 0
A36: (Remaining) Other Federal Revenues in Revenue Acct 4998 - not accounted for elsewhere in Revenue Section A or Revenue Section B | B36: 4998 | L36: 0
A37: Total Revenue Section B | C37: =SUM(C23:C36) -> 0 | D37: =SUM(D23:D36) -> 0 | F37: =SUM(F23:F36) -> 0 | G37: =SUM(G23:G36) -> 0 | H37: =SUM(H23:H36) -> 0 | K37: =SUM(K23:K36) -> 0 | L37: =SUM(L23:L36) -> 0
A38: Revenue Section C: Reconciliation for Revenue Account 4998 - Total Revenue
A39: Total Other Federal Revenue (Section A plus Section B) | B39: 4998 | C39: =SUM(C18+C37)-C29-C28 -> 0 | D39: =SUM(D18+D37)-D29-D28 -> 0 | F39: =SUM(F18+F37)-F29-F28 -> 0 | G39: =SUM(G18+G37)-G29-G28 -> 0 | H39: =SUM(H18+H37)-H29-H28 -> 0 | K39: =SUM(K18+K37)-K29-K28 -> 0 | L39: =SUM(L18+L37)-L29-L28 -> 0
A40: Total Other Federal Revenue from Revenue Tab | B40: 4998 | C40: ='Revenues 10-15'!C267 -> 0 | D40: ='Revenues 10-15'!D267 -> 0 | F40: ='Revenues 10-15'!F267 -> 0 | G40: ='Revenues 10-15'!G267 -> 0 | H40: ='Revenues 10-15'!H267 -> 0 | K40: ='Revenues 10-15'!K267 -> 0 | L40: =C40+D40+F40+G40+H40+K40 -> 0
A41: Difference (must equal 0) | C41: =C39-C40 -> 0 | D41: =D39-D40 -> 0 | F41: =F39-F40 -> 0 | G41: =G39-G40 -> 0 | H41: 0 | K41: =K39-K40 -> 0 | L41: =L39-L40 -> 0
A42: Error must be corrected before submitting to ISBE | C42: =IF(OR((C41>1),(C41<-1)),"ERROR","OK") -> OK | D42: =IF(OR((D41>1),(D41<-1)),"ERROR","OK") -> OK | F42: =IF(OR((F41>1),(F41<-1)),"ERROR","OK") -> OK | G42: =IF(OR((G41>1),(G41<-1)),"ERROR","OK") -> OK | H42: =IF(OR((H41>1),(H41<-1)),"ERROR","OK") -> OK | K42: =IF(OR((K41>1),(K41<-1)),"ERROR","OK") -> OK | L42: =IF(OR((L41>10),(L41<-10)),"ERROR","OK") -> OK
A44: Part 2: CARES, CRRSA, and ARP EXPENDITURES
A45: Review of the July 1, 2021 through June 30, 2022 FRIS Expenditures reports may assist in determining the expenditures to use below.
A46: Expenditure Section A:
A47: ESSER I EXPENDITURES (CARES) | D47: -------------------------------------------------------------------------------------------DISBURSEMENTS------------------------------------------------------------------------------------
D48: (100) | E48: (200) | F48: (300) | G48: (400) | H48: (500) | I48: (600) | J48: (700) | K48: (800) | L48: (900)
D49: Salaries | E49: Employee Benefits | F49: Purchased Services | G49: Supplies & Materials | H49: Capital Outlay | I49: Other | J49: Non-Capitalized Equipment | K49: Termination Benefits | L49: Total Expenditures
A50: FUNCTION
A51: 1. List the total expenditures for the Functions 1000 and 2000 below
A52: INSTRUCTION Total Expenditures | B52: 1000 | L52: =SUM(D52:J52) -> 0
A53: SUPPORT SERVICES Total Expenditures | B53: 2000 | L53: =SUM(D53:J53) -> 0
A55: 2. List the specific expenditures in Functions: 2530, 2540, & 2560 below (these expenditures are also included in Function 2000 above)
A56: Facilities Acquisition and Construction Services (Total) | B56: 2530 | L56: =D56+E56+F56+G56+H56+I56+J56 -> 0
A57: OPERATION & MAINTENANCE OF PLANT SERVICES (Total) | B57: 2540 | L57: =SUM(D57:J57) -> 0
A58: FOOD SERVICES (Total) | B58: 2560 | L58: =SUM(D58:J58) -> 0
A60: 3. List the technology expenses in Functions: 1000 & 2000 below (these expenditures are also included in Functions 1000 & 2000 above).
A61: TECHNOLOGY-RELATED SUPPLIES, PURCHASE SERVICES, EQUIPMENT (Included in Function 1000) | B61: 1000 | L61: =F61+G61+H61+J61 -> 0
A62: TECHNOLOGY-RELATED SUPPLIES, PURCHASE SERVICES, EQUIPMENT (Included in Function 2000) | B62: 2000 | L62: =F62+G62+H62+J62 -> 0
A63: TOTAL TECHNOLOGY-RELATED SUPPLIES, PURCHASE SERVICES, EQUIPMENT (Total TECHNOLOGY included in all Expenditure Functions) | B63: Total Technology | F63: =SUM(F61:F62) -> 0 | G63: =SUM(G61:G62) -> 0 | H63: 0 | J63: =SUM(J61:J62) -> 0 | L63: =F63+G63+H63+J63 -> 0
A64: Expenditure Section B:
A65: ESSER II EXPENDITURES (CRRSA) | D65: -------------------------------------------------------------------------------------------DISBURSEMENTS------------------------------------------------------------------------------------
D66: (100) | E66: (200) | F66: (300) | G66: (400) | H66: (500) | I66: (600) | J66: (700) | K66: (800) | L66: (900)
D67: Salaries | E67: Employee Benefits | F67: Purchased Services | G67: Supplies & Materials | H67: Capital Outlay | I67: Other | J67: Non-Capitalized Equipment | K67: Termination Benefits | L67: Total Expenditures
A68: FUNCTION
A69: 1. List the total expenditures for the Functions 1000 and 2000 below
A70: INSTRUCTION Total Expenditures | B70: 1000 | L70: =SUM(D70:J70) -> 0
A71: SUPPORT SERVICES Total Expenditures | B71: 2000 | L71: =SUM(D71:J71) -> 0
A73: 2. List the specific expenditures in Functions: 2530, 2540, & 2560 below (these expenditures are also included in Function 2000 above)
A74: Facilities Acquisition and Construction Services (Total) | B74: 2530 | L74: =D74+E74+F74+G74+H74+I74+J74 -> 0
A75: OPERATION & MAINTENANCE OF PLANT SERVICES (Total) | B75: 2540 | L75: =SUM(D75:J75) -> 0
A76: FOOD SERVICES (Total) | B76: 2560 | L76: =SUM(D76:J76) -> 0
A78: 3. List the technology expenses in Functions: 1000 & 2000 below (these expenditures are also included in Functions 1000 & 2000 above).
A79: TECHNOLOGY-RELATED SUPPLIES, PURCHASE SERVICES, EQUIPMENT (Included in Function 1000) | B79: 1000 | L79: =F79+G79+H79+J79 -> 0
A80: TECHNOLOGY-RELATED SUPPLIES, PURCHASE SERVICES, EQUIPMENT (Included in Function 2000) | B80: 2000 | L80: =F80+G80+H80+J80 -> 0
A81: TOTAL TECHNOLOGY-RELATED SUPPLIES, PURCHASE SERVICES, EQUIPMENT (Total TECHNOLOGY included in all Expenditure Functions) | B81: Total Technology | F81: =SUM(F79:F80) -> 0 | G81: =SUM(G79:G80) -> 0 | H81: 0 | J81: =SUM(J79:J80) -> 0 | L81: =F81+G81+H81+J81 -> 0
A82: Expenditure Section C:
A83: GEER I EXPENDITURES (CARES) | D83: -------------------------------------------------------------------------------------------DISBURSEMENTS------------------------------------------------------------------------------------
D84: (100) | E84: (200) | F84: (300) | G84: (400) | H84: (500) | I84: (600) | J84: (700) | K84: (800) | L84: (900)
D85: Salaries | E85: Employee Benefits | F85: Purchased Services | G85: Supplies & Materials | H85: Capital Outlay | I85: Other | J85: Non-Capitalized Equipment | K85: Termination Benefits | L85: Total Expenditures
A86: FUNCTION
A87: 1. List the total expenditures for the Functions 1000 and 2000 below
A88: INSTRUCTION Total Expenditures | B88: 1000 | L88: =SUM(D88:J88) -> 0
A89: SUPPORT SERVICES Total Expenditures | B89: 2000 | L89: =SUM(D89:J89) -> 0
A91: 2. List the specific expenditures in Functions: 2530, 2540, & 2560 below (these expenditures are also included in Function 2000 above)
A92: Facilities Acquisition and Construction Services (Total) | B92: 2530 | L92: =D92+E92+F92+G92+H92+I92+J92 -> 0
A93: OPERATION & MAINTENANCE OF PLANT SERVICES (Total) | B93: 2540 | L93: =SUM(D93:J93) -> 0
A94: FOOD SERVICES (Total) | B94: 2560 | L94: =SUM(D94:J94) -> 0
A96: 3. List the technology expenses in Functions: 1000 & 2000 below (these expenditures are also included in Functions 1000 & 2000 above).
A97: TECHNOLOGY-RELATED SUPPLIES, PURCHASE SERVICES, EQUIPMENT (Included in Function 1000) | B97: 1000 | L97: =F97+G97+H97+J97 -> 0
A98: TECHNOLOGY-RELATED SUPPLIES, PURCHASE SERVICES, EQUIPMENT (Included in Function 2000) | B98: 2000 | L98: =F98+G98+H98+J98 -> 0
A99: TOTAL TECHNOLOGY-RELATED SUPPLIES, PURCHASE SERVICES, EQUIPMENT (Total TECHNOLOGY included in all Expenditure Functions) | B99: Total Technology | F99: =SUM(F97:F98) -> 0 | G99: =SUM(G97:G98) -> 0 | H99: 0 | J99: =SUM(J97:J98) -> 0 | L99: =F99+G99+H99+J99 -> 0
A100: Expenditure Section D:
A101: GEER II EXPENDITURES (CRRSA) | D101: -------------------------------------------------------------------------------------------DISBURSEMENTS------------------------------------------------------------------------------------
D102: (100) | E102: (200) | F102: (300) | G102: (400) | H102: (500) | I102: (600) | J102: (700) | K102: (800) | L102: (900)
D103: Salaries | E103: Employee Benefits | F103: Purchased Services | G103: Supplies & Materials | H103: Capital Outlay | I103: Other | J103: Non-Capitalized Equipment | K103: Termination Benefits | L103: Total Expenditures
A104: FUNCTION
A105: 1. List the total expenditures for the Functions 1000 and 2000 below
A106: INSTRUCTION Total Expenditures | B106: 1000 | L106: =SUM(D106:J106) -> 0
A107: SUPPORT SERVICES Total Expenditures | B107: 2000 | L107: =SUM(D107:J107) -> 0
A109: 2. List the specific expenditures in Functions: 2530, 2540, & 2560 below (these expenditures are also included in Function 2000 above)
A110: Facilities Acquisition and Construction Services (Total) | B110: 2530 | L110: =D110+E110+F110+G110+H110+I110+J110 -> 0
A111: OPERATION & MAINTENANCE OF PLANT SERVICES (Total) | B111: 2540 | L111: =SUM(D111:J111) -> 0
A112: FOOD SERVICES (Total) | B112: 2560 | L112: =SUM(D112:J112) -> 0
A114: 3. List the technology expenses in Functions: 1000 & 2000 below (these expenditures are also included in Functions 1000 & 2000 above).
A115: TECHNOLOGY-RELATED SUPPLIES, PURCHASE SERVICES, EQUIPMENT (Included in Function 1000) | B115: 1000 | L115: =F115+G115+H115+J115 -> 0
A116: TECHNOLOGY-RELATED SUPPLIES, PURCHASE SERVICES, EQUIPMENT (Included in Function 2000) | B116: 2000 | L116: =F116+G116+H116+J116 -> 0
A117: TOTAL TECHNOLOGY-RELATED SUPPLIES, PURCHASE SERVICES, EQUIPMENT (Total TECHNOLOGY included in all Expenditure Functions) | B117: Total Technology | F117: =SUM(F115:F116) -> 0 | G117: =SUM(G115:G116) -> 0 | H117: 0 | J117: =SUM(J115:J116) -> 0 | L117: =F117+G117+H117+J117 -> 0
A118: Expenditure Section E:
A119: ESSER III EXPENDITURES (ARP) | D119: -------------------------------------------------------------------------------------------DISBURSEMENTS------------------------------------------------------------------------------------
D120: (100) | E120: (200) | F120: (300) | G120: (400) | H120: (500) | I120: (600) | J120: (700) | K120: (800) | L120: (900)
D121: Salaries | E121: Employee Benefits | F121: Purchased Services | G121: Supplies & Materials | H121: Capital Outlay | I121: Other | J121: Non-Capitalized Equipment | K121: Termination Benefits | L121: Total Expenditures
A122: FUNCTION
A123: 1. List the total expenditures for the Functions 1000 and 2000 below
A124: INSTRUCTION Total Expenditures | B124: 1000 | L124: =SUM(D124:J124) -> 0
A125: SUPPORT SERVICES Total Expenditures | B125: 2000 | L125: =SUM(D125:J125) -> 0
A127: 2. List the specific expenditures in Functions: 2530, 2540, & 2560 below (these expenditures are also included in Function 2000 above)
A128: Facilities Acquisition and Construction Services (Total) | B128: 2530 | L128: =D128+E128+F128+G128+H128+I128+J128 -> 0
A129: OPERATION & MAINTENANCE OF PLANT SERVICES (Total) | B129: 2540 | L129: =SUM(D129:J129) -> 0
A130: FOOD SERVICES (Total) | B130: 2560 | L130: =SUM(D130:J130) -> 0
A132: 3. List the technology expenses in Functions: 1000 & 2000 below (these expenditures are also included in Functions 1000 & 2000 above).
A133: TECHNOLOGY-RELATED SUPPLIES, PURCHASE SERVICES, EQUIPMENT (Included in Function 1000) | B133: 1000 | L133: =F133+G133+H133+J133 -> 0
A134: TECHNOLOGY-RELATED SUPPLIES, PURCHASE SERVICES, EQUIPMENT (Included in Function 2000) | B134: 2000 | L134: =F134+G134+H134+J134 -> 0
A135: TOTAL TECHNOLOGY-RELATED SUPPLIES, PURCHASE SERVICES, EQUIPMENT (Total TECHNOLOGY included in all Expenditure Functions) | B135: Total Technology | F135: =SUM(F133:F134) -> 0 | G135: =SUM(G133:G134) -> 0 | H135: 0 | J135: =SUM(J133:J134) -> 0 | L135: =F135+G135+H135+J135 -> 0
A136: Expenditure Section F:
A137: CRRSA Child Nutrition (CRRSA) | D137: -------------------------------------------------------------------------------------------DISBURSEMENTS------------------------------------------------------------------------------------
D138: (100) | E138: (200) | F138: (300) | G138: (400) | H138: (500) | I138: (600) | J138: (700) | K138: (800) | L138: (900)
D139: Salaries | E139: Employee Benefits | F139: Purchased Services | G139: Supplies & Materials | H139: Capital Outlay | I139: Other | J139: Non-Capitalized Equipment | K139: Termination Benefits | L139: Total Expenditures
A140: FUNCTION
A141: 1. List the total expenditures for the Functions 1000 and 2000 below
A142: INSTRUCTION Total Expenditures | B142: 1000 | L142: =SUM(D142:J142) -> 0
A143: SUPPORT SERVICES Total Expenditures | B143: 2000 | L143: =SUM(D143:J143) -> 0
A145: 2. List the specific expenditures in Functions: 2530, 2540, & 2560 below (these expenditures are also included in Function 2000 above)
A146: Facilities Acquisition and Construction Services (Total) | B146: 2530 | L146: =D146+E146+F146+G146+H146+I146+J146 -> 0
A147: OPERATION & MAINTENANCE OF PLANT SERVICES (Total) | B147: 2540 | L147: =SUM(D147:J147) -> 0
A148: FOOD SERVICES (Total) | B148: 2560 | L148: =SUM(D148:J148) -> 0
A150: 3. List the technology expenses in Functions: 1000 & 2000 below (these expenditures are also included in Functions 1000 & 2000 above).
A151: TECHNOLOGY-RELATED SUPPLIES, PURCHASE SERVICES, EQUIPMENT (Included in Function 1000) | B151: 1000 | L151: =F151+G151+H151+J151 -> 0
A152: TECHNOLOGY-RELATED SUPPLIES, PURCHASE SERVICES, EQUIPMENT (Included in Function 2000) | B152: 2000 | L152: =F152+G152+H152+J152 -> 0
A153: TOTAL TECHNOLOGY-RELATED SUPPLIES, PURCHASE SERVICES, EQUIPMENT (Total TECHNOLOGY included in all Expenditure Functions) | B153: Total Technology | F153: =SUM(F151:F152) -> 0 | G153: =SUM(G151:G152) -> 0 | H153: 0 | J153: =SUM(J151:J152) -> 0 | L153: =F153+G153+H153+J153 -> 0
A154: Expenditure Section G:
A155: ARP Child Nutrition (ARP) | D155: -------------------------------------------------------------------------------------------DISBURSEMENTS------------------------------------------------------------------------------------
D156: (100) | E156: (200) | F156: (300) | G156: (400) | H156: (500) | I156: (600) | J156: (700) | K156: (800) | L156: (900)
D157: Salaries | E157: Employee Benefits | F157: Purchased Services | G157: Supplies & Materials | H157: Capital Outlay | I157: Other | J157: Non-Capitalized Equipment | K157: Termination Benefits | L157: Total Expenditures
A158: FUNCTION
A159: 1. List the total expenditures for the Functions 1000 and 2000 below
A160: INSTRUCTION Total Expenditures | B160: 1000 | L160: =SUM(D160:J160) -> 0
A161: SUPPORT SERVICES Total Expenditures | B161: 2000 | L161: =SUM(D161:J161) -> 0
A163: 2. List the specific expenditures in Functions: 2530, 2540, & 2560 below (these expenditures are also included in Function 2000 above)
A164: Facilities Acquisition and Construction Services (Total) | B164: 2530 | L164: =D164+E164+F164+G164+H164+I164+J164 -> 0
A165: OPERATION & MAINTENANCE OF PLANT SERVICES (Total) | B165: 2540 | L165: =SUM(D165:J165) -> 0
A166: FOOD SERVICES (Total) | B166: 2560 | L166: =SUM(D166:J166) -> 0
A168: 3. List the technology expenses in Functions: 1000 & 2000 below (these expenditures are also included in Functions 1000 & 2000 above).
A169: TECHNOLOGY-RELATED SUPPLIES, PURCHASE SERVICES, EQUIPMENT (Included in Function 1000) | B169: 1000 | L169: =F169+G169+H169+J169 -> 0
A170: TECHNOLOGY-RELATED SUPPLIES, PURCHASE SERVICES, EQUIPMENT (Included in Function 2000) | B170: 2000 | L170: =F170+G170+H170+J170 -> 0
A171: TOTAL TECHNOLOGY-RELATED SUPPLIES, PURCHASE SERVICES, EQUIPMENT (Total TECHNOLOGY included in all Expenditure Functions) | B171: Total Technology | F171: =SUM(F169:F170) -> 0 | G171: =SUM(G169:G170) -> 0 | H171: 0 | J171: =SUM(J169:J170) -> 0 | L171: =F171+G171+H171+J171 -> 0
A172: Expenditure Section H:
A173: ARP IDEA (ARP) | D173: -------------------------------------------------------------------------------------------DISBURSEMENTS------------------------------------------------------------------------------------
D174: (100) | E174: (200) | F174: (300) | G174: (400) | H174: (500) | I174: (600) | J174: (700) | K174: (800) | L174: (900)
D175: Salaries | E175: Employee Benefits | F175: Purchased Services | G175: Supplies & Materials | H175: Capital Outlay | I175: Other | J175: Non-Capitalized Equipment | K175: Termination Benefits | L175: Total Expenditures
A176: FUNCTION
A177: 1. List the total expenditures for the Functions 1000 and 2000 below
A178: INSTRUCTION Total Expenditures | B178: 1000 | L178: =SUM(D178:J178) -> 0
A179: SUPPORT SERVICES Total Expenditures | B179: 2000 | L179: =SUM(D179:J179) -> 0
A181: 2. List the specific expenditures in Functions: 2530, 2540, & 2560 below (these expenditures are also included in Function 2000 above)
A182: Facilities Acquisition and Construction Services (Total) | B182: 2530 | L182: =D182+E182+F182+G182+H182+I182+J182 -> 0
A183: OPERATION & MAINTENANCE OF PLANT SERVICES (Total) | B183: 2540 | L183: =SUM(D183:J183) -> 0
A184: FOOD SERVICES (Total) | B184: 2560 | L184: =SUM(D184:J184) -> 0
A186: 3. List the technology expenses in Functions: 1000 & 2000 below (these expenditures are also included in Functions 1000 & 2000 above).
A187: TECHNOLOGY-RELATED SUPPLIES, PURCHASE SERVICES, EQUIPMENT (Included in Function 1000) | B187: 1000 | L187: =F187+G187+H187+J187 -> 0
A188: TECHNOLOGY-RELATED SUPPLIES, PURCHASE SERVICES, EQUIPMENT (Included in Function 2000) | B188: 2000 | L188: =F188+G188+H188+J188 -> 0
A189: TOTAL TECHNOLOGY-RELATED SUPPLIES, PURCHASE SERVICES, EQUIPMENT (Total TECHNOLOGY included in all Expenditure Functions) | B189: Total Technology | F189: =SUM(F187:F188) -> 0 | G189: =SUM(G187:G188) -> 0 | H189: 0 | J189: =SUM(J187:J188) -> 0 | L189: =F189+G189+H189+J189 -> 0
A190: Expenditure Section I:
A191: ARP Homeless I (ARP) | D191: -------------------------------------------------------------------------------------------DISBURSEMENTS------------------------------------------------------------------------------------
D192: (100) | E192: (200) | F192: (300) | G192: (400) | H192: (500) | I192: (600) | J192: (700) | K192: (800) | L192: (900)
D193: Salaries | E193: Employee Benefits | F193: Purchased Services | G193: Supplies & Materials | H193: Capital Outlay | I193: Other | J193: Non-Capitalized Equipment | K193: Termination Benefits | L193: Total Expenditures
A194: FUNCTION
A195: 1. List the total expenditures for the Functions 1000 and 2000 below
A196: INSTRUCTION Total Expenditures | B196: 1000 | L196: =SUM(D196:J196) -> 0
A197: SUPPORT SERVICES Total Expenditures | B197: 2000 | L197: =SUM(D197:J197) -> 0
A199: 2. List the specific expenditures in Functions: 2530, 2540, & 2560 below (these expenditures are also included in Function 2000 above)
A200: Facilities Acquisition and Construction Services (Total) | B200: 2530 | L200: =D200+E200+F200+G200+H200+I200+J200 -> 0
A201: OPERATION & MAINTENANCE OF PLANT SERVICES (Total) | B201: 2540 | L201: =SUM(D201:J201) -> 0
A202: FOOD SERVICES (Total) | B202: 2560 | L202: =SUM(D202:J202) -> 0
A204: 3. List the technology expenses in Functions: 1000 & 2000 below (these expenditures are also included in Functions 1000 & 2000 above).
A205: TECHNOLOGY-RELATED SUPPLIES, PURCHASE SERVICES, EQUIPMENT (Included in Function 1000) | B205: 1000 | L205: =F205+G205+H205+J205 -> 0
A206: TECHNOLOGY-RELATED SUPPLIES, PURCHASE SERVICES, EQUIPMENT (Included in Function 2000) | B206: 2000 | L206: =F206+G206+H206+J206 -> 0
A207: TOTAL TECHNOLOGY-RELATED SUPPLIES, PURCHASE SERVICES, EQUIPMENT (Total TECHNOLOGY included in all Expenditure Functions) | B207: Total Technology | F207: =SUM(F205:F206) -> 0 | G207: =SUM(G205:G206) -> 0 | H207: 0 | J207: =SUM(J205:J206) -> 0 | L207: =F207+G207+H207+J207 -> 0
A208: Expenditure Section J:
A209: CURES (Coronavirus State and Local Fiscal Recovery Funds) | D209: -------------------------------------------------------------------------------------------DISBURSEMENTS------------------------------------------------------------------------------------
D210: (100) | E210: (200) | F210: (300) | G210: (400) | H210: (500) | I210: (600) | J210: (700) | K210: (800) | L210: (900)
D211: Salaries | E211: Employee Benefits | F211: Purchased Services | G211: Supplies & Materials | H211: Capital Outlay | I211: Other | J211: Non-Capitalized Equipment | K211: Termination Benefits | L211: Total Expenditures
A212: FUNCTION
A213: 1. List the total expenditures for the Functions 1000 and 2000 below
A214: INSTRUCTION Total Expenditures | B214: 1000 | L214: =SUM(D214:J214) -> 0
A215: SUPPORT SERVICES Total Expenditures | B215: 2000 | L215: =SUM(D215:J215) -> 0
A217: 2. List the specific expenditures in Functions: 2530, 2540, & 2560 below (these expenditures are also included in Function 2000 above)
A218: Facilities Acquisition and Construction Services (Total) | B218: 2530 | L218: =D218+E218+F218+G218+H218+I218+J218 -> 0
A219: OPERATION & MAINTENANCE OF PLANT SERVICES (Total) | B219: 2540 | L219: =SUM(D219:J219) -> 0
A220: FOOD SERVICES (Total) | B220: 2560 | L220: =SUM(D220:J220) -> 0
A222: 3. List the technology expenses in Functions: 1000 & 2000 below (these expenditures are also included in Functions 1000 & 2000 above).
A223: TECHNOLOGY-RELATED SUPPLIES, PURCHASE SERVICES, EQUIPMENT (Included in Function 1000) | B223: 1000 | L223: =F223+G223+H223+J223 -> 0
A224: TECHNOLOGY-RELATED SUPPLIES, PURCHASE SERVICES, EQUIPMENT (Included in Function 2000) | B224: 2000 | L224: =F224+G224+H224+J224 -> 0
... 66 more rows

Sheet Cap Outlay Deprec 36
A1: SCHEDULE OF CAPITAL OUTLAY AND DEPRECIATION
A2: Description of Assets (Enter Whole Dollars) | B2: Acct # | C2: ="Cost Beginning July 1, "&'AFR22'!$E$2-1 -> Cost Beginning July 1, 2021 | D2: ="Add: Additions July 1, "&'AFR22'!E2-1&" thru June 30, "&'AFR22'!E2 -> Add: Additions July 1, 2021 thru June 30, 2022 | E2: ="Less: Deletions July 1, "&'AFR22'!E2-1&" thru June 30, "&'AFR22'!E2 -> Less: Deletions July 1, 2021 thru June 30, 2022 | F2: ="Cost Ending June 30, "&'AFR22'!E2 -> Cost Ending June 30, 2022 | G2: Life In Years | H2: ="Accumlated Depreciation Beginning July 1, "&'AFR22'!$E$2-1 -> Accumlated Depreciation Beginning July 1, 2021 | I2: ="Add: Depreciation Allowable July 1, "&'AFR22'!E2-1&" thru June 30, "&'AFR22'!E2 -> Add: Depreciation Allowable July 1, 2021 thru June 30, 2022 | J2: ="Less: Depreciation Deletions July 1, "&'AFR22'!E2-1&" thru June 30, "&'AFR22'!E2 -> Less: Depreciation Deletions July 1, 2021 thru June 30, 2022 | K2: ="Accumulated Depreciation Ending June 30, "&'AFR22'!E2 -> Accumulated Depreciation Ending June 30, 2022 | L2: ="Ending Balance Undepreciated June 30, "&'AFR22'!E2 -> Ending Balance Undepreciated June 30, 2022
A3: Works of Art & Historical Treasures | B3: 210 | F3: =(C3+D3)-E3 -> 0 | K3: =(H3+I3)-J3 -> 0 | L3: =F3-K3 -> 0
A4: Land | B4: 220
A5: Non-Depreciable Land | B5: 221 | F5: =(C5+D5)-E5 -> 0 | L5: =F5-K5 -> 0
A6: Depreciable Land | B6: 222 | F6: =(C6+D6)-E6 -> 0 | G6: 50 | K6: =(H6+I6)-J6 -> 0 | L6: =F6-K6 -> 0
A7: Buildings | B7: 230
A8: Permanent Buildings | B8: 231 | F8: =(C8+D8)-E8 -> 0 | G8: 50 | K8: =(H8+I8)-J8 -> 0 | L8: =F8-K8 -> 0
A9: Temporary Buildings | B9: 232 | F9: =(C9+D9)-E9 -> 0 | G9: 20 | K9: =(H9+I9)-J9 -> 0 | L9: =F9-K9 -> 0
A10: Improvements Other than Buildings (Infrastructure) | B10: 240 | F10: =(C10+D10)-E10 -> 0 | G10: 20 | K10: =(H10+I10)-J10 -> 0 | L10: =F10-K10 -> 0
A11: Capitalized Equipment | B11: 250
A12: 10 Yr Schedule | B12: 251 | F12: =(C12+D12)-E12 -> 0 | G12: 10 | K12: =(H12+I12)-J12 -> 0 | L12: =F12-K12 -> 0
A13: 5 Yr Schedule | B13: 252 | F13: =(C13+D13)-E13 -> 0 | G13: 5 | K13: =(H13+I13)-J13 -> 0 | L13: =F13-K13 -> 0
A14: 3 Yr Schedule | B14: 253 | F14: =(C14+D14)-E14 -> 0 | G14: 3 | K14: =(H14+I14)-J14 -> 0 | L14: =F14-K14 -> 0
A15: Construction in Progress | B15: 260 | F15: =(C15+D15)-E15 -> 0 | G15: -- | L15: =F15-K15 -> 0
A16: Total Capital Assets | B16: 200 | C16: =SUM(C3,C5:C6,C8:C10,C12:C15) -> 0 | D16: =SUM(D3,D5:D6,D8:D10,D12:D15) -> 0 | E16: =SUM(E3,E5:E6,E8:E10,E12:E15) -> 0 | F16: =SUM(F3,F5:F6,F8:F10,F12:F15) -> 0 | H16: =SUM(H3,H6,H8:H10,H12:H14,) -> 0 | I16: =SUM(I3,I6,I8:I10,I12:I14,) -> 0 | J16: =SUM(J3,J6,J8:J10,J12:J14,) -> 0 | K16: =(H16+I16)-J16 -> 0 | L16: =F16-K16 -> 0
A17: Non-Capitalized Equipment | B17: 700 | F17: =SUM('Expenditures 16-24'!I116,'Expenditures 16-24'!I155,'Expenditures 16-24'!I214,'Expenditures 16-24'!I309,'Expenditures 16-24'!I429,'Expenditures 16-24'!I454) -> 0 | G17: 10 | I17: =F17/G17 -> 0
A18: Allowable Depreciation | I18: =SUM(I16,I17) -> 0

Sheet PCTC-OEPP 37-39
A1: ="ESTIMATED OPERATING EXPENSE PER PUPIL (OEPP)/PER CAPITA TUITION CHARGE (PCTC) COMPUTATIONS ("&'AFR22'!E2-1&" - "&'AFR22'!E2&")" -> ESTIMATED OPERATING EXPENSE PER PUPIL (OEPP)/PER CAPITA TUITION CHARGE (PCTC) COMPUTATIONS (2021 - 2022)
A2: This schedule is completed for school districts only.
A4: Fund | B4: Sheet, Row | D4: ACCOUNT NO - TITLE | F4: Amount
A6: OPERATING EXPENSE PER PUPIL
A7: EXPENDITURES:
A8: ED | B8: Expenditures 16-24, L116 | D8: Total Expenditures | E8: $ | F8: ='Expenditures 16-24'!K116 -> 0
A9: O&M | B9: Expenditures 16-24, L155 | D9: Total Expenditures | F9: ='Expenditures 16-24'!K155 -> 0
A10: DS | B10: Expenditures 16-24, L178 | D10: Total Expenditures | F10: ='Expenditures 16-24'!K178 -> 0
A11: TR | B11: Expenditures 16-24, L214 | D11: Total Expenditures | F11: ='Expenditures 16-24'!K214 -> 0
A12: MR/SS | B12: Expenditures 16-24, L292 | D12: Total Expenditures | F12: ='Expenditures 16-24'!K292 -> 0
A13: TORT | B13: Expenditures 16-24, L422 | D13: Total Expenditures | F13: ='Expenditures 16-24'!K429 -> 0
D14: Total Expenditures | E14: $ | F14: =SUM(F8:F13) -> 0
A16: LESS RECEIPTS/REVENUES OR DISBURSEMENTS/EXPENDITURES NOT APPLICABLE TO THE REGULAR K-12 PROGRAM:
A18: TR | B18: Revenues 10-15, L43, Col F | C18: ='Revenues 10-15'!B43 -> 1412 | D18: ='Revenues 10-15'!A43 -> Regular - Transp Fees from Other Districts (In State) | E18: $ | F18: ='Revenues 10-15'!F43 -> 0
A19: TR | B19: Revenues 10-15, L47, Col F | C19: ='Revenues 10-15'!B47 -> 1421 | D19: ='Revenues 10-15'!A47 -> Summer Sch - Transp. Fees from Pupils or Parents (In State) | F19: ='Revenues 10-15'!F47 -> 0
A20: TR | B20: Revenues 10-15, L48, Col F | C20: ='Revenues 10-15'!B48 -> 1422 | D20: ='Revenues 10-15'!A48 -> Summer Sch - Transp. Fees from Other Districts (In State) | F20: ='Revenues 10-15'!F48 -> 0
A21: TR | B21: Revenues 10-15, L49, Col F | C21: ='Revenues 10-15'!B49 -> 1423 | D21: ='Revenues 10-15'!A49 -> Summer Sch - Transp. Fees from Other Sources (In State) | F21: ='Revenues 10-15'!F49 -> 0
A22: TR | B22: Revenues 10-15, L50 Col F | C22: ='Revenues 10-15'!B50 -> 1424 | D22: ='Revenues 10-15'!A50 -> Summer Sch - Transp. Fees from Other Sources (Out of State) | F22: ='Revenues 10-15'!F50 -> 0
A23: TR | B23: Revenues 10-15, L52, Col F | C23: ='Revenues 10-15'!B52 -> 1432 | D23: ='Revenues 10-15'!A52 -> CTE - Transp Fees from Other Districts (In State) | F23: ='Revenues 10-15'!F52 -> 0
A24: TR | B24: Revenues 10-15, L56, Col F | C24: ='Revenues 10-15'!B56 -> 1442 | D24: ='Revenues 10-15'!A56 -> Special Ed - Transp Fees from Other Districts (In State) | F24: ='Revenues 10-15'!F56 -> 0
A25: TR | B25: Revenues 10-15, L59, Col F | C25: ='Revenues 10-15'!B59 -> 1451 | D25: ='Revenues 10-15'!A59 -> Adult - Transp Fees from Pupils or Parents (In State) | F25: ='Revenues 10-15'!F59 -> 0
A26: TR | B26: Revenues 10-15, L60, Col F | C26: ='Revenues 10-15'!B60 -> 1452 | D26: ='Revenues 10-15'!A60 -> Adult - Transp Fees from Other Districts (In State) | F26: ='Revenues 10-15'!F60 -> 0
A27: TR | B27: Revenues 10-15, L61, Col F | C27: ='Revenues 10-15'!B61 -> 1453 | D27: ='Revenues 10-15'!A61 -> Adult - Transp Fees from Other Sources (In State) | F27: ='Revenues 10-15'!F61 -> 0
A28: TR | B28: Revenues 10-15, L62, Col F | C28: ='Revenues 10-15'!B62 -> 1454 | D28: ='Revenues 10-15'!A62 -> Adult - Transp Fees from Other Sources (Out of State) | F28: ='Revenues 10-15'!F62 -> 0
A29: O&M-TR | B29: Revenues 10-15, L151, Col D & F | C29: ='Revenues 10-15'!B151 -> 3410 | D29: ='Revenues 10-15'!A151 -> Adult Ed (from ICCB) | F29: =SUM('Revenues 10-15'!D151,'Revenues 10-15'!F151) -> 0
A30: O&M-TR | B30: Revenues 10-15, L152, Col D & F | C30: ='Revenues 10-15'!B152 -> 3499 | D30: ='Revenues 10-15'!A152 -> Adult Ed - Other (Describe & Itemize) | F30: =('Revenues 10-15'!D152+'Revenues 10-15'!F152) -> 0
A31: O&M-TR | B31: Revenues 10-15, L213, Col D,F | C31: ='Revenues 10-15'!B213 -> 4600 | D31: ='Revenues 10-15'!A213 -> Fed - Spec Education - Preschool Flow-Through | F31: =SUM('Revenues 10-15'!D213,'Revenues 10-15'!F213) -> 0
A32: O&M-TR | B32: Revenues 10-15, L214, Col D,F | C32: ='Revenues 10-15'!B214 -> 4605 | D32: ='Revenues 10-15'!A214 -> Fed - Spec Education - Preschool Discretionary | F32: =SUM('Revenues 10-15'!D214,'Revenues 10-15'!F214) -> 0
A33: O&M | B33: Revenues 10-15, L224, Col D | C33: ='Revenues 10-15'!B224 -> 4810 | D33: ='Revenues 10-15'!A224 -> Federal - Adult Education | F33: ='Revenues 10-15'!D224 -> 0
A34: ED | B34: Expenditures 16-24, L7, Col K - (G+I) | C34: ='Expenditures 16-24'!B7 -> 1125 | D34: ='Expenditures 16-24'!A7 -> Pre-K Programs | F34: ='Expenditures 16-24'!K7-SUM('Expenditures 16-24'!G7,'Expenditures 16-24'!I7) -> 0
A35: ED | B35: Expenditures 16-24, L9, Col K - (G+I) | C35: ='Expenditures 16-24'!B9 -> 1225 | D35: ='Expenditures 16-24'!A9 -> Special Education Programs Pre-K | F35: ='Expenditures 16-24'!K9-SUM('Expenditures 16-24'!G9+'Expenditures 16-24'!I9) -> 0
A36: ED | B36: Expenditures 16-24, L11, Col K - (G+I) | C36: ='Expenditures 16-24'!B11 -> 1275 | D36: ='Expenditures 16-24'!A11 -> Remedial and Supplemental Programs Pre-K | F36: ='Expenditures 16-24'!K11-SUM('Expenditures 16-24'!G11,'Expenditures 16-24'!I11) -> 0
A37: ED | B37: Expenditures 16-24, L12, Col K - (G+I) | C37: ='Expenditures 16-24'!B12 -> 1300 | D37: ='Expenditures 16-24'!A12 -> Adult/Continuing Education Programs | F37: ='Expenditures 16-24'!K12-SUM('Expenditures 16-24'!G12+'Expenditures 16-24'!I12) -> 0
A38: ED | B38: Expenditures 16-24, L15, Col K - (G+I) | C38: ='Expenditures 16-24'!B15 -> 1600 | D38: ='Expenditures 16-24'!A15 -> Summer School Programs | F38: ='Expenditures 16-24'!K15-SUM('Expenditures 16-24'!G15,'Expenditures 16-24'!I15) -> 0
A39: ED | B39: Expenditures 16-24, L20, Col K | C39: ='Expenditures 16-24'!B20 -> 1910 | D39: ='Expenditures 16-24'!A20 -> Pre-K Programs - Private Tuition | F39: ='Expenditures 16-24'!K20 -> 0
A40: ED | B40: Expenditures 16-24, L21, Col K | C40: ='Expenditures 16-24'!B21 -> 1911 | D40: ='Expenditures 16-24'!A21 -> Regular K-12 Programs - Private Tuition | F40: ='Expenditures 16-24'!K21 -> 0
A41: ED | B41: Expenditures 16-24, L22, Col K | C41: ='Expenditures 16-24'!B22 -> 1912 | D41: ='Expenditures 16-24'!A22 -> Special Education Programs K-12 - Private Tuition | F41: ='Expenditures 16-24'!K22 -> 0
A42: ED | B42: Expenditures 16-24, L23, Col K | C42: ='Expenditures 16-24'!B23 -> 1913 | D42: ='Expenditures 16-24'!A23 -> Special Education Programs Pre-K - Tuition | F42: ='Expenditures 16-24'!K23 -> 0
A43: ED | B43: Expenditures 16-24, L24, Col K | C43: ='Expenditures 16-24'!B24 -> 1914 | D43: ='Expenditures 16-24'!A24 -> Remedial/Supplemental Programs K-12 - Private Tuition | F43: ='Expenditures 16-24'!K24 -> 0
A44: ED | B44: Expenditures 16-24, L25, Col K | C44: ='Expenditures 16-24'!B25 -> 1915 | D44: ='Expenditures 16-24'!A25 -> Remedial/Supplemental Programs Pre-K - Private Tuition | F44: ='Expenditures 16-24'!K25 -> 0
A45: ED | B45: Expenditures 16-24, L26, Col K | C45: ='Expenditures 16-24'!B26 -> 1916 | D45: ='Expenditures 16-24'!A26 -> Adult/Continuing Education Programs - Private Tuition | F45: ='Expenditures 16-24'!K26 -> 0
A46: ED | B46: Expenditures 16-24, L27, Col K | C46: ='Expenditures 16-24'!B27 -> 1917 | D46: ='Expenditures 16-24'!A27 -> CTE Programs - Private Tuition | F46: ='Expenditures 16-24'!K27 -> 0
A47: ED | B47: Expenditures 16-24, L28, Col K | C47: ='Expenditures 16-24'!B28 -> 1918 | D47: ='Expenditures 16-24'!A28 -> Interscholastic Programs - Private Tuition | F47: ='Expenditures 16-24'!K28 -> 0
A48: ED | B48: Expenditures 16-24, L29, Col K | C48: ='Expenditures 16-24'!B29 -> 1919 | D48: ='Expenditures 16-24'!A29 -> Summer School Programs - Private Tuition | F48: ='Expenditures 16-24'!K29 -> 0
A49: ED | B49: Expenditures 16-24, L30, Col K | C49: ='Expenditures 16-24'!B30 -> 1920 | D49: ='Expenditures 16-24'!A30 -> Gifted Programs - Private Tuition | F49: ='Expenditures 16-24'!K30 -> 0
A50: ED | B50: Expenditures 16-24, L31, Col K | C50: ='Expenditures 16-24'!B31 -> 1921 | D50: ='Expenditures 16-24'!A31 -> Bilingual Programs - Private Tuition | F50: ='Expenditures 16-24'!K31 -> 0
A51: ED | B51: Expenditures 16-24, L32, Col K | C51: ='Expenditures 16-24'!B32 -> 1922 | D51: ='Expenditures 16-24'!A32 -> Truants Alternative/Optional Ed Progms - Private Tuition | F51: ='Expenditures 16-24'!K32 -> 0
A52: ED | B52: Expenditures 16-24, L77, Col K - (G+I) | C52: ='Expenditures 16-24'!B77 -> 3000 | D52: Community Services | F52: ='Expenditures 16-24'!K77-SUM('Expenditures 16-24'!G77,'Expenditures 16-24'!I77) -> 0
A53: ED | B53: Expenditures 16-24, L104, Col K | C53: ='Expenditures 16-24'!B104 -> 4000 | D53: ='Expenditures 16-24'!A104 -> Total Payments to Other Govt Units | F53: ='Expenditures 16-24'!K104 -> 0
A54: ED | B54: Expenditures 16-24, L116, Col G | C54: - | D54: Capital Outlay | F54: ='Expenditures 16-24'!G116 -> 0
A55: ED | B55: Expenditures 16-24, L116, Col I | C55: - | D55: Non-Capitalized Equipment | F55: ='Expenditures 16-24'!I116 -> 0
A56: O&M | B56: Expenditures 16-24, L134, Col K - (G+I) | C56: ='Expenditures 16-24'!B134 -> 3000 | D56: Community Services | F56: ='Expenditures 16-24'!K134-SUM('Expenditures 16-24'!G134+'Expenditures 16-24'!I134) -> 0
A57: O&M | B57: Expenditures 16-24, L143, Col K | C57: ='Expenditures 16-24'!B143 -> 4000 | D57: ='Expenditures 16-24'!A143 -> Total Payments to Other Govt Units | F57: ='Expenditures 16-24'!K143 -> 0
A58: O&M | B58: Expenditures 16-24, L155, Col G | C58: - | D58: Capital Outlay | F58: ='Expenditures 16-24'!G155 -> 0
A59: O&M | B59: Expenditures 16-24, L155, Col I | C59: - | D59: Non-Capitalized Equipment | F59: ='Expenditures 16-24'!I155 -> 0
A60: DS | B60: Expenditures 16-24, L164, Col K | C60: 4000 | D60: Payments to Other Dist & Govt Units | F60: ='Expenditures 16-24'!K164 -> 0
A61: DS | B61: Expenditures 16-24, L174, Col K | C61: ='Expenditures 16-24'!B174 -> 5300 | D61: Debt Service - Payments of Principal on Long-Term Debt | F61: ='Expenditures 16-24'!K174 -> 0
A62: TR | B62: Expenditures 16-24, L189, Col K - (G+I) | C62: ='Expenditures 16-24'!B189 -> 3000 | D62: Community Services | F62: ='Expenditures 16-24'!K189-SUM('Expenditures 16-24'!G189,'Expenditures 16-24'!I189) -> 0
A63: TR | B63: Expenditures 16-24, L200, Col K | C63: ='Expenditures 16-24'!B200 -> 4000 | D63: ='Expenditures 16-24'!A200 -> Total Payments to Other Govt Units | F63: ='Expenditures 16-24'!K200 -> 0
A64: TR | B64: Expenditures 16-24, L210, Col K | C64: ='Expenditures 16-24'!B210 -> 5300 | D64: Debt Service - Payments of Principal on Long-Term Debt | F64: ='Expenditures 16-24'!K210 -> 0
A65: TR | B65: Expenditures 16-24, L214, Col G | C65: - | D65: Capital Outlay | F65: ='Expenditures 16-24'!G214 -> 0
A66: TR | B66: Expenditures 16-24, L214, Col I | C66: - | D66: Non-Capitalized Equipment | F66: ='Expenditures 16-24'!I214 -> 0
A67: MR/SS | B67: Expenditures 16-24, L220, Col K | C67: ='Expenditures 16-24'!B220 -> 1125 | D67: ='Expenditures 16-24'!A220 -> Pre-K Programs | F67: ='Expenditures 16-24'!K220 -> 0
A68: MR/SS | B68: Expenditures 16-24, L222, Col K | C68: ='Expenditures 16-24'!B222 -> 1225 | D68: ='Expenditures 16-24'!A222 -> Special Education Programs - Pre-K | F68: ='Expenditures 16-24'!K222 -> 0
A69: MR/SS | B69: Expenditures 16-24, L224, Col K | C69: ='Expenditures 16-24'!B224 -> 1275 | D69: ='Expenditures 16-24'!A224 -> Remedial and Supplemental Programs - Pre-K | F69: ='Expenditures 16-24'!K224 -> 0
A70: MR/SS | B70: Expenditures 16-24, L225, Col K | C70: ='Expenditures 16-24'!B225 -> 1300 | D70: ='Expenditures 16-24'!A225 -> Adult/Continuing Education Programs | F70: ='Expenditures 16-24'!K225 -> 0
A71: MR/SS | B71: Expenditures 16-24, L228, Col K | C71: ='Expenditures 16-24'!B228 -> 1600 | D71: ='Expenditures 16-24'!A228 -> Summer School Programs | F71: ='Expenditures 16-24'!K228 -> 0
A72: MR/SS | B72: Expenditures 16-24, L277, Col K | C72: ='Expenditures 16-24'!B277 -> 3000 | D72: Community Services | F72: ='Expenditures 16-24'!K277 -> 0
A73: MR/SS | B73: Expenditures 16-24, L282, Col K | C73: ='Expenditures 16-24'!B282 -> 4000 | D73: ='Expenditures 16-24'!A282 -> Total Payments to Other Govt Units | F73: ='Expenditures 16-24'!K282 -> 0
A74: Tort | B74: Expenditures 16-24, L318, Col K - (G+I) | C74: 1125 | D74: Pre-K Programs | F74: ='Expenditures 16-24'!K318-SUM('Expenditures 16-24'!G318,'Expenditures 16-24'!I318) -> 0
A75: Tort | B75: Expenditures 16-24, L320, Col K - (G+I) | C75: 1225 | D75: Special Education Programs Pre-K | F75: ='Expenditures 16-24'!K320-SUM('Expenditures 16-24'!G320,'Expenditures 16-24'!I320) -> 0
A76: Tort | B76: Expenditures 16-24, L322, Col K - (G+I) | C76: 1275 | D76: Remedial and Supplemental Programs Pre-K | F76: ='Expenditures 16-24'!K322-SUM('Expenditures 16-24'!G322,'Expenditures 16-24'!I322) -> 0
A77: Tort | B77: Expenditures 16-24, L323, Col K - (G+I) | C77: 1300 | D77: Adult/Continuing Education Programs | F77: ='Expenditures 16-24'!K323-SUM('Expenditures 16-24'!G323,'Expenditures 16-24'!I323) -> 0
A78: Tort | B78: Expenditures 16-24, L326, Col K - (G+I) | C78: 1600 | D78: Summer School Programs | F78: ='Expenditures 16-24'!K326-SUM('Expenditures 16-24'!G326,'Expenditures 16-24'!I326) -> 0
A79: Tort | B79: Expenditures 16-24, L331, Col K | C79: 1910 | D79: Pre-K Programs - Private Tuition | F79: ='Expenditures 16-24'!K331 -> 0
A80: Tort | B80: Expenditures 16-24, L332, Col K | C80: 1911 | D80: Regular K-12 Programs - Private Tuition | F80: ='Expenditures 16-24'!K332 -> 0
A81: Tort | B81: Expenditures 16-24, L333, Col K | C81: 1912 | D81: Special Education Programs K-12 - Private Tuition | F81: ='Expenditures 16-24'!K333 -> 0
A82: Tort | B82: Expenditures 16-24, L334, Col K | C82: 1913 | D82: Special Education Programs Pre-K - Tuition | F82: ='Expenditures 16-24'!K334 -> 0
A83: Tort | B83: Expenditures 16-24, L335, Col K | C83: 1914 | D83: Remedial/Supplemental Programs K-12 - Private Tuition | F83: ='Expenditures 16-24'!K335 -> 0
A84: Tort | B84: Expenditures 16-24, L336, Col K | C84: 1915 | D84: Remedial/Supplemental Programs Pre-K - Private Tuition | F84: ='Expenditures 16-24'!K336 -> 0
A85: Tort | B85: Expenditures 16-24, L337, Col K | C85: 1916 | D85: Adult/Continuing Education Programs - Private Tuition | F85: ='Expenditures 16-24'!K337 -> 0
A86: Tort | B86: Expenditures 16-24, L338, Col K | C86: 1917 | D86: CTE Programs - Private Tuition | F86: ='Expenditures 16-24'!K338 -> 0
A87: Tort | B87: Expenditures 16-24, L339, Col K | C87: 1918 | D87: Interscholastic Programs - Private Tuition | F87: ='Expenditures 16-24'!K339 -> 0
A88: Tort | B88: Expenditures 16-24, L340, Col K | C88: 1919 | D88: Summer School Programs - Private Tuition | F88: ='Expenditures 16-24'!K340 -> 0
A89: Tort | B89: Expenditures 16-24, L341, Col K | C89: 1920 | D89: Gifted Programs - Private Tuition | F89: ='Expenditures 16-24'!K341 -> 0
A90: Tort | B90: Expenditures 16-24, L342, Col K | C90: 1921 | D90: Bilingual Programs - Private Tuition | F90: ='Expenditures 16-24'!K342 -> 0
A91: Tort | B91: Expenditures 16-24, L343, Col K | C91: 1922 | D91: Truants Alternative/Optional Ed Progms - Private Tuition | F91: ='Expenditures 16-24'!K343 -> 0
A92: Tort | B92: Expenditures 16-24, L387, Col K - (G+I) | C92: 3000 | D92: Community Services | F92: ='Expenditures 16-24'!K388-SUM('Expenditures 16-24'!G388,'Expenditures 16-24'!I388) -> 0
A93: Tort | B93: Expenditures 16-24, L414, Col K | C93: 4000 | D93: Total Payments to Other Govt Units | F93: ='Expenditures 16-24'!K415 -> 0
A94: Tort | B94: Expenditures 16-24, L422, Col G | C94: - | D94: Capital Outlay | F94: ='Expenditures 16-24'!G429 -> 0
A95: Tort | B95: Expenditures 16-24, L422, Col I | C95: - | D95: Non-Capitalized Equipment | F95: ='Expenditures 16-24'!I429 -> 0
D96: Total Deductions for OEPP Computation (Sum of Lines 18 - 95) | E96: $ | F96: =SUM(F18:F95) -> 0
D97: Total Operating Expenses Regular K-12 (Line 14 minus Line 96) | F97: =(F14-F96) -> 0
D98: ="9 Month ADA from Average Daily Attendance - Student Information System (SIS) in IWAS-preliminary ADA "&'AFR22'!$E$2-1&"-"&'AFR22'!$E$2 -> 9 Month ADA from Average Daily Attendance - Student Information System (SIS) in IWAS-preliminary ADA 2021-2022 | F98: 0
D99: Estimated OEPP (Line 97 divided by Line 98) | E99: $ | F99: =IF(F98>0,F97/F98," Complete Line 98") -> Complete Line 98
A101: PER CAPITA TUITION CHARGE
A103: LESS OFFSETTING RECEIPTS/REVENUES:
A104: TR | B104: Revenues 10-15, L42, Col F | C104: ='Revenues 10-15'!B42 -> 1411 | D104: ='Revenues 10-15'!A42 -> Regular -Transp Fees from Pupils or Parents (In State) | E104: $ | F104: ='Revenues 10-15'!F42 -> 0
A105: TR | B105: Revenues 10-15, L44, Col F | C105: ='Revenues 10-15'!B44 -> 1413 | D105: ='Revenues 10-15'!A44 -> Regular - Transp Fees from Other Sources (In State) | F105: ='Revenues 10-15'!F44 -> 0
A106: TR | B106: Revenues 10-15, L45, Col F | C106: ='Revenues 10-15'!B45 -> 1415 | D106: ='Revenues 10-15'!A45 -> Regular - Transp Fees from Co-curricular Activities (In State) | F106: ='Revenues 10-15'!F45 -> 0
A107: TR | B107: Revenues 10-15, L46, Col F | C107: 1416 | D107: ='Revenues 10-15'!A46 -> Regular Transp Fees from Other Sources (Out of State) | F107: ='Revenues 10-15'!F46 -> 0
A108: TR | B108: Revenues 10-15, L51, Col F | C108: ='Revenues 10-15'!B51 -> 1431 | D108: ='Revenues 10-15'!A51 -> CTE - Transp Fees from Pupils or Parents (In State) | F108: ='Revenues 10-15'!F51 -> 0
A109: TR | B109: Revenues 10-15, L53, Col F | C109: ='Revenues 10-15'!B53 -> 1433 | D109: ='Revenues 10-15'!A53 -> CTE - Transp Fees from Other Sources (In State) | F109: ='Revenues 10-15'!F53 -> 0
A110: TR | B110: Revenues 10-15, L54, Col F | C110: ='Revenues 10-15'!B54 -> 1434 | D110: ='Revenues 10-15'!A54 -> CTE - Transp Fees from Other Sources (Out of State) | F110: ='Revenues 10-15'!F54 -> 0
A111: TR | B111: Revenues 10-15, L55, Col F | C111: ='Revenues 10-15'!B55 -> 1441 | D111: ='Revenues 10-15'!A55 -> Special Ed - Transp Fees from Pupils or Parents (In State) | F111: ='Revenues 10-15'!F55 -> 0
A112: TR | B112: Revenues 10-15, L57, Col F | C112: ='Revenues 10-15'!B57 -> 1443 | D112: ='Revenues 10-15'!A57 -> Special Ed - Transp Fees from Other Sources (In State) | F112: ='Revenues 10-15'!F57 -> 0
A113: TR | B113: Revenues 10-15, L58, Col F | C113: ='Revenues 10-15'!B58 -> 1444 | D113: ='Revenues 10-15'!A58 -> Special Ed - Transp Fees from Other Sources (Out of State) | F113: ='Revenues 10-15'!F58 -> 0
A114: ED | B114: Revenues 10-15, L75, Col C | C114: 1600 | D114: ='Revenues 10-15'!A75 -> Total Food Service | F114: ='Revenues 10-15'!C75 -> 0
A115: ED-O&M | B115: Revenues 10-15, L83, Col C,D | C115: 1700 | D115: ='Revenues 10-15'!A83 -> Total District/School Activity Income (without Student Activity Funds) | F115: =SUM('Revenues 10-15'!C83,'Revenues 10-15'!D83) -> 0
A116: ED | B116: Revenues 10-15, L86, Col C | C116: ='Revenues 10-15'!B86 -> 1811 | D116: ='Revenues 10-15'!A86 -> Rentals - Regular Textbooks | F116: ='Revenues 10-15'!C86 -> 0
A117: ED | B117: Revenues 10-15, L89, Col C | C117: ='Revenues 10-15'!B89 -> 1819 | D117: ='Revenues 10-15'!A89 -> Rentals - Other (Describe & Itemize) | F117: ='Revenues 10-15'!C89 -> 0
A118: ED | B118: Revenues 10-15, L90, Col C | C118: ='Revenues 10-15'!B90 -> 1821 | D118: ='Revenues 10-15'!A90 -> Sales - Regular Textbooks | F118: ='Revenues 10-15'!C90 -> 0
A119: ED | B119: Revenues 10-15, L93, Col C | C119: ='Revenues 10-15'!B93 -> 1829 | D119: ='Revenues 10-15'!A93 -> Sales - Other (Describe & Itemize) | F119: ='Revenues 10-15'!C93 -> 0
A120: ED | B120: Revenues 10-15, L94, Col C | C120: ='Revenues 10-15'!B94 -> 1890 | D120: ='Revenues 10-15'!A94 -> Other (Describe & Itemize) | F120: ='Revenues 10-15'!C94 -> 0
A121: ED-O&M | B121: Revenues 10-15, L97, Col C,D | C121: ='Revenues 10-15'!B97 -> 1910 | D121: ='Revenues 10-15'!A97 -> Rentals | F121: =SUM('Revenues 10-15'!C97:D97) -> 0
A122: ED-O&M-TR | B122: Revenues 10-15, L100, Col C,D,F | C122: ='Revenues 10-15'!B100 -> 1940 | D122: ='Revenues 10-15'!A100 -> Services Provided Other Districts | F122: =SUM('Revenues 10-15'!C100,'Revenues 10-15'!D100,'Revenues 10-15'!F100) -> 0
A123: ED-O&M-DS-TR-MR/SS | B123: Revenues 10-15, L106, Col C,D,E,F,G | C123: ='Revenues 10-15'!B106 -> 1991 | D123: ='Revenues 10-15'!A106 -> Payment from Other Districts | F123: =SUM('Revenues 10-15'!C106,'Revenues 10-15'!D106,'Revenues 10-15'!E106,'Revenues 10-15'!F106,'Revenues 10-15'!G106) -> 0
A124: ED | B124: Revenues 10-15, L108, Col C | C124: ='Revenues 10-15'!B108 -> 1993 | D124: ='Revenues 10-15'!A108 -> Other Local Fees (Describe & Itemize) | F124: =('Revenues 10-15'!C108) -> 0
A125: ED-O&M-TR | B125: Revenues 10-15, L134, Col C,D,F | C125: 3100 | D125: ='Revenues 10-15'!A134 -> Total Special Education | F125: =SUM('Revenues 10-15'!C134:D134,'Revenues 10-15'!F134) -> 0
A126: ED-O&M-MR/SS | B126: Revenues 10-15, L143, Col C,D,G | C126: 3200 | D126: ='Revenues 10-15'!A143 -> Total Career and Technical Education | F126: =SUM('Revenues 10-15'!C143,'Revenues 10-15'!D143,'Revenues 10-15'!G143) -> 0
A127: ED-MR/SS | B127: Revenues 10-15, L147, Col C,G | C127: 3300 | D127: ='Revenues 10-15'!A147 -> Total Bilingual Ed | F127: =SUM('Revenues 10-15'!C147,'Revenues 10-15'!G147) -> 0
A128: ED | B128: Revenues 10-15, L148, Col C | C128: ='Revenues 10-15'!B148 -> 3360 | D128: ='Revenues 10-15'!A148 -> State Free Lunch & Breakfast | F128: ='Revenues 10-15'!C148 -> 0
A129: ED-O&M-MR/SS | B129: Revenues 10-15, L149, Col C,D,G | C129: ='Revenues 10-15'!B149 -> 3365 | D129: ='Revenues 10-15'!A149 -> School Breakfast Initiative | F129: =SUM('Revenues 10-15'!C149,'Revenues 10-15'!D149,'Revenues 10-15'!G149) -> 0
A130: ED-O&M | B130: Revenues 10-15, L150,Col C,D | C130: ='Revenues 10-15'!B150 -> 3370 | D130: ='Revenues 10-15'!A150 -> Driver Education | F130: =SUM('Revenues 10-15'!C150,'Revenues 10-15'!D150) -> 0
A131: ED-O&M-TR-MR/SS | B131: Revenues 10-15, L157, Col C,D,F,G | C131: 3500 | D131: ='Revenues 10-15'!A157 -> Total Transportation | F131: =SUM('Revenues 10-15'!C157,'Revenues 10-15'!D157,'Revenues 10-15'!F157,'Revenues 10-15'!G157) -> 0
A132: ED | B132: Revenues 10-15, L158, Col C | C132: ='Revenues 10-15'!B158 -> 3610 | D132: ='Revenues 10-15'!A158 -> Learning Improvement - Change Grants | F132: ='Revenues 10-15'!C158 -> 0
A133: ED-O&M-TR-MR/SS | B133: Revenues 10-15, L159, Col C,D,F,G | C133: ='Revenues 10-15'!B159 -> 3660 | D133: ='Revenues 10-15'!A159 -> Scientific Literacy | F133: =SUM('Revenues 10-15'!C159,'Revenues 10-15'!D159,'Revenues 10-15'!F159,'Revenues 10-15'!G159) -> 0
A134: ED-TR-MR/SS | B134: Revenues 10-15, L160, Col C,F,G | C134: ='Revenues 10-15'!B160 -> 3695 | D134: ='Revenues 10-15'!A160 -> Truant Alternative/Optional Education | F134: =SUM('Revenues 10-15'!C160,'Revenues 10-15'!F160,'Revenues 10-15'!G160) -> 0
A135: ED-O&M-TR-MR/SS | B135: Revenues 10-15, L162, Col C,D,F,G | C135: ='Revenues 10-15'!B162 -> 3766 | D135: ='Revenues 10-15'!A162 -> Chicago General Education Block Grant | F135: =SUM('Revenues 10-15'!C162,'Revenues 10-15'!D162,'Revenues 10-15'!F162,'Revenues 10-15'!G162) -> 0
A136: ED-O&M-TR-MR/SS | B136: Revenues 10-15, L163, Col C,D,F,G | C136: ='Revenues 10-15'!B163 -> 3767 | D136: ='Revenues 10-15'!A163 -> Chicago Educational Services Block Grant | F136: =SUM('Revenues 10-15'!C163,'Revenues 10-15'!D163,'Revenues 10-15'!F163,'Revenues 10-15'!G163) -> 0
A137: ED-O&M-DS-TR-MR/SS | B137: Revenues 10-15, L164, Col C,D,E,F,G | C137: ='Revenues 10-15'!B164 -> 3775 | D137: ='Revenues 10-15'!A164 -> School Safety & Educational Improvement Block Grant | F137: =SUM('Revenues 10-15'!C164,'Revenues 10-15'!D164,'Revenues 10-15'!E164,'Revenues 10-15'!F164,'Revenues 10-15'!G164) -> 0
A138: ED-O&M-DS-TR-MR/SS | B138: Revenues 10-15, L165, Col C,D,E,F,G | C138: ='Revenues 10-15'!B165 -> 3780 | D138: ='Revenues 10-15'!A165 -> Technology - Technology for Success | F138: =SUM('Revenues 10-15'!C165:G165) -> 0
A139: ED-TR | B139: Revenues 10-15, L166, Col C,F | C139: ='Revenues 10-15'!B166 -> 3815 | D139: ='Revenues 10-15'!A166 -> State Charter Schools | F139: =SUM('Revenues 10-15'!C166,'Revenues 10-15'!F166) -> 0
A140: O&M | B140: Revenues 10-15, L169, Col D | C140: ='Revenues 10-15'!B169 -> 3925 | D140: ='Revenues 10-15'!A169 -> School Infrastructure - Maintenance Projects | F140: ='Revenues 10-15'!D169 -> 0
A141: ED-O&M-DS-TR-MR/SS-Tort | B141: Revenues 10-15, L170, Col C-G,J | C141: ='Revenues 10-15'!B170 -> 3999 | D141: Other Restricted Revenue from State Sources | F141: =SUM('Revenues 10-15'!C170:G170,'Revenues 10-15'!J170) -> 0
A142: ED | B142: Revenues 10-15, L179, Col C | C142: ='Revenues 10-15'!B179 -> 4045 | D142: ='Revenues 10-15'!A179 & " (Subtract)" -> Head Start (Subtract) | F142: =SUM(-'Revenues 10-15'!C179) -> 0
A143: ED-O&M-TR-MR/SS | B143: Revenues 10-15, L183, Col C,D,F,G | C143: - | D143: =('Revenues 10-15'!A183) -> Total Restricted Grants-In-Aid Received Directly from Federal Govt | F143: =SUM('Revenues 10-15'!C183,'Revenues 10-15'!D183,'Revenues 10-15'!F183,'Revenues 10-15'!G183) -> 0
A144: ED-O&M-TR-MR/SS | B144: Revenues 10-15, L190, Col C,D,F,G | C144: 4100 | D144: ='Revenues 10-15'!A190 -> Total Title V | F144: =SUM('Revenues 10-15'!C190,'Revenues 10-15'!D190,'Revenues 10-15'!F190,'Revenues 10-15'!G190) -> 0
A145: ED-MR/SS | B145: Revenues 10-15, L200, Col C,G | C145: 4200 | D145: ='Revenues 10-15'!A200 -> Total Food Service | F145: =SUM('Revenues 10-15'!C200,'Revenues 10-15'!G200) -> 0
A146: ED-O&M-TR-MR/SS | B146: Revenues 10-15, L206, Col C,D,F,G | C146: 4300 | D146: ='Revenues 10-15'!A206 -> Total Title I | F146: =SUM('Revenues 10-15'!C206,'Revenues 10-15'!D206,'Revenues 10-15'!F206,'Revenues 10-15'!G206) -> 0
A147: ED-O&M-TR-MR/SS | B147: Revenues 10-15, L211, Col C,D,F,G | C147: 4400 | D147: ='Revenues 10-15'!A211 -> Total Title IV | F147: =SUM('Revenues 10-15'!C211,'Revenues 10-15'!D211,'Revenues 10-15'!F211,'Revenues 10-15'!G211) -> 0
A148: ED-O&M-TR-MR/SS | B148: Revenues 10-15, L215, Col C,D,F,G | C148: ='Revenues 10-15'!B215 -> 4620 | D148: ='Revenues 10-15'!A215 -> Fed - Spec Education - IDEA - Flow Through | F148: =SUM('Revenues 10-15'!C215:D215,'Revenues 10-15'!F215:G215) -> 0
A149: ED-O&M-TR-MR/SS | B149: Revenues 10-15, L216, Col C,D,F,G | C149: ='Revenues 10-15'!B216 -> 4625 | D149: ='Revenues 10-15'!A216 -> Fed - Spec Education - IDEA - Room & Board | F149: =SUM('Revenues 10-15'!C216,'Revenues 10-15'!D216,'Revenues 10-15'!F216,'Revenues 10-15'!G216) -> 0
A150: ED-O&M-TR-MR/SS | B150: Revenues 10-15, L217, Col C,D,F,G | C150: ='Revenues 10-15'!B217 -> 4630 | D150: ='Revenues 10-15'!A217 -> Fed - Spec Education - IDEA - Discretionary | F150: =SUM('Revenues 10-15'!C217:D217,'Revenues 10-15'!F217:G217) -> 0 | G150: 6297
A151: ED-O&M-TR-MR/SS | B151: Revenues 10-15, L218, Col C,D,F,G | C151: ='Revenues 10-15'!B218 -> 4699 | D151: ='Revenues 10-15'!A218 -> Fed - Spec Education - IDEA - Other (Describe & Itemize) | F151: =SUM('Revenues 10-15'!C218:D218,'Revenues 10-15'!F218:G218) -> 0
A152: ED-O&M-MR/SS | B152: Revenues 10-15, L223, Col C,D,G | C152: 4700 | D152: ='Revenues 10-15'!A223 -> Total CTE - Perkins | F152: =SUM('Revenues 10-15'!C223,'Revenues 10-15'!D223,'Revenues 10-15'!G223) -> 0 | G152: 6303
A153: ED-O&M-TR-MR/SS-Tort | B153: Revenue-L224, Col C,D,F,G | C153: 4851 | D153: ='Revenues 10-15'!A226 -> ARRA - Title I - Low Income | F153: =SUM('Revenues 10-15'!$C$226:$D$226,'Revenues 10-15'!$F$226:$G$226) -> 0
A154: ED-O&M-TR-MR/SS-Tort | B154: Revenue-L225, Col C,D,E,F,G,J | C154: 4852 | D154: ='Revenues 10-15'!A227 -> ARRA - Title I - Neglected, Private | F154: =SUM('Revenues 10-15'!C227:G227,'Revenues 10-15'!J227) -> 0
A155: ED-O&M-TR-MR/SS-Tort | B155: Revenue L226, Col C,D,E,F,G,J | C155: 4853 | D155: ='Revenues 10-15'!A228 -> ARRA - Title I - Delinquent, Private | F155: =SUM('Revenues 10-15'!C228:G228,'Revenues 10-15'!J228) -> 0
A156: ED-O&M-TR-MR/SS-Tort | B156: Revenue L227, Col C,D,E,F,G,J | C156: 4854 | D156: ='Revenues 10-15'!A229 -> ARRA - Title I - School Improvement (Part A) | F156: =SUM('Revenues 10-15'!C229:G229,'Revenues 10-15'!J229) -> 0
A157: ED-O&M-TR-MR/SS-Tort | B157: Revenue L228, Col C,D,E,F,G,J | C157: 4855 | D157: ='Revenues 10-15'!A230 -> ARRA - Title I - School Improvement (Section 1003g) | F157: =SUM('Revenues 10-15'!C230:G230,'Revenues 10-15'!J230) -> 0
A158: ED-O&M-TR-MR/SS-Tort | B158: Revenue L229, Col C,D,E,F,G,J | C158: 4856 | D158: ='Revenues 10-15'!A231 -> ARRA - IDEA - Part B - Preschool | F158: 0
A159: ED-O&M-TR-MR/SS-Tort | B159: Revenue L230, Col C,D,E,F,G,J | C159: 4857 | D159: ='Revenues 10-15'!A232 -> ARRA - IDEA - Part B - Flow-Through | F159: =SUM('Revenues 10-15'!C232:G232,'Revenues 10-15'!J232) -> 0
A160: ED-O&M-TR-MR/SS-Tort | B160: Revenue L231, Col C,D,E,F,G,J | C160: 4860 | D160: ='Revenues 10-15'!A233 -> ARRA - Title IID - Technology-Formula | F160: =SUM('Revenues 10-15'!C233:G233,'Revenues 10-15'!J233) -> 0
A161: ED-O&M-TR-MR/SS-Tort | B161: Revenue L232, Col C,D,E,F,G,J | C161: 4861 | D161: ='Revenues 10-15'!A234 -> ARRA - Title IID - Technology-Competitive | F161: =SUM('Revenues 10-15'!C234:G234,'Revenues 10-15'!J234) -> 0
A162: ED-O&M-TR-MR/SS | B162: Revenue L233, Col C, D,F,G | C162: 4862 | D162: ='Revenues 10-15'!A235 -> ARRA - McKinney - Vento Homeless Education | F162: =SUM('Revenues 10-15'!C235:G235,'Revenues 10-15'!J235) -> 0
A163: ED-O&M-TR-MR/SS-Tort | B163: Revenue L237, Col C,D,E,F,G,J | C163: 4866 | D163: ='Revenues 10-15'!A239 -> Qualified Zone Academy Bond Tax Credits | F163: =SUM('Revenues 10-15'!C239:G239,'Revenues 10-15'!J239) -> 0
A164: ED-O&M-TR-MR/SS-Tort | B164: Revenue L238, Col C,D,E,F,G,J | C164: 4867 | D164: ='Revenues 10-15'!A240 -> Qualified School Construction Bond Credits | F164: =SUM('Revenues 10-15'!C240:G240,'Revenues 10-15'!J240) -> 0
A165: ED-O&M-TR-MR/SS-Tort | B165: Revenue L239, Col C,D,E,F,G,J | C165: 4868 | D165: ='Revenues 10-15'!A241 -> Build America Bond Tax Credits | F165: =SUM('Revenues 10-15'!C241:G241,'Revenues 10-15'!J241) -> 0
A166: ED-O&M-TR-MR/SS-Tort | B166: Revenue L240, Col C,D,E,F,G,J | C166: 4869 | D166: ='Revenues 10-15'!A242 -> Build America Bond Interest Reimbursement | F166: =SUM('Revenues 10-15'!C242:G242,'Revenues 10-15'!J242) -> 0
A167: ED-O&M-TR-MR/SS-Tort | B167: Revenue L242, Col C,D,E,F,G,J | C167: 4871 | D167: ='Revenues 10-15'!A244 -> Other ARRA Funds - II | F167: =SUM('Revenues 10-15'!C244:G244,'Revenues 10-15'!J244) -> 0
A168: ED-O&M-TR-MR/SS-Tort | B168: Revenue L243, Col C,D,E,F,G,J | C168: 4872 | D168: ='Revenues 10-15'!A245 -> Other ARRA Funds - III | F168: =SUM('Revenues 10-15'!C245:G245,'Revenues 10-15'!J245) -> 0
A169: ED-O&M-TR-MR/SS-Tort | B169: Revenue L244, Col C,D,E,F,G,J | C169: 4873 | D169: ='Revenues 10-15'!A246 -> Other ARRA Funds - IV | F169: =SUM('Revenues 10-15'!C246:G246,'Revenues 10-15'!J246) -> 0
A170: ED-O&M-TR-MR/SS-Tort | B170: Revenue L245, Col C,D,E,F,G,J | C170: 4874 | D170: ='Revenues 10-15'!A247 -> Other ARRA Funds - V | F170: =SUM('Revenues 10-15'!C247:G247,'Revenues 10-15'!J247) -> 0
A171: ED-O&M-TR-MR/SS-Tort | B171: Revenue L246, Col C,D,E,F,G,J | C171: 4875 | D171: ='Revenues 10-15'!A248 -> ARRA - Early Childhood | F171: 0
A172: ED-O&M-TR-MR/SS-Tort | B172: Revenue L247, Col C,D,E,F,G,J | C172: 4876 | D172: ='Revenues 10-15'!A249 -> Other ARRA Funds VII | F172: =SUM('Revenues 10-15'!C249:G249,'Revenues 10-15'!J249) -> 0
A173: ED-O&M-TR-MR/SS-Tort | B173: Revenue L248, Col C,D,E,F,G,J | C173: 4877 | D173: ='Revenues 10-15'!A250 -> Other ARRA Funds VIII | F173: =SUM('Revenues 10-15'!C250:G250,'Revenues 10-15'!J250) -> 0
A174: ED-O&M-TR-MR/SS-Tort | B174: Revenue L249, Col C,D,E,F,G,J | C174: 4878 | D174: ='Revenues 10-15'!A251 -> Other ARRA Funds IX | F174: =SUM('Revenues 10-15'!C251:G251,'Revenues 10-15'!J251) -> 0
A175: ED-O&M-TR-MR/SS-Tort | B175: Revenue L250, Col C,D,E,F,G,J | C175: 4879 | D175: ='Revenues 10-15'!A252 -> Other ARRA Funds X | F175: =SUM('Revenues 10-15'!C252:G252,'Revenues 10-15'!J252) -> 0
A176: ED-O&M-TR-MR/SS-Tort | B176: Revenue L251, Col C,D,E,F,G,J | C176: 4880 | D176: ='Revenues 10-15'!A253 -> Other ARRA Funds Ed Job Fund Program | F176: =SUM('Revenues 10-15'!C253:G253,'Revenues 10-15'!J253) -> 0
A177: ED-O&M-DS-TR-MR/SS-Tort | B177: Revenue Adjustments (C226 thru J253) | C177: 4800 | D177: Total ARRA Program Adjustments | F177: =SUM(F153:F176) -> 0
A178: ED | B178: Revenues 10-15, L255, Col C | C178: 4901 | D178: Race to the Top | F178: =SUM('Revenues 10-15'!C255) -> 0
A179: ED-O&M-TR-MR/SS | B179: Revenues 10-15, L256, Col C,D,F,G | C179: 4902 | D179: Race to the Top-Preschool Expansion Grant | F179: =SUM('Revenues 10-15'!C256,'Revenues 10-15'!D256,'Revenues 10-15'!F256,'Revenues 10-15'!G256) -> 0
A180: ED-TR-MR/SS | B180: Revenues 10-15, L257, Col C,F,G | C180: ='Revenues 10-15'!B257 -> 4905 | D180: ='Revenues 10-15'!A257 -> Title III - Immigrant Education Program (IEP) | F180: =SUM('Revenues 10-15'!C257,'Revenues 10-15'!F257,'Revenues 10-15'!G257) -> 0 | G180: 6306
A181: ED-TR-MR/SS | B181: Revenues 10-15, L258, Col C,F,G | C181: ='Revenues 10-15'!B258 -> 4909 | D181: ='Revenues 10-15'!A258 -> Title III - Language Inst Program - Limited Eng (LIPLEP) | F181: =SUM('Revenues 10-15'!C258,'Revenues 10-15'!F258,'Revenues 10-15'!G258) -> 0
A182: ED-O&M-TR-MR/SS | B182: Revenues 10-15, L259, Col C,D,F,G | C182: ='Revenues 10-15'!B259 -> 4920 | D182: ='Revenues 10-15'!A259 -> McKinney Education for Homeless Children | F182: =SUM('Revenues 10-15'!C259,'Revenues 10-15'!D259,'Revenues 10-15'!F259,'Revenues 10-15'!G259) -> 0
A183: ED-O&M-TR-MR/SS | B183: Revenues 10-15, L260, Col C,D,F,G | C183: ='Revenues 10-15'!B260 -> 4930 | D183: ='Revenues 10-15'!A260 -> Title II - Eisenhower Professional Development Formula | F183: =SUM('Revenues 10-15'!C260:D260,'Revenues 10-15'!F260,'Revenues 10-15'!G260) -> 0
A184: ED-O&M-TR-MR/SS | B184: Revenues 10-15, L261, Col C,D,F,G | C184: ='Revenues 10-15'!B261 -> 4932 | D184: ='Revenues 10-15'!A261 -> Title II - Teacher Quality | F184: =SUM('Revenues 10-15'!C261,'Revenues 10-15'!D261,'Revenues 10-15'!F261,'Revenues 10-15'!G261) -> 0
A185: ED-O&M-TR-MR/SS | B185: Revenues 10-15, L262, Col C,D,F,G | C185: ='Revenues 10-15'!B262 -> 4960 | D185: ='Revenues 10-15'!A262 -> Federal Charter Schools | F185: =SUM('Revenues 10-15'!C262:D262,'Revenues 10-15'!F262:G262) -> 0
A186: ED-O&M-TR-MR/SS | B186: Revenues 10-15, L263, Col C,D,F,G | C186: ='Revenues 10-15'!B263 -> 4981 | D186: ='Revenues 10-15'!A263 -> State Assessment Grants | F186: =SUM('Revenues 10-15'!C263:D263,'Revenues 10-15'!F263:G263) -> 0
A187: ED-O&M-TR-MR/SS | B187: Revenues 10-15, L264, Col C,D,F,G | C187: ='Revenues 10-15'!B264 -> 4982 | D187: ='Revenues 10-15'!A264 -> Grant for State Assessments and Related Activities | F187: =SUM('Revenues 10-15'!C264:D264,'Revenues 10-15'!F264:G264) -> 0
A188: ED-O&M-TR-MR/SS | B188: Revenues 10-15, L265, Col C,D,F,G | C188: ='Revenues 10-15'!B265 -> 4991 | D188: ='Revenues 10-15'!A265 -> Medicaid Matching Funds - Administrative Outreach | F188: =SUM('Revenues 10-15'!C265:D265,'Revenues 10-15'!F265:G265) -> 0 | G188: 6320
A189: ED-O&M-TR-MR/SS | B189: Revenues 10-15, L266, Col C,D,F,G | C189: ='Revenues 10-15'!B266 -> 4992 | D189: ='Revenues 10-15'!A266 -> Medicaid Matching Funds - Fee-for-Service Program | F189: =SUM('Revenues 10-15'!C266:D266,'Revenues 10-15'!F266:G266) -> 0
A190: ED-O&M-TR-MR/SS | B190: Revenues 10-15, L267, Col C,D,F,G | C190: ='Revenues 10-15'!B267 -> 4998 | D190: ='Revenues 10-15'!A267 -> Other Restricted Revenue from Federal Sources (Describe & Itemize) | F190: =SUM('Revenues 10-15'!C267:D267,'Revenues 10-15'!F267:G267) -> 0
A191: Federal Stimulus Revenue | B191: CARES CRRSA ARP Schedule | D191: ="Adjusting for FY"&MID('AFR22'!E2,3,2)-2&" or FY"&MID('AFR22'!E2,3,2)-1&" revenue received in FY"&MID('AFR22'!E2,3,2)&" for FY"&MID('AFR22'!E2,3,2)-2&" or FY"&MID('AFR22'!E2,3,2)-1&" Expenses" -> Adjusting for FY20 or FY21 revenue received in FY22 for FY20 or FY21 Expenses | F191: =-'CARES CRRSA ARP 28-35'!L18 -> 0
A192: ED-TR-MR/SS | B192: Revenues (Part of EBF Payment) | C192: 3100 | D192: Special Education Contributions from EBF Funds **
A193: ED-MR/SS | B193: Revenues (Part of EBF Payment) | C193: 3300 | D193: English Learning (Bilingual) Contributions from EBF Funds **
D195: Total Deductions for PCTC Computation Line 104 through Line 193 | E195: $ | F195: =SUM(F104:F152,F177:F193) -> 0
D196: Net Operating Expense for Tuition Computation (Line 97 minus Line 195) | F196: ='PCTC-OEPP 37-39'!F97-F195 -> 0
D197: Total Depreciation Allowance (from page 36, Line 18, Col I) | F197: ='Cap Outlay Deprec 36'!I18 -> 0
D198: Total Allowance for PCTC Computation (Line 196 plus Line 197) | F198: =F196+F197 -> 0
D199: =D98 -> 9 Month ADA from Average Daily Attendance - Student Information System (SIS) in IWAS-preliminary ADA 2021-2022 | F199: ='PCTC-OEPP 37-39'!F98 -> 0
D200: Total Estimated PCTC (Line 198 divided by Line 199) | E200: * $ | F200: =F198/F199 ->  | G200: 6323
G201: 6326
A202: *The total OEPP/PCTC may change based on the data provided. The final amounts will be calculated by ISBE. The 9-month ADA listed on the this tab is NOT the final 9-month ADA.
A203: **Go to the Evidence-Based Funding Distribution Calculation webpage.
A204: Under Reports, open the FY 2022 Special Education Funding Allocation Calculation Details and the FY 2022 English Learner Education Funding Allocation Calculation Details. Use the respective Excel file to locate the amount in column X for the Special Education Contribution and column V for the English Learner Contribution for the selected school district. Please enter “0” if the district does not have allocations for lines 192 and 193.

Sheet Contracts Paid in CY 40
A1: Illinois State Board of Education
A2: School Business Services Department
A4: Current Year Payment on Contracts For Indirect Cost Rate Computation
A6: Please do not remove and reinsert this tab from the workbook or paste into this tab. The AFR will be returned to the auditor if this tab is completed incorrectly.
A7: This schedule is to calculate the amount allowed on contracts obligated by the school district for the Indirect Cost Rate calculation. The contracts should be only for purchase services and not for salary contracts. Do not include contracts for Capital Outlay (500) or Non-Capitalized Equipment (700) on this schedule. They are excluded from the Indirect Cost Rate calculation.
A8: To determine the applicable contracts for this schedule, they must meet ALL three qualifications below:
A9: 1. The contract must be coded to one of the combinations listed on the icon below.
A10: 2. The contract must meet the qualifications below on the "Subaward & Subcontract Guidance" and the "Indirect Cost Rate Plan" (Sub-agreement for Services).
A11: 3. Only list contracts that were paid over $25,000 for the fiscal year.
C13: Indirect Cost Rate Plan
A15: Column A, B, C, D below must be completed for each contract. Enter Column B without hypens. Ex) 101000600
A16: Column (E) and (F) are calculated automatically based on the information provided in Columns (A through D).
A17: ="The amount in column (E) is the amount allowed on each contract in the Indirect Cost Rate calculation. The amount in column (F) is the amount that will be deducted from the base in the indirect cost rate (tab 41) for Program Year "&'AFR22'!E2+2&"." -> The amount in column (E) is the amount allowed on each contract in the Indirect Cost Rate calculation. The amount in column (F) is the amount that will be deducted from the base in the indirect cost rate (tab 41) for Program Year 2024.
A18: Enter Fund-Function-Object Name, Where the Expenditure was Recorded (Column A) | B18: Fund- Function- Object Number (Column B) | C18: Enter Contracted Company Name (Column C) | D18: Enter Current Year Amount Paid on Contract (must be less than or equal to amount reported in the AFR's "Expenditures 16-24" tab) (Column D) | E18: Contract Amount Applied to the Indirect Cost Rate Base (Column E) | F18: Contract Amount deducted from the Indirect Cost Rate Base (Column F)
A19: Enter as shown here: ED-Instruction-Other | B19: 10-1000-600 | C19: Company Name | D19: 500000 | E19: =IF(D19<25000,D19,"25,000") -> 25,000 | F19: =IF(D19>=25000,(D19-E19),"0") -> 475000
E20: =IF(D20<25000,D20,"25,000") -> 0 | F20: =IF(D20>=25000,(D20-E20),"0") -> 0
E21: 0 | F21: 0
E22: 0 | F22: 0
E23: 0 | F23: 0
E24: 0 | F24: 0
E25: 0 | F25: 0
E26: 0 | F26: 0
E27: 0 | F27: 0
E28: 0 | F28: 0
E29: 0 | F29: 0
E30: 0 | F30: 0
E31: 0 | F31: 0
E32: 0 | F32: 0
E33: 0 | F33: 0
E34: 0 | F34: 0
E35: 0 | F35: 0
E36: 0 | F36: 0
E37: 0 | F37: 0
E38: 0 | F38: 0
E39: 0 | F39: 0
E40: 0 | F40: 0
E41: 0 | F41: 0
E42: 0 | F42: 0
E43: 0 | F43: 0
E44: 0 | F44: 0
E45: 0 | F45: 0
E46: 0 | F46: 0
E47: 0 | F47: 0
E48: 0 | F48: 0
E49: 0 | F49: 0
E50: 0 | F50: 0
E51: 0 | F51: 0
E52: 0 | F52: 0
E53: 0 | F53: 0
E54: 0 | F54: 0
E55: 0 | F55: 0
E56: 0 | F56: 0
E57: 0 | F57: 0
E58: 0 | F58: 0
E59: 0 | F59: 0
E60: 0 | F60: 0
E61: 0 | F61: 0
E62: 0 | F62: 0
E63: 0 | F63: 0
E64: 0 | F64: 0
E65: 0 | F65: 0
E66: 0 | F66: 0
E67: 0 | F67: 0
E68: 0 | F68: 0
E69: 0 | F69: 0
E70: 0 | F70: 0
E71: 0 | F71: 0
E72: 0 | F72: 0
E73: 0 | F73: 0
E74: 0 | F74: 0
E75: 0 | F75: 0
E76: 0 | F76: 0
E77: 0 | F77: 0
E78: 0 | F78: 0
E79: 0 | F79: 0
E80: 0 | F80: 0
E81: 0 | F81: 0
E82: 0 | F82: 0
E83: 0 | F83: 0
E84: =IF(D84<25000,D84,"25,000") -> 0 | F84: =IF(D84>=25000,(D84-E84),"0") -> 0
E85: 0 | F85: 0
E86: 0 | F86: 0
E87: 0 | F87: 0
E88: 0 | F88: 0
E89: 0 | F89: 0
E90: 0 | F90: 0
E91: 0 | F91: 0
E92: 0 | F92: 0
E93: 0 | F93: 0
E94: 0 | F94: 0
E95: 0 | F95: 0
E96: 0 | F96: 0
E97: 0 | F97: 0
E98: 0 | F98: 0
E99: 0 | F99: 0
E100: 0 | F100: 0
E101: 0 | F101: 0
E102: 0 | F102: 0
E103: 0 | F103: 0
E104: 0 | F104: 0
E105: 0 | F105: 0
E106: 0 | F106: 0
E107: 0 | F107: 0
E108: 0 | F108: 0
E109: 0 | F109: 0
E110: 0 | F110: 0
E111: 0 | F111: 0
E112: 0 | F112: 0
E113: 0 | F113: 0
E114: 0 | F114: 0
E115: 0 | F115: 0
E116: 0 | F116: 0
E117: 0 | F117: 0
E118: 0 | F118: 0
E119: 0 | F119: 0
E120: 0 | F120: 0
E121: 0 | F121: 0
E122: 0 | F122: 0
E123: 0 | F123: 0
E124: 0 | F124: 0
E125: 0 | F125: 0
E126: 0 | F126: 0
E127: 0 | F127: 0
E128: 0 | F128: 0
E129: 0 | F129: 0
E130: 0 | F130: 0
E131: 0 | F131: 0
E132: 0 | F132: 0
E133: 0 | F133: 0
E134: 0 | F134: 0
E135: 0 | F135: 0
E136: 0 | F136: 0
E137: 0 | F137: 0
E138: 0 | F138: 0
E139: 0 | F139: 0
E140: 0 | F140: 0
E141: 0 | F141: 0
E142: 0 | F142: 0
E143: 0 | F143: 0
A144: Total | D144: =SUM(D20:D143) -> 0 | F144: =SUM(F20:F143) -> 0
A145: =IF(AND(D144=0,A20=""),"If the school district/joint agreement does not have any contracts, enter N/A on Column A, Line 20.","") -> If the school district/joint agreement does not have any contracts, enter N/A on Column A, Line 20.

Sheet ICR Computation 41
A1: ESTIMATED INDIRECT COST RATE DATA
A2: SECTION I
A3: Financial Data To Assist Indirect Cost Rate Determination
A4: (Source document for the computation of the Indirect Cost Rate is found in the "Expenditures" tab.)
A5: ALL OBJECTS EXCLUDE CAPITAL OUTLAY. With the exception of line 11, enter the disbursements/expenditures included within the following functions charged directly to and reimbursed from federal grant programs. Also, include all amounts paid to or for other employees within each function that work with specific federal grant programs in the same capacity as those charged to and reimbursed from the same federal grant programs. For example, if a district received funding for a Title I clerk, all other salaries for Title I clerks performing like duties in that function must be included. Include any benefits and/or purchased services paid on or to persons whose salaries are classified as direct costs in the function listed.
A6: Support Services - Direct Costs (1-2000) and (5-2000)
A7: Direction of Business Support Services (1-2510) and (5-2510)
A8: Fiscal Services (1-2520) and (5-2520)
A9: Operation and Maintenance of Plant Services (1, 2, and 5-2540)
A10: Food Services (1-2560) Must be less than (P16, Col E-F, L65)
A11: ="Value of Commodities Received for Fiscal Year "&'AFR22'!E2&" (Include the value of commodities when determining if a Single Audit is required)." -> Value of Commodities Received for Fiscal Year 2022 (Include the value of commodities when determining if a Single Audit is required).
A12: Internal Services (1-2570) and (5-2570)
A13: Staff Services (1-2640) and (5-2640)
A14: Data Processing Services (1-2660) and (5-2660)
A15: SECTION II
A16: Estimated Indirect Cost Rate for Federal Programs
D17: Restricted Program | F17: Unrestricted Program
C18: Function | D18: Indirect Costs | E18: Direct Costs | F18: Indirect Costs | G18: Direct Costs
A19: Instruction | C19: 1000 | E19: ='Expenditures 16-24'!K34-SUM('Expenditures 16-24'!G34,'Expenditures 16-24'!I34)+'Expenditures 16-24'!D233+'Expenditures 16-24'!K344-SUM('Expenditures 16-24'!G344,'Expenditures 16-24'!I344) -> 0 | G19: ='Expenditures 16-24'!K34-SUM('Expenditures 16-24'!G34,'Expenditures 16-24'!I34)+'Expenditures 16-24'!D233+'Expenditures 16-24'!K344-SUM('Expenditures 16-24'!G344,'Expenditures 16-24'!I344) -> 0
A20: Support Services:
A21: Pupil | C21: 2100 | E21: ='Expenditures 16-24'!K44-SUM('Expenditures 16-24'!G44,'Expenditures 16-24'!I44)+'Expenditures 16-24'!K124-SUM('Expenditures 16-24'!G124,'Expenditures 16-24'!I124)+'Expenditures 16-24'!K184-SUM('Expenditures 16-24'!G184,'Expenditures 16-24'!I184)+'Expenditures 16-24'!D242+'Expenditures 16-24'!K353-SUM('Expenditures 16-24'!G353,'Expenditures 16-24'!I353) -> 0 | G21: ='Expenditures 16-24'!K44-SUM('Expenditures 16-24'!G44,'Expenditures 16-24'!I44)+'Expenditures 16-24'!K124-SUM('Expenditures 16-24'!G124,'Expenditures 16-24'!I124)+'Expenditures 16-24'!K184-SUM('Expenditures 16-24'!G184,'Expenditures 16-24'!I184)+'Expenditures 16-24'!D242+'Expenditures 16-24'!K353-SUM('Expenditures 16-24'!G353,'Expenditures 16-24'!I353) -> 0
A22: Instructional Staff | C22: 2200 | E22: ='Expenditures 16-24'!K49-SUM('Expenditures 16-24'!G49,'Expenditures 16-24'!I49)+'Expenditures 16-24'!D247+'Expenditures 16-24'!K358-SUM('Expenditures 16-24'!G358,'Expenditures 16-24'!I358) -> 0 | G22: ='Expenditures 16-24'!K49-SUM('Expenditures 16-24'!G49,'Expenditures 16-24'!I49)+'Expenditures 16-24'!D247+'Expenditures 16-24'!K358-SUM('Expenditures 16-24'!G358,'Expenditures 16-24'!I358) -> 0
A23: General Admin. | C23: 2300 | E23: ='Expenditures 16-24'!K55-SUM('Expenditures 16-24'!G55,'Expenditures 16-24'!I55)+'Expenditures 16-24'!D254+'Expenditures 16-24'!K365-SUM('Expenditures 16-24'!G365,'Expenditures 16-24'!I365) -> 0 | G23: ='Expenditures 16-24'!K55-SUM('Expenditures 16-24'!G55,'Expenditures 16-24'!I55)+'Expenditures 16-24'!D254+'Expenditures 16-24'!K365-SUM('Expenditures 16-24'!G365,'Expenditures 16-24'!I365) -> 0
A24: School Admin | C24: 2400 | E24: ='Expenditures 16-24'!K59-SUM('Expenditures 16-24'!G59,'Expenditures 16-24'!I59)+'Expenditures 16-24'!D258+'Expenditures 16-24'!K369-SUM('Expenditures 16-24'!G369,'Expenditures 16-24'!I369) -> 0 | G24: ='Expenditures 16-24'!K59-SUM('Expenditures 16-24'!G59,'Expenditures 16-24'!I59)+'Expenditures 16-24'!D258+'Expenditures 16-24'!K369-SUM('Expenditures 16-24'!G369,'Expenditures 16-24'!I369) -> 0
A25: Business:
A26: Direction of Business Spt. Srv. | C26: 2510 | D26: ='Expenditures 16-24'!K61-SUM('Expenditures 16-24'!G61,'Expenditures 16-24'!I61)+'Expenditures 16-24'!D260+'Expenditures 16-24'!K371-SUM('Expenditures 16-24'!G371,'Expenditures 16-24'!I371)-E7 -> 0 | E26: ='Expenditures 16-24'!K126-SUM('Expenditures 16-24'!G126,'Expenditures 16-24'!I126)+E7 -> 0 | F26: ='Expenditures 16-24'!K61-SUM('Expenditures 16-24'!G61,'Expenditures 16-24'!I61)+'Expenditures 16-24'!D260+'Expenditures 16-24'!K371-SUM('Expenditures 16-24'!G371,'Expenditures 16-24'!I371)-E7 -> 0 | G26: ='Expenditures 16-24'!K126-SUM('Expenditures 16-24'!G126,'Expenditures 16-24'!I126)+E7 -> 0
A27: Fiscal Services | C27: 2520 | D27: ='Expenditures 16-24'!K62-SUM('Expenditures 16-24'!G62,'Expenditures 16-24'!I62)+'Expenditures 16-24'!D261+'Expenditures 16-24'!K372-SUM('Expenditures 16-24'!G372,'Expenditures 16-24'!I372)-E8 -> 0 | E27: =E8 -> 0 | F27: ='Expenditures 16-24'!K62-SUM('Expenditures 16-24'!G62,'Expenditures 16-24'!I62)+'Expenditures 16-24'!D261+'Expenditures 16-24'!K372-SUM('Expenditures 16-24'!G372,'Expenditures 16-24'!I372)-E8 -> 0 | G27: =E8 -> 0
A28: Oper. & Maint. Plant Services | C28: 2540 | E28: ='Expenditures 16-24'!K63-SUM('Expenditures 16-24'!G63,'Expenditures 16-24'!I63)+'Expenditures 16-24'!K128-SUM('Expenditures 16-24'!G128,'Expenditures 16-24'!I128)+'Expenditures 16-24'!D263+'Expenditures 16-24'!K374-SUM('Expenditures 16-24'!G374,'Expenditures 16-24'!I374) -> 0 | F28: ='Expenditures 16-24'!K63-SUM('Expenditures 16-24'!G63,'Expenditures 16-24'!I63)+'Expenditures 16-24'!K128-SUM('Expenditures 16-24'!G128,'Expenditures 16-24'!I128)+'Expenditures 16-24'!D263+'Expenditures 16-24'!K374-SUM('Expenditures 16-24'!G374,'Expenditures 16-24'!I374)-E9 -> 0 | G28: =E9 -> 0
A29: Pupil Transportation | C29: 2550 | E29: ='Expenditures 16-24'!K64-SUM('Expenditures 16-24'!G64,'Expenditures 16-24'!I64)+'Expenditures 16-24'!K129-SUM('Expenditures 16-24'!G129,'Expenditures 16-24'!I129)+'Expenditures 16-24'!K186-SUM('Expenditures 16-24'!G186,'Expenditures 16-24'!I186)+'Expenditures 16-24'!D264+'Expenditures 16-24'!K375-SUM('Expenditures 16-24'!G375,'Expenditures 16-24'!I375) -> 0 | G29: ='Expenditures 16-24'!K64-SUM('Expenditures 16-24'!G64,'Expenditures 16-24'!I64)+'Expenditures 16-24'!K129-SUM('Expenditures 16-24'!G129,'Expenditures 16-24'!I129)+'Expenditures 16-24'!K186-SUM('Expenditures 16-24'!G186,'Expenditures 16-24'!I186)+'Expenditures 16-24'!D264+'Expenditures 16-24'!K375-SUM('Expenditures 16-24'!G375,'Expenditures 16-24'!I375) -> 0
A30: Food Services | C30: 2560 | E30: ='Expenditures 16-24'!K65-SUM('Expenditures 16-24'!G65,'Expenditures 16-24'!I65)+'Expenditures 16-24'!D265+'Expenditures 16-24'!K376-SUM('Expenditures 16-24'!G376,'Expenditures 16-24'!I376)-E10 -> 0 | G30: ='Expenditures 16-24'!K65-SUM('Expenditures 16-24'!G65,'Expenditures 16-24'!I65)+'Expenditures 16-24'!D265+'Expenditures 16-24'!K376-SUM('Expenditures 16-24'!G376,'Expenditures 16-24'!I376)-E10 -> 0
A31: Internal Services | C31: 2570 | D31: ='Expenditures 16-24'!K66-SUM('Expenditures 16-24'!G66,'Expenditures 16-24'!I66)+'Expenditures 16-24'!D266+'Expenditures 16-24'!K377-SUM('Expenditures 16-24'!G377,'Expenditures 16-24'!I377)-E12 -> 0 | E31: =E12 -> 0 | F31: ='Expenditures 16-24'!K66-SUM('Expenditures 16-24'!G66,'Expenditures 16-24'!I66)+'Expenditures 16-24'!D266+'Expenditures 16-24'!K377-SUM('Expenditures 16-24'!G377,'Expenditures 16-24'!I377)-E12 -> 0 | G31: =E12 -> 0
A32: Central:
A33: Direction of Central Spt. Srv. | C33: 2610 | E33: ='Expenditures 16-24'!K69-SUM('Expenditures 16-24'!G69,'Expenditures 16-24'!I69)+'Expenditures 16-24'!D269+'Expenditures 16-24'!K380-SUM('Expenditures 16-24'!G380,'Expenditures 16-24'!I380) -> 0 | G33: ='Expenditures 16-24'!K69-SUM('Expenditures 16-24'!G69,'Expenditures 16-24'!I69)+'Expenditures 16-24'!D269+'Expenditures 16-24'!K380-SUM('Expenditures 16-24'!G380,'Expenditures 16-24'!I380) -> 0
A34: Plan, Rsrch, Dvlp, Eval. Srv. | C34: 2620 | E34: ='Expenditures 16-24'!K70-SUM('Expenditures 16-24'!G70,'Expenditures 16-24'!I70)+'Expenditures 16-24'!D270+'Expenditures 16-24'!K381-SUM('Expenditures 16-24'!G381,'Expenditures 16-24'!I381) -> 0 | G34: ='Expenditures 16-24'!K70-SUM('Expenditures 16-24'!G70,'Expenditures 16-24'!I70)+'Expenditures 16-24'!D270+'Expenditures 16-24'!K381-SUM('Expenditures 16-24'!G381,'Expenditures 16-24'!I381) -> 0
A35: Information Services | C35: 2630 | E35: ='Expenditures 16-24'!K71-SUM('Expenditures 16-24'!G71,'Expenditures 16-24'!I71)+'Expenditures 16-24'!D271+'Expenditures 16-24'!K382-SUM('Expenditures 16-24'!G382,'Expenditures 16-24'!I382) -> 0 | G35: ='Expenditures 16-24'!K71-SUM('Expenditures 16-24'!G71,'Expenditures 16-24'!I71)+'Expenditures 16-24'!D271+'Expenditures 16-24'!K382-SUM('Expenditures 16-24'!G382,'Expenditures 16-24'!I382) -> 0
A36: Staff Services | C36: 2640 | D36: ='Expenditures 16-24'!K72-SUM('Expenditures 16-24'!G72,'Expenditures 16-24'!I72)+'Expenditures 16-24'!D272+'Expenditures 16-24'!K383-SUM('Expenditures 16-24'!G383,'Expenditures 16-24'!I383)-E13 -> 0 | E36: =E13 -> 0 | F36: ='Expenditures 16-24'!K72-SUM('Expenditures 16-24'!G72,'Expenditures 16-24'!I72)+'Expenditures 16-24'!D272+'Expenditures 16-24'!K383-SUM('Expenditures 16-24'!G383,'Expenditures 16-24'!I383)-E13 -> 0 | G36: =E13 -> 0
A37: Data Processing Services | C37: 2660 | D37: ='Expenditures 16-24'!K73-SUM('Expenditures 16-24'!G73,'Expenditures 16-24'!I73)+'Expenditures 16-24'!D273+'Expenditures 16-24'!K384-SUM('Expenditures 16-24'!G384,'Expenditures 16-24'!I384)-E14 -> 0 | E37: =E14 -> 0 | F37: ='Expenditures 16-24'!K73-SUM('Expenditures 16-24'!G73,'Expenditures 16-24'!I73)+'Expenditures 16-24'!D273+'Expenditures 16-24'!K384-SUM('Expenditures 16-24'!G384,'Expenditures 16-24'!I384)-E14 -> 0 | G37: =E14 -> 0
A38: Other: | C38: 2900 | E38: ='Expenditures 16-24'!K75-SUM('Expenditures 16-24'!G75,'Expenditures 16-24'!I75)+'Expenditures 16-24'!K132-SUM('Expenditures 16-24'!G132,'Expenditures 16-24'!I132)+'Expenditures 16-24'!K187-SUM('Expenditures 16-24'!G187,'Expenditures 16-24'!I187)+'Expenditures 16-24'!D275+'Expenditures 16-24'!K386-SUM('Expenditures 16-24'!G386,'Expenditures 16-24'!I386) -> 0 | G38: ='Expenditures 16-24'!K75-SUM('Expenditures 16-24'!G75,'Expenditures 16-24'!I75)+'Expenditures 16-24'!K132-SUM('Expenditures 16-24'!G132,'Expenditures 16-24'!I132)+'Expenditures 16-24'!K187-SUM('Expenditures 16-24'!G187,'Expenditures 16-24'!I187)+'Expenditures 16-24'!D275+'Expenditures 16-24'!K386-SUM('Expenditures 16-24'!G386,'Expenditures 16-24'!I386) -> 0
A39: Community Services | C39: 3000 | E39: ='Expenditures 16-24'!K77-SUM('Expenditures 16-24'!G77,'Expenditures 16-24'!I77)+'Expenditures 16-24'!K134-SUM('Expenditures 16-24'!G134,'Expenditures 16-24'!I134)+'Expenditures 16-24'!K189-SUM('Expenditures 16-24'!G189,'Expenditures 16-24'!I189)+'Expenditures 16-24'!D277+'Expenditures 16-24'!K388-SUM('Expenditures 16-24'!G388,'Expenditures 16-24'!I388) -> 0 | G39: ='Expenditures 16-24'!K77-SUM('Expenditures 16-24'!G77,'Expenditures 16-24'!I77)+'Expenditures 16-24'!K134-SUM('Expenditures 16-24'!G134,'Expenditures 16-24'!I134)+'Expenditures 16-24'!K189-SUM('Expenditures 16-24'!G189,'Expenditures 16-24'!I189)+'Expenditures 16-24'!D277+'Expenditures 16-24'!K388-SUM('Expenditures 16-24'!G388,'Expenditures 16-24'!I388) -> 0
A40: Contracts Paid in CY over the allowed amount for ICR calculation (from page 40) | E40: =-'Contracts Paid in CY 40'!F144 -> 0 | G40: =-'Contracts Paid in CY 40'!F144 -> 0
A41: Total | D41: =SUM(D19:D39) -> 0 | E41: =SUM(E19:E40) -> 0 | F41: =SUM(F19:F39) -> 0 | G41: =SUM(G19:G40) -> 0
D42: Restricted Rate | F42: Unrestricted Rate
D43: Total Indirect Costs: | E43: =D41 -> 0 | F43: Total Indirect Costs: | G43: =F41 -> 0
D44: Total Direct Costs: | E44: =E41 -> 0 | F44: Total Direct Costs: | G44: =G41 -> 0
D45: = | E45: =(E43/E44) ->  | F45: = | G45: =(G43/G44) -> 

Sheet Shared Outsourced Services 42
A1: REPORT ON SHARED SERVICES OR OUTSOURCING
A2: School Code, Section 17-1.1 (Public Act 97-0357)
A3: ="Fiscal Year Ending June 30, "&'AFR22'!E2 -> Fiscal Year Ending June 30, 2022
A5: Complete the following for attempts to improve fiscal efficiency through shared services or outsourcing in the prior, current and next fiscal years.
C6: =COVER!A17 -> 0 | F6: =COVER!A48 -> 
C7: =COVER!A13 -> Please select district from drop-down list on line 17.
A8: Check box if this schedule is not applicable………………… | C8: Prior Fiscal Year | D8: Current Fiscal Year | E8: Next Fiscal Year | F8: Name of the Local Education Agency (LEA) Participating in the Joint Agreement, Cooperative or Shared Service. | H8: FALSE
A9: Indicate with an (X) If Deficit Reduction Plan Is Required in the Budget
A10: Service or Function (Check all that apply) | E10: Barriers to Implementation | F10: (Limit text to 200 characters, for additional space use line 33 and 38)
A11: Curriculum Planning | H11: =IF(C11="X",5,0) -> 0 | I11: =IF(D11="X",5,0) -> 0 | J11: =IF(E11="X",5,0) -> 0
A12: Custodial Services | H12: =IF(C12="X",5,0) -> 0 | I12: =IF(D12="X",5,0) -> 0 | J12: =IF(E12="X",5,0) -> 0
A13: Educational Shared Programs | H13: 0 | I13: 0 | J13: 0
A14: Employee Benefits | H14: 0 | I14: 0 | J14: 0
A15: Energy Purchasing | H15: 0 | I15: 0 | J15: 0
A16: Food Services | H16: 0 | I16: 0 | J16: 0
A17: Grant Writing | H17: 0 | I17: 0 | J17: 0
A18: Grounds Maintenance Services | H18: 0 | I18: 0 | J18: 0
A19: Insurance | H19: 0 | I19: 0 | J19: 0
A20: Investment Pools | H20: 0 | I20: 0 | J20: 0
A21: Legal Services | H21: 0 | I21: 0 | J21: 0
A22: Maintenance Services | H22: 0 | I22: 0 | J22: 0
A23: Personnel Recruitment | H23: 0 | I23: 0 | J23: 0
A24: Professional Development | H24: 0 | I24: 0 | J24: 0
A25: Shared Personnel | H25: 0 | I25: 0 | J25: 0
A26: Special Education Cooperatives | H26: 0 | I26: 0 | J26: 0
A27: STEM (science, technology, engineering and math) Program Offerings | H27: 0 | I27: 0 | J27: 0
A28: Supply & Equipment Purchasing | H28: 0 | I28: 0 | J28: 0
A29: Technology Services | H29: 0 | I29: 0 | J29: 0
A30: Transportation | H30: 0 | I30: 0 | J30: 0
A31: Vocational Education Cooperatives | H31: 0 | I31: 0 | J31: 0
A32: All Other Joint/Cooperative Agreements | H32: 0 | I32: 0 | J32: 0
A33: Other | H33: 0 | I33: 0 | J33: 0
H34: =SUM(H11:H32) -> 0 | I34: =SUM(I11:I32) -> 0 | J34: =SUM(J11:J32) -> 0 | K34: =SUM(H34:J34) -> 0
A35: Additional space for Column (D) - Barriers to Implementation:
A40: Additional space for Column (E) - Name of LEA :
A49: FALSE

Sheet AC 43
G1: ILLINOIS STATE BOARD OF EDUCATION
G2: School Business Services Department (N-330)
G3: 100 North First Street
G4: Springfield, IL 62777-0001
A6: LIMITATION OF ADMINISTRATIVE COSTS WORKSHEET | I6: School District Name: | J6: =COVER!A17 -> 0
A7: (Section 17-1.5 of the School Code) | I7: RCDT Number: | J7: =COVER!A13 -> Please select district from drop-down list on line 17.
E9: ="Actual Expenditures, Fiscal Year "&'AFR22'!E2&"" -> Actual Expenditures, Fiscal Year 2022 | I9: ="Budgeted Expenditures, Fiscal Year "&'AFR22'!E2+1&"" -> Budgeted Expenditures, Fiscal Year 2023
E10: (10) | F10: (20) | G10: (80) | I10: (10) | J10: (20) | K10: (80)
A11: Description | D11: Funct. No. | E11: Educational Fund | F11: Operations & Maintenance Fund | G11: Tort Fund * | H11: Total | I11: Educational Fund | J11: Operations & Maintenance Fund | K11: Tort Fund | L11: Total
A12: 1 | B12: Executive Administration Services | D12: 2320 | E12: ='Expenditures 16-24'!K52 -> 0 | G12: ='Expenditures 16-24'!K361 -> 0 | H12: =SUM(E12:G12) -> 0 | L12: =SUM(I12:K12) -> 0
A13: 2 | B13: Special Area Administration Services | D13: 2330 | E13: ='Expenditures 16-24'!K53 -> 0 | G13: ='Expenditures 16-24'!K362 -> 0 | H13: 0 | L13: 0
A14: 3 | B14: Other Support Services - School Administration | D14: 2490 | E14: ='Expenditures 16-24'!K58 -> 0 | G14: ='Expenditures 16-24'!K368 -> 0 | H14: 0 | L14: 0
A15: 4 | B15: Direction of Business Support Services | D15: 2510 | E15: ='Expenditures 16-24'!K61 -> 0 | F15: ='Expenditures 16-24'!K126 -> 0 | G15: ='Expenditures 16-24'!K371 -> 0 | H15: 0 | L15: 0
A16: 5 | B16: Internal Services | D16: 2570 | E16: ='Expenditures 16-24'!K66 -> 0 | G16: ='Expenditures 16-24'!K377 -> 0 | H16: 0 | L16: 0
A17: 6 | B17: Direction of Central Support Services | D17: 2610 | E17: ='Expenditures 16-24'!K69 -> 0 | G17: ='Expenditures 16-24'!K380 -> 0 | H17: 0 | L17: 0
A18: 7 | B18: Deduct - Early Retirement or other pension obligations required by state law and included above. | H18: 0 | L18: 0
A19: 8 | B19: Totals | E19: =SUM(E12:E17)-E18 -> 0 | F19: 0 | G19: =SUM(G12:G17)-G18 -> 0 | H19: 0 | I19: 0 | J19: 0 | K19: 0 | L19: 0
A20: 9 | B20: ="Percent Increase (Decrease) for FY"&'AFR22'!E2+1&" (Budgeted) over FY"&'AFR22'!E2&" (Actual)" -> Percent Increase (Decrease) for FY2023 (Budgeted) over FY2022 (Actual) | L20: =IF(AND(H19>0,L19>0),(((L19-H19)/H19)),"Enter Budget Data") -> Enter Budget Data
A23: CERTIFICATION
A24: ="I certify that the amounts shown above as Actual Expenditures, Fiscal Year "&'AFR22'!E2&", agree with the amounts on the district's Annual Financial Report for Fiscal Year "&'AFR22'!E2&"." -> I certify that the amounts shown above as Actual Expenditures, Fiscal Year 2022, agree with the amounts on the district's Annual Financial Report for Fiscal Year 2022.
A25: ="I also certify that the amounts shown above as Budgeted Expenditures, Fiscal Year "&'AFR22'!E2+1&", agree with the amounts on the budget adopted by the Board of Education." -> I also certify that the amounts shown above as Budgeted Expenditures, Fiscal Year 2023, agree with the amounts on the budget adopted by the Board of Education.
C28: Signature of Superintendent | F28: Date
C30: Contact Name (for questions) | F30: Contact Telephone Number
B32: If line 9 is greater than 5% please check one box below.
C34: The district is ranked by ISBE in the lowest 25th percentile of like districts in administrative expenditures per student (4th quartile) and will waive the limitation by board action, subsequent to a public hearing.
C37: ="The district is unable to waive the limitation by board action and will be requesting a waiver from the General Assembly pursuant to the procedures in Chapter 105 ILCS 5/2-3.25g. Waiver applications must be postmarked by August 15, "&'AFR22'!E2&", to ensure inclusion in the fall "&'AFR22'!E2&" report or postmarked by January 15, "&'AFR22'!E2+1&", to ensure inclusion in the spring "&'AFR22'!E2+1&" report. Information on the waiver process can be found at the waiver's webpage below." -> The district is unable to waive the limitation by board action and will be requesting a waiver from the General Assembly pursuant to the procedures in Chapter 105 ILCS 5/2-3.25g. Waiver applications must be postmarked by August 15, 2022, to ensure inclusion in the fall 2022 report or postmarked by January 15, 2023, to ensure inclusion in the spring 2023 report. Information on the waiver process can be found at the waiver's webpage below.
C39: https://www.isbe.net/Pages/Waivers.aspx
C40: The district will amend their budget to become in compliance with the limitation.

Sheet Itemization 44
A2: This page is provided for detailed itemizations as requested within the body of the report.
A3: Type Below.
A5: 1
A6: 2
A7: 3
A8: 4
B64: =COVER!A17 -> 0
B65: =COVER!A13 -> Please select district from drop-down list on line 17.

Sheet REF 45
A1: Reference Pages.
B3: 1 | C3: Do not enter negative numbers. Reports with negative numbers will be returned for correction.
B4: 2 | C4: GASB Statement No. 24; Accounting and Financial Reporting for Certain Grants and Other Financial Assistance. The "On Behalf of" Payments should only be reflected on this page.
B5: 3 | C5: Equals Line 8 minus Line 17
B6: 4 | C6: May require notification to the county clerk to abate an equal amount from taxes next extended. Refer to Section 17-2.11 for the applicable provisions and other "limited" transfer
C7: authority to O&M through June 30, 2013
B8: 5 | C8: Requires notification to the county clerk to abate an equal amount from taxes next extended. See Section 10-22.14
B9: 6 | C9: Use of proceeds from the sale of school sites buildings, or other real estate is limited. See Sections 5-22 and 10-22.8 of the School Code.
B10: 7 | C10: Include revenue accounts 1110 through 1115, 1117, 1118 & 1120. Include taxes for bonds sold that are in addition to those identified separately.
B11: 8 | C11: Educational Fund (10) - Computer Technology only.
B12: 9 | C12: Corporate personal property replacement tax revenue must be first applied to the Municipal Retirement/Social Security Fund to replace tax revenue lost due to the abolition of the corporate personal property tax (30 ILCS 115/12). This provision does not apply to taxes levied for Medicare-Only purposes.
B13: 10 | C13: Include only tuition payments made to private facilities. See Function 4200 or 4400 for public facility disbursements/expenditures.
B14: 11 | C14: Payment towards the retirement of lease/purchase agreements or bonded/other indebtedness (principal only) otherwise reported within the fund―e.g. alternate revenue bonds( Describe & Itemize).
B15: 12 | C15: Only abolishment of Working Cash Fund must transfer its funds directly to the Educational Fund upon adoption of a resolution and at the close of the
C16: current school Year (see 105 ILCS 5/20-8 for further explanation)
C17: Only abatement of working cash fund can transfer its funds to any fund in most need of money (see 105 ILCS 5/20-10 for further explanation)
B18: 13 | C18: GASB Statement No. 87; all leases (both operational and capital) should be reflected on this line.

Sheet Opinion-Notes 46
B7: Embed signed Audit Questionnaire below:
A13: [Please insert files above]
A15: Instructions to insert word doc or pdf files:
B16: Choose: Insert - Select: Object - Select Create from File tab - Select Browse - Select file that you want to embed - Check Display as icon - Select OK.
A18: Note: If you have trouble inserting pdf files, submit as a separate attachments and they will be inserted for you.

Sheet DeficitAFRSum Calc 47
A1: DEFICIT ANNUAL FINANCIAL REPORT (AFR) SUMMARY INFORMATION Provisions per Illinois School Code, Section 17-1 (105 ILCS 5/17-1)
A2: ="Instructions: If the Annual Financial Report (AFR) reflects that a Deficit Reduction Plan is required as calculated below,"&" then the school district is to complete the Deficit Reduction Plan in the annual budget and submit the plan to Illinois State Board of Education (ISBE) within 30 days after accepting the audit report."&" This may require the FY"&'AFR22'!E2+1&" annual budget to be amended to include a Deficit Reduction Plan and narrative. " -> Instructions: If the Annual Financial Report (AFR) reflects that a Deficit Reduction Plan is required as calculated below, then the school district is to complete the Deficit Reduction Plan in the annual budget and submit the plan to Illinois State Board of Education (ISBE) within 30 days after accepting the audit report. This may require the FY2023 annual budget to be amended to include a Deficit Reduction Plan and narrative.
A3: The "Deficit Reduction Plan" is developed using ISBE guidelines and is included in the School District Budget Form 50-36, beginning with page 22. A plan is required when the operating funds listed below result in direct revenues (cell F8) being less than direct expenditures (cell F9) by an amount equal to or greater than one-third (1/3) of the ending fund balance (cell f11). That is, if the ending fund balance is less than three times the deficit spending, the district must adopt and submit an original budget/amended budget with ISBE that provides a "deficit reduction plan" to balance the shortfall within the next three years.
A4: =" - If the FY"&'AFR22'!E2+1&" school district budget already requires a Deficit Reduction Plan, and one was submitted, an updated (amended) budget is not required." -> - If the FY2023 school district budget already requires a Deficit Reduction Plan, and one was submitted, an updated (amended) budget is not required.
A5: =" - If the Annual Financial Report requires a deficit reducton plan even though the FY"&'AFR22'!E2+1&" budget does not, a completed deficit reduction plan is still required." -> - If the Annual Financial Report requires a deficit reducton plan even though the FY2023 budget does not, a completed deficit reduction plan is still required.
A6: DEFICIT AFR SUMMARY INFORMATION - Operating Funds Only (All AFR pages must be completed to generate the following calculation)
A7: Description | B7: EDUCATIONAL FUND (10) | C7: OPERATIONS & MAINTENANCE FUND (20) | D7: TRANSPORTATION FUND (40) | E7: WORKING CASH FUND (70) | F7: TOTAL
A8: Direct Revenues | B8: ='Acct Summary 7-9'!C8 -> 0 | C8: ='Acct Summary 7-9'!D8 -> 0 | D8: ='Acct Summary 7-9'!F8 -> 0 | E8: ='Acct Summary 7-9'!I8 -> 0 | F8: =SUM(B8:E8) -> 0
A9: Direct Expenditures | B9: ='Acct Summary 7-9'!C17 -> 0 | C9: ='Acct Summary 7-9'!D17 -> 0 | D9: ='Acct Summary 7-9'!F17 -> 0 | F9: =SUM(B9:E9) -> 0
A10: Difference | B10: =(B8-B9) -> 0 | C10: =(C8-C9) -> 0 | D10: =(D8-D9) -> 0 | E10: =(E8-E9) -> 0 | F10: =SUM(F8-F9) -> 0
A11: ="Fund Balance - June 30, "&'AFR22'!E2&"" -> Fund Balance - June 30, 2022 | B11: ='Acct Summary 7-9'!C81 -> 0 | C11: ='Acct Summary 7-9'!D81 -> 0 | D11: ='Acct Summary 7-9'!F81 -> 0 | E11: ='Acct Summary 7-9'!I81 -> 0 | F11: =SUM(B11:E11) -> 0
C12: =IF(AND(F10<0,F11>=0,ABS(F10*3)>ABS(F11)),A16,IF(AND(F10<0,F11>0,ABS(F10*3)<=ABS(F11)),A17,IF(AND(F10<0,F11<0),A16,IF(F11=0,A19,A18)))) -> To determine if the AFR is balanced, complete all pages of the AFR first.
A16: Unbalanced - a "deficit reduction plan" and narrative must be adopted and submitted to ISBE with the most current fiscal year School District Budget Form 50-36. This plan must result in a balanced operating budget within three years as adopted by the local board of education. (See the School District Budget Form 50-36 -Tab: Deficit BudgetSum Calc 22) | F16: Deficit reduction plan is required.
A17: Unbalanced - however, a deficit reduction plan is not required at this time. | F17: Deficit reduction plan is not required.
A18: Balanced - no deficit reduction plan is required. | F18: Congratulations! You have a balanced AFR.
A19: To determine if the AFR is balanced, complete all pages of the AFR first. | F19: AFR form Incomplete.

Sheet AUDITCHECK
A2: ="FY "&'AFR22'!E2&" Audit Checklist" -> FY 2022 Audit Checklist | D2: ="RCDT: "&COVER!A13&"" -> RCDT: Please select district from drop-down list on line 17.
D3: ="School District/Joint Agreement Name: "&COVER!A17&"" -> School District/Joint Agreement Name:
D4: ="Auditor Name: "&COVER!T15&"" -> Auditor Name:
D5: ="License #: "&COVER!T23&" License Expiration Date (below):" -> License #: License Expiration Date (below):
D6: =COVER!X23 -> 00:00:00
D7: =COVER!A48 -> 
A9: All entries must balance within the individual fund statements and schedules as instructed below. Any error messages left unresolved below, will be returned to the auditor for correction.
B10: 1 | C10: The auditor's Opinion and Notes to the Financial Statements and the Corrective Action Plan(s) on LEA letterhead are embedded in the "Opinion-Notes" tab.
B11: =B10+1 -> 2 | C11: Student Activity Funds, Convenience Accounts, and other agency funds are included, if applicable.
B12: 3 | C12: All audit questions on page 2 are answered appropriately by checking all that apply. This page must also be certified with the signature of the CPA firm. Comments and
C13: explanations are included for all checked items at the bottom of page 2.
B14: =B12+1 -> 4 | C14: All Other accounts and functions labeled "(describe & itemize) are properly noted on the "Itemization" tab.
B15: 5 | C15: Tuition paid to another school district or to a joint agreement (in state) is coded to Function 4200, and Other Objects (600).
B16: 6 | C16: Business Manager/Bookkeeper Costs are charged to the proper Function (No. 2510/2520).
B17: 7 | C17: If district is subject to PTELL on tab "Aud Quest 2", line 21 be sure to check the box and enter the effective date.
B18: 8 | C18: All entries were entered to the nearest whole dollar amount.
A19: Balancing Schedule
A20: Check this Section for Error Messages
A21: The following assures that various entries are in balance. Any out of balance condition is followed by an error message in RED and must be resolved before submitting to ISBE. One or more
A22: errors detected may cause this AFR to be returned for corrections and resubmission. If impossible for entries to balance, please explain on the itemization page.
B24: Description: | D24: Error Message
B25: 1 | C25: Cover Page: The Accounting Basis must be Cash or Accrual.
B26: 2 | C26: Cover Page: Choose School District or Joint Agreement.
C27: What Basis of Accounting is used? | D27: =IF(COVER!O11="X","CASH",IF(COVER!O12="X","ACCRUAL ","PLEASE CHECK AN ACCOUNTING BASIS.")) -> PLEASE CHECK AN ACCOUNTING BASIS.
C28: Choose School District or Joint Agreement. | D28: =IF(COVER!B5="X","SCHOOL DISTRICT",IF(COVER!B6="X","JOINT AGREEMENT","PLEASE CHECK SCHOOL DISTRICT OR JOINT AGREEMENT.")) -> PLEASE CHECK SCHOOL DISTRICT OR JOINT AGREEMENT.
C29: Accounting for late payments (Audit Questionnaire Section D) | D29: =IF(COVER!O11="X","OK",IF(AND('Aud Quest 2'!J88=0,'Aud Quest 2'!I75<DATE(2017,12,31)),"ENTER ACCOUNTING INFO",IF(AND('Aud Quest 2'!J88>0,'Aud Quest 2'!I75<DATE(2017,12,31)),"OK"))) -> ENTER ACCOUNTING INFO
C30: Were any findings issued? | D30: =IF(AND(COVER!J29="X",COVER!J31="X",COVER!L29<>"X"),"OK",IF(AND(COVER!J29="X",COVER!J31<>"X",COVER!L31="X"),"NO FINDINGS WERE ISSUED",IF(AND(COVER!L29="X",COVER!J31<>"X"),"OK","PLEASE CHECK YES or NO."))) -> PLEASE CHECK YES or NO.
C31: Page 2: Auditor's Questionnaire, Part C, Question 21: Check box if a tax district and enter date | D31: =IF('Aud Quest 2'!B51="X",IF('Aud Quest 2'!F51>"00/00/00 ","Enter Effective Date","ok")) -> FALSE
C32: Is Budget Deficit Reduction Plan Required? | D32: =IF(AND('DeficitAFRSum Calc 47'!F10<0,'DeficitAFRSum Calc 47'!F11>=0,ABS('DeficitAFRSum Calc 47'!F10*3)>ABS('DeficitAFRSum Calc 47'!F11)),'DeficitAFRSum Calc 47'!F16,IF(AND('DeficitAFRSum Calc 47'!F10<0,'DeficitAFRSum Calc 47'!F11>0,ABS('DeficitAFRSum Calc 47'!F10*3)<=ABS('DeficitAFRSum Calc 47'!F11)),'DeficitAFRSum Calc 47'!F17,IF(AND('DeficitAFRSum Calc 47'!F10<0,'DeficitAFRSum Calc 47'!F11<0),'DeficitAFRSum Calc 47'!F16,IF('DeficitAFRSum Calc 47'!F11=0,'DeficitAFRSum Calc 47'!F19,'DeficitAFRSum Calc 47'!F18)))) -> AFR form Incomplete.
B33: =B26+1 -> 3 | C33: Page 3: Financial Information must be completed.
C34: Section A: Tax rates are not entered in the following format: [1.50 should be .0150]. Please enter with the correct decimal point. | D34: =IF(SUM('FP Info 3'!J10:L10)<=0.0999999,"OK","CORRECT THE TAX RATES BY MOVING THE DECIMAL TWO PLACES TO THE LEFT.") -> OK
C35: Section A: Tax Rates are not entered. Cells D10, F10, H10, L10 on tab 3 must have a tax rate or 0 entered. | D35: =IF(OR('FP Info 3'!D10="",'FP Info 3'!F10="",'FP Info 3'!H10="",'FP Info 3'!L10=""),"ENTRY IS REQUIRED! IF NO TAX RATE, ENTER 0 IN CELL.","OK") -> ENTRY IS REQUIRED! IF NO TAX RATE, ENTER 0 IN CELL.
C36: Section D: Check a or b that agrees with the school district type. | D36: =IF(OR(COVER!B6="x",'FP Info 3'!B32="X",'FP Info 3'!B33="X"),"OK","ENTRY IS REQUIRED!") -> ENTRY IS REQUIRED!
C37: Section E: Is there a material impact on the entity's financial position? | D37: =IF(AND('FP Info 3'!B45="",'FP Info 3'!B46="",'FP Info 3'!B47="",'FP Info 3'!B48="",'FP Info 3'!B49="",'FP Info 3'!B50="",'FP Info 3'!B51="",'FP Info 3'!B52=""),"NO","YES") -> NO
B38: =B33+1 -> 4 | C38: Page 5: Cells C4:L4 Acct 111-115 - Cash Balances cannot be negative.
C39: Fund (10) ED: Cash balances cannot be negative. | D39: =IF('Assets-Liab 5-6'!C4<-0.49, "ERROR!","OK") -> OK
C40: Fund (20) O&M: Cash balances cannot be negative. | D40: =IF('Assets-Liab 5-6'!D4<-0.49, "ERROR!","OK") -> OK
C41: Fund (30) DS: Cash balances cannot be negative. | D41: =IF('Assets-Liab 5-6'!E4<-0.49, "ERROR!","OK") -> OK
C42: Fund (40) TR: Cash balances cannot be negative. | D42: =IF('Assets-Liab 5-6'!F4<-0.49, "ERROR!","OK") -> OK
C43: Fund (50) MR/SS: Cash balances cannot be negative. | D43: =IF('Assets-Liab 5-6'!G4<-0.49, "ERROR!","OK") -> OK
C44: Fund (60) CP: Cash balances cannot be negative. | D44: =IF('Assets-Liab 5-6'!H4<-0.49, "ERROR!","OK") -> OK
C45: Fund (70) WC: Cash balances cannot be negative. | D45: =IF('Assets-Liab 5-6'!I4<-0.49, "ERROR!","OK") -> OK
C46: Fund (80) Tort: Cash balances cannot be negative. | D46: =IF('Assets-Liab 5-6'!J4<-0.49, "ERROR!","OK") -> OK
C47: Fund (90) FP&S: Cash balances cannot be negative. | D47: =IF('Assets-Liab 5-6'!K4<-0.49, "ERROR!","OK") -> OK
B48: =B38+1 -> 5 | C48: Page 5 & 6: Total Current & Capital Assets must = Total Liabilities & Fund Balance.
C49: Fund 10, Cell C13 must = Cell C41. | D49: =IF(SUM('Assets-Liab 5-6'!C13)<>SUM('Assets-Liab 5-6'!C41),"ERROR!","OK") -> OK
C50: Fund 20, Cell D13 must = Cell D41. | D50: =IF(SUM('Assets-Liab 5-6'!D13)<>SUM('Assets-Liab 5-6'!D41),"ERROR!","OK") -> OK
C51: Fund 30, Cell E13 must = Cell E41. | D51: =IF(SUM('Assets-Liab 5-6'!E13)<>SUM('Assets-Liab 5-6'!E41),"ERROR!","OK") -> OK
C52: Fund 40, Cell F13 must = Cell F41. | D52: =IF(SUM('Assets-Liab 5-6'!F13)<>SUM('Assets-Liab 5-6'!F41),"ERROR!","OK") -> OK
C53: Fund 50, Cell G13 must = Cell G41. | D53: =IF(SUM('Assets-Liab 5-6'!G13)<>SUM('Assets-Liab 5-6'!G41),"ERROR!","OK") -> OK
C54: Fund 60, Cell H13 must = Cell H41. | D54: =IF(SUM('Assets-Liab 5-6'!H13)<>SUM('Assets-Liab 5-6'!H41),"ERROR!","OK") -> OK
C55: Fund 70, Cell I13 must = Cell I41. | D55: =IF(SUM('Assets-Liab 5-6'!I13)<>SUM('Assets-Liab 5-6'!I41),"ERROR!","OK") -> OK
C56: Fund 80, Cell J13 must = Cell J41. | D56: =IF(SUM('Assets-Liab 5-6'!J13)<>SUM('Assets-Liab 5-6'!J41),"ERROR!","OK") -> OK
C57: Fund 90, Cell K13 must = Cell K41. | D57: =IF(SUM('Assets-Liab 5-6'!K13)<>SUM('Assets-Liab 5-6'!K41),"ERROR!","OK") -> OK
C58: Agency Fund, Cell L13 must = Cell L41. | D58: =IF(SUM('Assets-Liab 5-6'!L13)<>('Assets-Liab 5-6'!L41),"ERROR!","OK") -> OK
C59: General Fixed Assets, Cell M23 must = Cell M41. | D59: =IF(SUM('Assets-Liab 5-6'!M23)<>('Assets-Liab 5-6'!M41),"ERROR!","OK") -> OK
C60: General Long-Term Debt, Cell N23 must = Cell N41. | D60: =IF(SUM('Assets-Liab 5-6'!N23)<>('Assets-Liab 5-6'!N41),"ERROR!","OK") -> OK
B61: =B48+1 -> 6 | C61: Page 5: Sum of Reserved & Unreserved Fund Balance must = Page 8, Ending Fund Balance.
C62: Fund 10, Cells C38+C39 must = Cell C81. | D62: =IF('Assets-Liab 5-6'!C38+'Assets-Liab 5-6'!C39='Acct Summary 7-9'!C81,"OK","ERROR!") -> OK
C63: Fund 20, Cells D38+D39 must = Cell D81. | D63: =IF((('Assets-Liab 5-6'!D38+'Assets-Liab 5-6'!D39) ='Acct Summary 7-9'!D81), "OK", "ERROR!" ) -> OK
C64: Fund 30, Cells E38+E39 must = Cell E81 | D64: =IF((('Assets-Liab 5-6'!E38 + 'Assets-Liab 5-6'!E39) ='Acct Summary 7-9'!E81), "OK", "ERROR!" ) -> OK
C65: Fund 40, Cells F38+F39 must = Cell F81. | D65: =IF((('Assets-Liab 5-6'!F38 + 'Assets-Liab 5-6'!F39) ='Acct Summary 7-9'!F81), "OK", "ERROR!" ) -> OK
C66: Fund 50, Cells G38+G39 must = Cell G81. | D66: =IF((('Assets-Liab 5-6'!G38 + 'Assets-Liab 5-6'!G39) ='Acct Summary 7-9'!G81), "OK", "ERROR!" ) -> OK
C67: Fund 60, Cells H38+H39 must = Cell H81. | D67: =IF((('Assets-Liab 5-6'!H38 + 'Assets-Liab 5-6'!H39) ='Acct Summary 7-9'!H81), "OK", "ERROR!" ) -> OK
C68: Fund 70, Cells I38+I39 must = Cell I81. | D68: =IF((('Assets-Liab 5-6'!I38 + 'Assets-Liab 5-6'!I39) ='Acct Summary 7-9'!I81), "OK", "ERROR!" ) -> OK
C69: Fund 80, Cells J38+J39 must = Cell J81. | D69: =IF((('Assets-Liab 5-6'!J38 + 'Assets-Liab 5-6'!J39) ='Acct Summary 7-9'!J81), "OK", "ERROR!" ) -> OK
C70: Fund 90, Cells K38+K39 must = Cell K81. | D70: =IF((('Assets-Liab 5-6'!K38 + 'Assets-Liab 5-6'!K39) ='Acct Summary 7-9'!K81), "OK", "ERROR!" ) -> OK
B71: =B61+1+1 -> 8 | C71: Page 26: Schedule of Long-Term Debt
C72: Note: Explain any unreconcilable differences in the Itemization sheet.
C73: Total Long-Term Debt Issued (P26, Cell F49) must = Principal on Long-Term Debt Sold (P7, Cells C33:K33). | D73: =IF('Short-Term Long-Term Debt 26'!F49=SUM(,'Acct Summary 7-9'!C33:K33),"OK","ERROR!") -> OK
C74: Total Long-Term Debt (Principal) Retired (P19, Cell H174) must = Debt Service - Long-Term Debt (Principal) Retired (P26, Cell H49). | D74: =IF('Expenditures 16-24'!H174<>'Short-Term Long-Term Debt 26'!H49,"ERROR!","OK") -> OK
B75: =B71+1 -> 9 | C75: Page 7-9: Other Sources of Funds must = Other Uses of Funds
C76: Acct 7130 - Transfer Among Funds, Cells C27:K27 must = Acct 8130 Transfer Among Funds, Cells C49:K49 | D76: =IF(SUM('Acct Summary 7-9'!C27:K27) =SUM( 'Acct Summary 7-9'!C49:K49),"OK", "ERROR") -> OK
C77: Acct 7140 - Transfer of Interest, Cells C28:K28 must = Acct 8140 Transfer of Interest, Cells C50:K50. | D77: =IF(SUM('Acct Summary 7-9'!C28:K28)=SUM('Acct Summary 7-9'!C50:K50),"OK","ERROR!") -> OK
C78: Acct 7900 - ISBE Loan Proceeds (Cells C42:K42) must = Acct 8910 - Transfers to Debt Service Fund to Pay Principal on ISBE Loans (Cells C74:K74) | D78: =IF(SUM('Acct Summary 7-9'!C42:K42)>=SUM( 'Acct Summary 7-9'!C74:K74),"OK", "ERROR") -> OK
B79: =B75+1 -> 10 | C79: Restricted Tax Levies Page 27, Line 25 must = Reserved Fund Balance, Pages 5 & 6, Line 38.
C80: Reserved Fund Balance, Page 5, Cells C38:H38 must be => Reserve Fund Balance Cell G25:K25. | D80: =IF(SUM('Assets-Liab 5-6'!C38:H38+'Assets-Liab 5-6'!J38)>=SUM('Rest Tax Levies-Tort Im 27'!G25:K25),"OK","ERROR") -> OK
C81: Unreserved Fund Balance, Page 5, Cells C39:H39 must be > 0 | D81: =IF(SUM('Assets-Liab 5-6'!C39:K39)>0,"OK","ENTRY IS REQUIRED!") -> ENTRY IS REQUIRED!
B82: =B79+1 -> 11 | C82: Page 7: "On behalf" payments to the Educational Fund
C83: Fund (10) ED: Account 3998, cell C9 must be entered or Explain why this is zero on Itemization sheet. | D83: =IF(ISNUMBER('Acct Summary 7-9'!C9),"OK","ENTRY IS REQUIRED!") -> ENTRY IS REQUIRED!
B84: =B79+1+1 -> 12 | C84: Page 37-39: The 9 Month ADA must be entered on Line 98. | D84: =IF(OR(COVER!$B$6="X",'PCTC-OEPP 37-39'!F98>0),"OK","PLEASE ENTER 9 MO ADA.") -> PLEASE ENTER 9 MO ADA.
B85: 13 | C85: Page 37-39: The Special Education Contributions from EBF Funds (line 192) must be entered. | D85: =IF(OR(COVER!$B$6="X",ISNUMBER('PCTC-OEPP 37-39'!F192)),"OK","PLEASE ENTER AMOUNT or 0.") -> PLEASE ENTER AMOUNT or 0.
B86: 14 | C86: Page 37-39: The English Learning (Bilingual) Contributions from EBF Funds (line 193) must be entered. | D86: =IF(OR(COVER!$B$6="X",ISNUMBER('PCTC-OEPP 37-39'!F193)),"OK","PLEASE ENTER AMOUNT or 0.") -> PLEASE ENTER AMOUNT or 0.
B87: 15 | C87: Page 40: Contracts Paid in Current Year (CY) MUST be completed. If there are no contracts, state "no contracts" in cell A20 on Contacts Paid in CY tab. | D87: =IF('Contracts Paid in CY 40'!A20="","PLEASE ENTER CONTRACTS PAID IN CURRENT YEAR. IF NONE, STATE NO CONTRACTS.","OK") -> PLEASE ENTER CONTRACTS PAID IN CURRENT YEAR. IF NONE, STATE NO CONTRACTS.
B88: 16 | C88: Page 42: SHARED OUTSOURCED SERVICES, Completed. | D88: =IF('Shared Outsourced Services 42'!B8="X","OK",IF('Shared Outsourced Services 42'!K34>0,"OK","ENTRY REQUIRED!")) -> ENTRY REQUIRED!
B89: 17 | C89: Page 43: LIMITATION OF ADMINISTRATIVE COST, Budget Information must be completed and submitted to ISBE. | D89: =IF(COVER!B5="X",IF('AC 43'!L19=0,"ENTER BUDGET DATA!","OK"),"OK") -> OK
B90: 18 | C90: Page 27: Rest Tax Levies-Tort Im 27, G31 (Total Tort Expenditures) minus (G36 through G45) must equal 0 | D90: ='Rest Tax Levies-Tort Im 27'!G47 -> ERROR. If N/A, enter 0 in G36-G45
B91: 19 | C91: Assets-Liab (C45,C48, C49), Acct Summary (C85), Revenues (C82), Expenditures (H33) -Enter Student Activity Funds | D91: =IF(OR('Assets-Liab 5-6'!C45="",'Assets-Liab 5-6'!C48="",'Assets-Liab 5-6'!C49="",'Acct Summary 7-9'!C85="",'Expenditures 16-24'!H33="",'Revenues 10-15'!C82=""),"ENTRY IS REQUIRED! IF ZERO, ENTER 0 in cell.","OK") -> ENTRY IS REQUIRED! IF ZERO, ENTER 0 in cell.
B92: 20 | C92: Page 28-35: CARES CRRSA ARP Schedule - Revenue 4998 listed on schedule must equal Revenue 4998 listed on Revenue tab | D92: =IF(AND('CARES CRRSA ARP 28-35'!C42="OK",'CARES CRRSA ARP 28-35'!D42="OK",'CARES CRRSA ARP 28-35'!F42="OK",'CARES CRRSA ARP 28-35'!G42="OK",'CARES CRRSA ARP 28-35'!H42="OK",'CARES CRRSA ARP 28-35'!K42="OK",'CARES CRRSA ARP 28-35'!L42="OK"),"OK","ERROR") -> OK
B93: 21 | C93: Page 28-35: CARES CRRSA ARP Schedule -check box yes or no if district/joint agreement received/expended funds | D93: =IF(AND(('CARES CRRSA ARP 28-35'!D4=""),('CARES CRRSA ARP 28-35'!G4="")),"ERROR, check yes or no","OK") -> ERROR, check yes or no

Sheet AFR22 (hidden)
A1: HEADING (No Data Entry is required on this sheet) | E1: Fiscal Year | F1: Version | G1: Contracts tab F-F-O
A2: District/Joint Agreement Code | B2: =COVER!A13 -> Please select district from drop-down list on line 17. | E2: 2022 | F2: 1 | G2: 101000300
A3: County Name | B3: =COVER!A15 -> 0 | E3: Due to ROE | F3: Due to ISBE | G3: 101000400
A4: District/Joint Agreement Name | B4: =COVER!A17 -> 0 | E4: 2022-10-14 | F4: 2022-11-15 | G4: 101000600
A5: District Superintendent/Administrator Name | B5: =COVER!A38 -> 0 | G5: 101000800
A6: Name of Township | B6: =COVER!P35 -> 0 | G6: 801000300
A7: Township Treasurer Name | B7: =COVER!I38 -> 0 | G7: 801000400
A8: Regional Superintendent Name | B8: =COVER!T38 -> 0 | G8: 801000600
A9: Accounting Basis | B9: =AUDITCHECK!D27 -> PLEASE CHECK AN ACCOUNTING BASIS. | G9: 801000800
A10: Deficit Reduction Plan? | B10: =COVER!J24 -> 0 | G10: 102100300
A11: Is this a School District AFR? (YES) | B11: =COVER!B5 -> 0 | G11: 102100400
A12: Is this a Joint Agreement AFR? (YES) | B12: =COVER!B6 -> 0 | G12: 102100600
A13: Illinois Registration Number | B13: =COVER!T23 -> 0 | G13: 102100800
A14: CPA Firm Name | B14: =COVER!T13 -> 0 | G14: 202100300
A15: Name of Audit Supervisor | B15: =COVER!T15 -> 0 | G15: 202100400
A16: Address | B16: =COVER!T17 -> 0 | G16: 202100600
A17: Email Address | B17: =COVER!T25 -> 0 | G17: 202100800
A18: City | B18: =COVER!T19 -> 0 | G18: 402100300
A19: State | B19: =COVER!X19 -> 0 | G19: 402100400
A20: Zip Code | B20: =COVER!Z19 -> 0 | G20: 402100600
A21: Telephone Number | B21: =COVER!T21 -> 0 | G21: 402100800
A22: Fax Number | B22: =COVER!Y21 -> 0 | G22: 802100300
A23: Reviewed by the District Superintendent | B23: =COVER!B34 -> 0 | G23: 802100400
A24: Reviewed by Township Treasurer | B24: =COVER!L34 -> 0 | G24: 802100600
A25: Reviewed by Regional Superintendent | B25: =COVER!U34 -> 0 | G25: 802100800
A26: AQ1 (X=YES) | B26: =IF('Aud Quest 2'!B9="x","Yes",IF('Aud Quest 2'!B9<>"x","0")) -> 0 | G26: 102200300
A27: AQ2 | B27: =IF('Aud Quest 2'!B11="x","Yes",IF('Aud Quest 2'!B11<>"x","0")) -> 0 | G27: 102200400
A28: AQ3 | B28: =IF('Aud Quest 2'!B13="x","Yes",IF('Aud Quest 2'!B13<>"x","0")) -> 0 | G28: 102200600
A29: AQ4 | B29: =IF('Aud Quest 2'!B14="x","Yes",IF('Aud Quest 2'!B14<>"x","0")) -> 0 | G29: 102200800
A30: AQ5 | B30: =IF('Aud Quest 2'!B15="x","Yes",IF('Aud Quest 2'!B15<>"x","0")) -> 0 | G30: 802200300
A31: AQ6 | B31: =IF('Aud Quest 2'!B16="x","Yes",IF('Aud Quest 2'!B16<>"x","0")) -> 0 | G31: 802200400
A32: AQ7 | B32: =IF('Aud Quest 2'!B18="x","Yes",IF('Aud Quest 2'!B18<>"x","0")) -> 0 | G32: 802200600
A33: AQ8 | B33: =IF('Aud Quest 2'!B20="x","Yes",IF('Aud Quest 2'!B20<>"x","0")) -> 0 | G33: 802200800
A34: AQ9 | B34: =IF('Aud Quest 2'!B22="x","Yes",IF('Aud Quest 2'!B22<>"x","0")) -> 0 | G34: 102300300
A35: AQ10 | B35: =IF('Aud Quest 2'!B24="x","Yes",IF('Aud Quest 2'!B24<>"x","0")) -> 0 | G35: 102300400
A36: AQ11 | B36: =IF('Aud Quest 2'!B25="x","Yes",IF('Aud Quest 2'!B25<>"x","0")) -> 0 | G36: 102300600
A37: AQ12 | B37: =IF('Aud Quest 2'!B27="x","Yes",IF('Aud Quest 2'!B27<>"x","0")) -> 0 | G37: 102300800
A38: AQ13 | B38: =IF('Aud Quest 2'!B29="x","Yes",IF('Aud Quest 2'!B29<>"x","0")) -> 0 | G38: 802300300
A39: AQ14 | B39: =IF('Aud Quest 2'!B31="x","Yes",IF('Aud Quest 2'!B31<>"x","0")) -> 0 | G39: 802300400
A40: AQ15 | B40: =IF('Aud Quest 2'!B37="x","Yes",IF('Aud Quest 2'!B37<>"x","0")) -> 0 | G40: 802300600
A41: AQ16 | B41: =IF('Aud Quest 2'!B40="x","Yes",IF('Aud Quest 2'!B40<>"x","0")) -> 0 | G41: 802300800
A42: AQ17 | B42: =IF('Aud Quest 2'!B42="x","Yes",IF('Aud Quest 2'!B42<>"x","0")) -> 0 | G42: 102400300
A43: AQ18 | B43: =IF('Aud Quest 2'!B44="x","Yes",IF('Aud Quest 2'!B44<>"x","0")) -> 0 | G43: 102400400
A44: AQ19 | B44: =IF('Aud Quest 2'!B49="x","Yes",IF('Aud Quest 2'!B49<>"x","0")) -> 0 | G44: 102400600
A45: AQ20 | B45: =IF('Aud Quest 2'!B50="x","Yes",IF('Aud Quest 2'!B50<>"x","0")) -> 0 | G45: 102400800
A46: AQ21 | G46: 802400300
A47: AQ22 | B47: =IF('Aud Quest 2'!B51="x","Yes",IF('Aud Quest 2'!B51<>"x","0")) -> 0 | G47: 802400400
A48: AQ22 Date (If AQ22 = X, DATE) | B48: ='Aud Quest 2'!H51 -> 00:00:00 | G48: 802400600
A49: AQ23 | B49: =IF('Aud Quest 2'!B52="x","Yes",IF('Aud Quest 2'!B52<>"x","0")) -> 0 | G49: 802400800
A50: Comment1 | B50: =('Aud Quest 2'!D54) -> 0 | G50: 102510300
A51: QE1(Pending Litigation) | B51: =IF('FP Info 3'!B45="X","Yes",0) -> 0 | G51: 102510400
A52: QE2 (Material Decrease in EAV) | B52: =IF('FP Info 3'!B46="X","Yes",0) -> 0 | G52: 102510600
A53: QE3 (Material Increase/Decrease in Enrollment) | B53: =IF('FP Info 3'!B47="X","Yes",0) -> 0 | G53: 102510800
A54: QE4 (Adverse Arbitration Ruling) | B54: =IF('FP Info 3'!B48="X","Yes",0) -> 0 | G54: 202510300
A55: QE5 (Passage of Referendum) | B55: =IF('FP Info 3'!B49="X","Yes",0) -> 0 | G55: 202510400
A56: QE6 (Taxes Filed Under Protest) | B56: =IF('FP Info 3'!B50="X","Yes",0) -> 0 | G56: 202510600
A57: QE7 (Decisions By Local Board of Review or IL Property Tax Appeal Board) | B57: =IF('FP Info 3'!B51="X","Yes",0) -> 0 | G57: 202510800
A58: QE8 (Other Ongoing Concerns) | B58: =IF('FP Info 3'!B52="X","Yes",0) -> 0 | G58: 802510300
A59: QE(Comment) | B59: =('FP Info 3'!A54) -> 0 | G59: 802510400
A60: 1 | D60: =IF(ISBLANK(B60),"OK",IF(A60-B60=0,"OK","Error?")) -> OK | G60: 802510600
A61: 2 | D61: =IF(ISBLANK(B61),"OK",IF(A61-B61=0,"OK","Error?")) -> OK | G61: 802510800
A62: 3 | D62: OK | G62: 102520300
A63: 4 | B63: ='Assets-Liab 5-6'!C6 -> 0 | D63: Error? | G63: 102520400
A64: 5 | D64: OK | G64: 102520600
A65: 6 | D65: OK | G65: 102520800
A66: 7 | D66: OK | G66: 802520300
A67: 8 | D67: OK | G67: 802520400
A68: 9 | D68: OK | G68: 802520600
A69: 10 | D69: OK | G69: 802520800
A70: 11 | B70: ='Assets-Liab 5-6'!C10 -> 0 | D70: Error? | G70: 102540300
A71: 12 | B71: ='Assets-Liab 5-6'!C5 -> 0 | D71: Error? | G71: 102540400
A72: 13 | D72: OK | G72: 102540600
A73: 14 | D73: OK | G73: 102540800
A74: 15 | B74: ='Assets-Liab 5-6'!C12 -> 0 | D74: Error? | G74: 202540300
A75: 16 | B75: ='Assets-Liab 5-6'!C13 -> 0 | D75: Error? | G75: 202540400
A76: 17 | D76: OK | G76: 202540600
A77: 18 | C77: T | D77: OK | G77: 202540800
A78: 19 | D78: OK | G78: 802540300
A79: 20 | D79: OK | G79: 802540400
A80: 21 | D80: OK | G80: 802540600
A81: 22 | D81: OK | G81: 802540800
A82: 23 | D82: OK | G82: 902540300
A83: 24 | D83: OK | G83: 902540400
A84: 25 | B84: ='Assets-Liab 5-6'!C31 -> 0 | D84: Error? | G84: 902540600
A85: 26 | D85: OK | G85: 902540800
A86: 27 | B86: ='Assets-Liab 5-6'!C32 -> 0 | D86: Error? | G86: 102550300
A87: 28 | D87: OK | G87: 102550400
A88: 29 | D88: OK | G88: 102550600
A89: 30 | B89: ='Assets-Liab 5-6'!C34 -> 0 | D89: Error? | G89: 102550800
A90: 31 | B90: ='Assets-Liab 5-6'!C39 -> 0 | D90: Error? | G90: 202550300
A91: 32 | B91: ='Assets-Liab 5-6'!C41 -> 0 | C91: T | D91: Error? | G91: 202550400
A92: 33 | D92: OK | G92: 202550600
A93: 34 | C93: T | D93: OK | G93: 202550800
A94: 35 | D94: OK | G94: 402550300
A95: 36 | B95: ='Assets-Liab 5-6'!D6 -> 0 | D95: Error? | G95: 402550400
A96: 37 | D96: OK | G96: 402550600
A97: 38 | D97: OK | G97: 402550800
A98: 39 | D98: OK | G98: 802550300
A99: 40 | D99: OK | G99: 802550400
A100: 41 | D100: OK | G100: 802550600
A101: 42 | D101: OK | G101: 802550800
A102: 43 | B102: ='Assets-Liab 5-6'!D10 -> 0 | D102: Error? | G102: 102560300
A103: 44 | B103: ='Assets-Liab 5-6'!D5 -> 0 | D103: Error? | G103: 102560400
A104: 45 | D104: OK | G104: 102560600
A105: 46 | D105: OK | G105: 102560800
A106: 47 | B106: ='Assets-Liab 5-6'!D12 -> 0 | D106: Error? | G106: 802560300
A107: 48 | B107: ='Assets-Liab 5-6'!D13 -> 0 | D107: Error? | G107: 802560400
A108: 49 | D108: OK | G108: 802560600
A109: 50 | C109: T | D109: OK | G109: 802560800
A110: 51 | D110: OK | G110: 102570300
A111: 52 | D111: OK | G111: 102570400
A112: 53 | D112: OK | G112: 102570600
A113: 54 | D113: OK | G113: 102570800
A114: 55 | D114: OK | G114: 802570300
A115: 56 | B115: ='Assets-Liab 5-6'!D31 -> 0 | D115: Error? | G115: 802570400
A116: 57 | D116: OK | G116: 802570600
A117: 58 | B117: ='Assets-Liab 5-6'!D32 -> 0 | D117: Error? | G117: 802570800
A118: 59 | D118: OK | G118: 102610300
A119: 60 | D119: OK | G119: 102610400
A120: 61 | B120: ='Assets-Liab 5-6'!D34 -> 0 | D120: Error? | G120: 102610600
A121: 62 | B121: ='Assets-Liab 5-6'!D39 -> 0 | D121: Error? | G121: 102610800
A122: 63 | B122: ='Assets-Liab 5-6'!D41 -> 0 | C122: T | D122: Error? | G122: 802610300
A123: 64 | D123: OK | G123: 802610400
A124: 65 | B124: ='Assets-Liab 5-6'!E6 -> 0 | C124: T | D124: Error? | G124: 802610600
A125: 66 | D125: =IF(ISBLANK(B125),"OK",IF(A125-B125=0,"OK","Error?")) -> OK | G125: 802610800
A126: 67 | D126: OK | G126: 102620300
A127: 68 | B127: ='Assets-Liab 5-6'!E5 -> 0 | D127: Error? | G127: 102620400
A128: 69 | B128: ='Assets-Liab 5-6'!E12 -> 0 | D128: Error? | G128: 102620600
A129: 70 | B129: ='Assets-Liab 5-6'!E13 -> 0 | D129: Error? | G129: 102620800
A130: 71 | D130: OK | G130: 802620300
A131: 72 | C131: T | D131: OK | G131: 802620400
A132: 73 | B132: ='Assets-Liab 5-6'!E32 -> 0 | D132: Error? | G132: 802620600
A133: 74 | D133: OK | G133: 802620800
A134: 75 | D134: OK | G134: 102630300
A135: 76 | D135: OK | G135: 102630400
A136: 77 | D136: OK | G136: 102630600
A137: 78 | B137: ='Assets-Liab 5-6'!E34 -> 0 | D137: Error? | G137: 102630800
A138: 79 | B138: ='Assets-Liab 5-6'!E39 -> 0 | D138: Error? | G138: 802630300
A139: 80 | B139: ='Assets-Liab 5-6'!E41 -> 0 | C139: T | D139: Error? | G139: 802630400
A140: 81 | D140: OK | G140: 802630600
A141: 82 | C141: T | D141: OK | G141: 802630800
A142: 83 | D142: OK | G142: 102640300
A143: 84 | B143: ='Assets-Liab 5-6'!F6 -> 0 | D143: Error? | G143: 102640400
A144: 85 | D144: OK | G144: 102640600
A145: 86 | D145: OK | G145: 102640800
A146: 87 | D146: OK | G146: 802640300
A147: 88 | D147: OK | G147: 802640400
A148: 89 | D148: OK | G148: 802640600
A149: 90 | D149: OK | G149: 802640800
A150: 91 | B150: ='Assets-Liab 5-6'!F10 -> 0 | D150: Error? | G150: 102660300
A151: 92 | B151: ='Assets-Liab 5-6'!F5 -> 0 | D151: Error? | G151: 102660400
A152: 93 | D152: OK | G152: 102660600
A153: 94 | D153: OK | G153: 102660800
A154: 95 | B154: ='Assets-Liab 5-6'!F12 -> 0 | D154: Error? | G154: 802660300
A155: 96 | B155: ='Assets-Liab 5-6'!F13 -> 0 | D155: Error? | G155: 802660400
A156: 97 | D156: OK | G156: 802660600
A157: 98 | C157: T | D157: OK | G157: 802660800
A158: 99 | D158: OK | G158: 102900300
A159: 100 | D159: OK | G159: 102900400
A160: 101 | D160: OK | G160: 102900600
A161: 102 | D161: OK | G161: 102900800
A162: 103 | B162: ='Assets-Liab 5-6'!F31 -> 0 | D162: Error? | G162: 202900300
A163: 104 | D163: OK | G163: 202900400
A164: 105 | B164: ='Assets-Liab 5-6'!F32 -> 0 | D164: Error? | G164: 202900600
A165: 106 | D165: OK | G165: 202900800
A166: 107 | D166: OK | G166: 402900300
A167: 108 | B167: ='Assets-Liab 5-6'!F34 -> 0 | D167: Error? | G167: 402900400
A168: 109 | B168: ='Assets-Liab 5-6'!F39 -> 0 | D168: Error? | G168: 402900600
A169: 110 | B169: ='Assets-Liab 5-6'!F41 -> 0 | C169: T | D169: Error? | G169: 402900800
A170: 111 | D170: OK | G170: 602900300
A171: 112 | B171: ='Assets-Liab 5-6'!G6 -> 0 | C171: T | D171: Error? | G171: 602900400
A172: 113 | D172: OK | G172: 602900600
A173: 114 | D173: OK | G173: 602900800
A174: 115 | D174: OK | G174: 802900300
A175: 116 | B175: ='Assets-Liab 5-6'!G5 -> 0 | D175: Error? | G175: 802900400
A176: 117 | D176: OK | G176: 802900600
A177: 118 | B177: ='Assets-Liab 5-6'!G12 -> 0 | D177: Error? | G177: 802900800
A178: 119 | B178: ='Assets-Liab 5-6'!G13 -> 0 | D178: Error? | G178: 902900300
A179: 120 | D179: OK | G179: 902900400
A180: 121 | C180: T | D180: OK | G180: 902900600
A181: 122 | D181: OK | G181: 902900800
A182: 123 | B182: ='Assets-Liab 5-6'!G31 -> 0 | D182: Error? | G182: 103000300
A183: 124 | B183: ='Assets-Liab 5-6'!G32 -> 0 | D183: Error? | G183: 103000400
A184: 125 | D184: OK | G184: 103000600
A185: 126 | D185: OK | G185: 103000800
A186: 127 | B186: ='Assets-Liab 5-6'!G34 -> 0 | D186: Error? | G186: 203000300
A187: 128 | B187: ='Assets-Liab 5-6'!G39 -> 0 | D187: Error? | G187: 203000400
A188: 129 | B188: ='Assets-Liab 5-6'!G41 -> 0 | C188: T | D188: Error? | G188: 203000600
A189: 130 | D189: =IF(ISBLANK(B189),"OK",IF(A189-B189=0,"OK","Error?")) -> OK | G189: 203000800
A190: 131 | C190: T | D190: OK | G190: 403000300
A191: 132 | D191: OK | G191: 403000400
A192: 133 | D192: OK | G192: 403000600
A193: 134 | D193: OK | G193: 403000800
A194: 135 | D194: OK | G194: 803000300
A195: 136 | D195: OK | G195: 803000400
A196: 137 | B196: ='Assets-Liab 5-6'!H10 -> 0 | D196: Error? | G196: 803000600
A197: 138 | B197: ='Assets-Liab 5-6'!H5 -> 0 | D197: Error? | G197: 803000800
A198: 139 | D198: OK
A199: 140 | D199: OK
A200: 141 | B200: ='Assets-Liab 5-6'!H12 -> 0 | D200: Error?
... 9589 more rows

Sheet Single Audit & GATA Information
A1: INSTRUCTIONS/REQUIREMENTS: For School Districts/Joint Agreements
A2: SINGLE AUDIT WORKPAPERS
B4: In an effort to accommodate the increased reporting requirements for School Districts/Joint Agreements, the Single Audit workpapers are no longer required to be submitted by the Annual Financial Report (AFR) due date. School District / Joint Agreement Single Audits are due in accordance with 2 CFR 200.512(a).
B6: All School Districts / Joint Agreements that have Federal grant expenditures greater than $750,000 should use the workpapers found in the "Single Audit Workpaper Template" on our website at www.isbe.net/gata or via direct link:
B8: Single Audit Workpapers
A10: GATA REQUIREMENTS
B12: All School Districts/Joint Agreements must also complete GATA reporting requirements on the GATA Grantee Portal (https://grants.illinois.gov/portal) 1) Audit Certification Form 2) Consolidated Year End Financial Report (with in-relation to opinion) 3) Audit Package Submission 4) Data Collection Form (NOT REQUIRED FOR SINGLE AUDITS) Guidance for completing the GATA reporting requirements can be found on our website (www.isbe.net/gata) under the "What's new?" banner, or via the link below.
B13: Guidance for the AARR Requirements

Sheet SDJA Listing for cover page (hidden)
A1: RCDT by Alphabetical Order | B1: School District/Joint Agreement | C1: RCDT | D1: Combined RCDT and SD Name
A2: 07016806060 | B2: A E R O Spec Educ Coop | C2: 07016806060 | D2: 07-016-8060-60_AFR22 A E R O Spec Educ Coop
A3: 33048276026 | B3: Abingdon-Avon CUSD 276 | C3: 33048276026 | D3: 33-048-2760-26_AFR22 Abingdon-Avon CUSD 276
A4: 01009262026 | B4: A-C Central CUSD 262 | C4: 01009262026 | D4: 01-009-2620-26_AFR22 A-C Central CUSD 262
A5: 19022004002 | B5: Addison SD 4 | C5: 19022004002 | D5: 19-022-0040-02_AFR22 Addison SD 4
A6: 34049125013 | B6: Adlai E Stevenson HSD 125 | C6: 34049125013 | D6: 34-049-1250-13_AFR22 Adlai E Stevenson HSD 125
A7: 21028091004 | B7: Akin CCSD 91 | C7: 21028091004 | D7: 21-028-0910-04_AFR22 Akin CCSD 91
A8: 13014063002 | B8: Albers SD 63 | C8: 13014063002 | D8: 13-014-0630-02_AFR22 Albers SD 63
A9: 44063019024 | B9: Alden Hebron SD 19 | C9: 44063019024 | D9: 44-063-0190-24_AFR22 Alden Hebron SD 19
A10: 20093017024 | B10: Allendale CCSD 17 | C10: 20093017024 | D10: 20-093-0170-24_AFR22 Allendale CCSD 17
A11: 35050065004 | B11: Allen-Otter Creek CCSD 65 | C11: 35050065004 | D11: 35-050-0650-04_AFR22 Allen-Otter Creek CCSD 65
A12: 07016126002 | B12: Alsip-Hazlgrn-Oaklwn SD 126 | C12: 07016126002 | D12: 07-016-1260-02_AFR22 Alsip-Hazlgrn-Oaklwn SD 126
A13: 03025010026 | B13: Altamont CUSD 10 | C13: 03025010026 | D13: 03-025-0100-26_AFR22 Altamont CUSD 10
A14: 41057011026 | B14: Alton CUSD 11 | C14: 41057011026 | D14: 41-057-0110-26_AFR22 Alton CUSD 11
A15: 28037225026 | B15: AlWood CUSD 225 | C15: 28037225026 | D15: 28-037-2250-26_AFR22 AlWood CUSD 225
A16: 47052272026 | B16: Amboy CUSD 272 | C16: 47052272026 | D16: 47-052-2720-26_AFR22 Amboy CUSD 272
A17: 30091037004 | B17: Anna CCSD 37 | C17: 30091037004 | D17: 30-091-0370-04_AFR22 Anna CCSD 37
A18: 30091081016 | B18: Anna Jonesboro CHSD 81 | C18: 30091081016 | D18: 30-091-0810-16_AFR22 Anna Jonesboro CHSD 81
A19: 28037226026 | B19: Annawan CUSD 226 | C19: 28037226026 | D19: 28-037-2260-26_AFR22 Annawan CUSD 226
A20: 34049034004 | B20: Antioch CCSD 34 | C20: 34049034004 | D20: 34-049-0340-04_AFR22 Antioch CCSD 34
A21: 34049102004 | B21: Aptakisic-Tripp CCSD 102 | C21: 34049102004 | D21: 34-049-1020-04_AFR22 Aptakisic-Tripp CCSD 102
A22: 07016145002 | B22: Arbor Park SD 145 | C22: 07016145002 | D22: 07-016-1450-02_AFR22 Arbor Park SD 145
A23: 11021306026 | B23: Arcola CUSD 306 | C23: 11021306026 | D23: 11-021-3060-26_AFR22 Arcola CUSD 306
A24: 39055001026 | B24: Argenta-Oreana CUSD 1 | C24: 39055001026 | D24: 39-055-0010-26_AFR22 Argenta-Oreana CUSD 1
A25: 07016217016 | B25: Argo CHSD 217 | C25: 07016217016 | D25: 07-016-2170-16_AFR22 Argo CHSD 217
A26: 05016025002 | B26: Arlington Heights SD 25 | C26: 05016025002 | D26: 05-016-0250-02_AFR22 Arlington Heights SD 25
A27: 54092225017 | B27: Armstrong Twp HSD 225 | C27: 54092225017 | D27: 54-092-2250-17_AFR22 Armstrong Twp HSD 225
A28: 54092061003 | B28: Armstrong-Ellis Cons SD 61 | C28: 54092061003 | D28: 54-092-0610-03_AFR22 Armstrong-Ellis Cons SD 61
A29: 11021305026 | B29: Arthur CUSD 305 | C29: 11021305026 | D29: 11-021-3050-26_AFR22 Arthur CUSD 305
A30: 13095015004 | B30: Ashley CCSD 15 | C30: 13095015004 | D30: 13-095-0150-04_AFR22 Ashley CCSD 15
A31: 47052275026 | B31: Ashton-Franklin Center CUSD 275 | C31: 47052275026 | D31: 47-052-2750-26_AFR22 Ashton-Franklin Center CUSD 275
A32: 26029001026 | B32: Astoria CUSD 1 | C32: 26029001026 | D32: 26-029-0010-26_AFR22 Astoria CUSD 1
A33: 51065213026 | B33: Athens CUSD 213 | C33: 51065213026 | D33: 51-065-2130-26_AFR22 Athens CUSD 213
A34: 07016125002 | B34: Atwood Heights SD 125 | C34: 07016125002 | D34: 07-016-1250-02_AFR22 Atwood Heights SD 125
A35: 51084010026 | B35: Auburn CUSD 10 | C35: 51084010026 | D35: 51-084-0100-26_AFR22 Auburn CUSD 10
A36: 31045131022 | B36: Aurora East USD 131 | C36: 31045131022 | D36: 31-045-1310-22_AFR22 Aurora East USD 131
A37: 31045129022 | B37: Aurora West USD 129 | C37: 31045129022 | D37: 31-045-1290-22_AFR22 Aurora West USD 129
A38: 13014021002 | B38: Aviston SD 21 | C38: 13014021002 | D38: 13-014-0210-02_AFR22 Aviston SD 21
A39: 05016037002 | B39: Avoca SD 37 | C39: 05016037002 | D39: 05-016-0370-02_AFR22 Avoca SD 37
A40: 51084005026 | B40: Ball Chatham CUSD 5 | C40: 51084005026 | D40: 51-084-0050-26_AFR22 Ball Chatham CUSD 5
A41: 34049106002 | B41: Bannockburn SD 106 | C41: 34049106002 | D41: 34-049-1060-02_AFR22 Bannockburn SD 106
A42: 34049220026 | B42: Barrington CUSD 220 | C42: 34049220026 | D42: 34-049-2200-26_AFR22 Barrington CUSD 220
A43: 13014057002 | B43: Bartelso SD 57 | C43: 13014057002 | D43: 13-014-0570-02_AFR22 Bartelso SD 57
A44: 48072066002 | B44: Bartonville SD 66 | C44: 48072066002 | D44: 48-072-0660-02_AFR22 Bartonville SD 66
A45: 31045101022 | B45: Batavia USD 101 | C45: 31045101022 | D45: 31-045-1010-22_AFR22 Batavia USD 101
A46: 34049003004 | B46: Beach Park CCSD 3 | C46: 34049003004 | D46: 34-049-0030-04_AFR22 Beach Park CCSD 3
A47: 01009015026 | B47: Beardstown CUSD 15 | C47: 01009015026 | D47: 01-009-0150-26_AFR22 Beardstown CUSD 15
A48: 03025020026 | B48: Beecher City CUSD 20 | C48: 03025020026 | D48: 03-025-0200-26_AFR22 Beecher City CUSD 20
A49: 56099200U26 | B49: Beecher CUSD 200U | C49: 56099200U26 | D49: 56-099-200U-26_AFR22 Beecher CUSD 200U
A50: 28006000000 | B50: Behavior Disorder Program | C50: 28006000000 | D50: 28-006-0000-00_AFR22 Behavior Disorder Program
A51: 50082119002 | B51: Belle Valley SD 119 | C51: 50082119002 | D51: 50-082-1190-02_AFR22 Belle Valley SD 119
A52: 50082801060 | B52: Belleville Area Special Services | C52: 50082801060 | D52: 50-082-8010-60_AFR22 Belleville Area Special Services
A53: 50082118002 | B53: Belleville SD 118 | C53: 50082118002 | D53: 50-082-1180-02_AFR22 Belleville SD 118
A54: 50082201017 | B54: Belleville Twp HSD 201 | C54: 50082201017 | D54: 50-082-2010-17_AFR22 Belleville Twp HSD 201
A55: 06016088002 | B55: Bellwood SD 88 | C55: 06016088002 | D55: 06-016-0880-02_AFR22 Bellwood SD 88
A56: 04004100026 | B56: Belvidere CUSD 100 | C56: 04004100026 | D56: 04-004-1000-26_AFR22 Belvidere CUSD 100
A57: 39074005026 | B57: Bement CUSD 5 | C57: 39074005026 | D57: 39-074-0050-26_AFR22 Bement CUSD 5
A58: 19022025002 | B58: Benjamin SD 25 | C58: 19022025002 | D58: 19-022-0250-02_AFR22 Benjamin SD 25
A59: 19022002002 | B59: Bensenville SD 2 | C59: 19022002002 | D59: 19-022-0020-02_AFR22 Bensenville SD 2
A60: 21028047004 | B60: Benton CCSD 47 | C60: 21028047004 | D60: 21-028-0470-04_AFR22 Benton CCSD 47
A61: 21028103013 | B61: Benton Cons HSD 103 | C61: 21028103013 | D61: 21-028-1030-13_AFR22 Benton Cons HSD 103
A62: 06016087002 | B62: Berkeley SD 87 | C62: 06016087002 | D62: 06-016-0870-02_AFR22 Berkeley SD 87
A63: 06016098002 | B63: Berwyn North SD 98 | C63: 06016098002 | D63: 06-016-0980-02_AFR22 Berwyn North SD 98
A64: 06016100002 | B64: Berwyn South SD 100 | C64: 06016100002 | D64: 06-016-1000-02_AFR22 Berwyn South SD 100
A65: 41057008026 | B65: Bethalto CUSD 8 | C65: 41057008026 | D65: 41-057-0080-26_AFR22 Bethalto CUSD 8
A66: 13041082002 | B66: Bethel SD 82 | C66: 13041082002 | D66: 13-041-0820-02_AFR22 Bethel SD 82
A67: 47098000061 | B67: Bi-County Special Educ Coop | C67: 47098000061 | D67: 47-098-0000-61_AFR22 Bi-County Special Educ Coop
A68: 34049038002 | B68: Big Hollow SD 38 | C68: 34049038002 | D68: 34-049-0380-02_AFR22 Big Hollow SD 38
A69: 54092001026 | B69: Bismarck Henning CUSD | C69: 54092001026 | D69: 54-092-0010-26_AFR22 Bismarck Henning CUSD
A70: 54092800080 | B70: Bismarck Henning Rossville Alvin Cooperative High School | C70: 54092800080 | D70: 54-092-8000-80_AFR22 Bismarck Henning Rossville Alvin Cooperative High School
A71: 49081865060 | B71: Black Hawk Area Sp Ed District | C71: 49081865060 | D71: 49-081-8650-60_AFR22 Black Hawk Area Sp Ed District
A72: 07016206017 | B72: Bloom Twp HSD 206 | C72: 07016206017 | D72: 07-016-2060-17_AFR22 Bloom Twp HSD 206
A73: 19022013002 | B73: Bloomingdale SD 13 | C73: 19022013002 | D73: 19-022-0130-02_AFR22 Bloomingdale SD 13
A74: 17064087041 | B74: Bloomington Area Career Center | C74: 17064087041 | D74: 17-064-0870-41_AFR22 Bloomington Area Career Center
A75: 17064087025 | B75: Bloomington SD 87 | C75: 17064087025 | D75: 17-064-0870-25_AFR22 Bloomington SD 87
A76: 17020018026 | B76: Blue Ridge CUSD 18 | C76: 17020018026 | D76: 17-020-0180-26_AFR22 Blue Ridge CUSD 18
A77: 13041318027 | B77: Bluford Unit School District 318 | C77: 13041318027 | D77: 13-041-3180-27_AFR22 Bluford Unit School District 318
A78: 35059005061 | B78: BMP Tri County Special Ed Coop | C78: 35059005061 | D78: 35-059-0050-61_AFR22 BMP Tri County Special Ed Coop
A79: 03003002026 | B79: Bond County CUSD 2 | C79: 03003002026 | D79: 03-003-0020-26_AFR22 Bond County CUSD 2
A80: 03026741045 | B80: Bond Fayette Effingham EFE 410 | C80: 03026741045 | D80: 03-026-7410-45_AFR22 Bond Fayette Effingham EFE 410
A81: 04004000051 | B81: Boone Winnebago Regional Alternative School | C81: 04004000051 | D81: 04-004-0000-51_AFR22 Boone Winnebago Regional Alternative School
A82: 32046053002 | B82: Bourbonnais SD 53 | C82: 32046053002 | D82: 32-046-0530-02_AFR22 Bourbonnais SD 53
A83: 24032075002 | B83: Braceville SD 75 | C83: 24032075002 | D83: 24-032-0750-02_AFR22 Braceville SD 75
A84: 28088001026 | B84: Bradford CUSD 1 | C84: 28088001026 | D84: 28-088-0010-26_AFR22 Bradford CUSD 1
A85: 32046307016 | B85: Bradley Bourbonnais CHSD 307 | C85: 32046307016 | D85: 32-046-3070-16_AFR22 Bradley Bourbonnais CHSD 307
A86: 32046061002 | B86: Bradley SD 61 | C86: 32046061002 | D86: 32-046-0610-02_AFR22 Bradley SD 61
A87: 13014012004 | B87: Breese ESD 12 | C87: 13014012004 | D87: 13-014-0120-04_AFR22 Breese ESD 12
A88: 07016228016 | B88: Bremen CHSD 228 | C88: 07016228016 | D88: 07-016-2280-16_AFR22 Bremen CHSD 228
A89: 48072309026 | B89: Brimfield CUSD 309 | C89: 48072309026 | D89: 48-072-3090-26_AFR22 Brimfield CUSD 309
A90: 06016095002 | B90: Brookfield Lagrange Park SD 95 | C90: 06016095002 | D90: 06-016-0950-02_AFR22 Brookfield Lagrange Park SD 95
A91: 50082188022 | B91: Brooklyn UD 188 | C91: 50082188022 | D91: 50-082-1880-22_AFR22 Brooklyn UD 188
A92: 07016167002 | B92: Brookwood SD 167 | C92: 07016167002 | D92: 07-016-1670-02_AFR22 Brookwood SD 167
A93: 01005001026 | B93: Brown County CUSD 1 | C93: 01005001026 | D93: 01-005-0010-26_AFR22 Brown County CUSD 1
A94: 03026201026 | B94: Brownstown CUSD 201 | C94: 03026201026 | D94: 03-026-2010-26_AFR22 Brownstown CUSD 201
A95: 40007042026 | B95: Brussels CUSD 42 | C95: 40007042026 | D95: 40-007-0420-26_AFR22 Brussels CUSD 42
A96: 21044043003 | B96: Buncombe Cons SD 43 | C96: 21044043003 | D96: 21-044-0430-03_AFR22 Buncombe Cons SD 43
A97: 40056008026 | B97: Bunker Hill CUSD 8 | C97: 40056008026 | D97: 40-056-0080-26_AFR22 Bunker Hill CUSD 8
A98: 07016111002 | B98: Burbank SD 111 | C98: 07016111002 | D98: 07-016-1110-02_AFR22 Burbank SD 111
A99: 28006340026 | B99: Bureau Valley CUSD 340 | C99: 28006340026 | D99: 28-006-3400-26_AFR22 Bureau Valley CUSD 340
A100: 07016154502 | B100: Burnham SD 154-5 | C100: 07016154502 | D100: 07-016-1545-02_AFR22 Burnham SD 154-5
A101: 26062170026 | B101: Bushnell Prairie City CUSD 170 | C101: 26062170026 | D101: 26-062-1700-26_AFR22 Bushnell Prairie City CUSD 170
A102: 19022053002 | B102: Butler SD 53 | C102: 19022053002 | D102: 19-022-0530-02_AFR22 Butler SD 53
A103: 47071226026 | B103: Byron CUSD 226 | C103: 47071226026 | D103: 47-071-2260-26_AFR22 Byron CUSD 226
A104: 50082187026 | B104: Cahokia CUSD 187 | C104: 50082187026 | D104: 50-082-1870-26_AFR22 Cahokia CUSD 187
A105: 30002001022 | B105: Cairo USD 1 | C105: 30002001022 | D105: 30-002-0010-22_AFR22 Cairo USD 1
A106: 40007040026 | B106: Calhoun CUSD 40 | C106: 40007040026 | D106: 40-007-0400-26_AFR22 Calhoun CUSD 40
A107: 07016155002 | B107: Calumet City SD 155 | C107: 07016155002 | D107: 07-016-1550-02_AFR22 Calumet City SD 155
A108: 07016132002 | B108: Calumet Public SD 132 | C108: 07016132002 | D108: 07-016-1320-02_AFR22 Calumet Public SD 132
A109: 28037227026 | B109: Cambridge CUSD 227 | C109: 28037227026 | D109: 28-037-2270-26_AFR22 Cambridge CUSD 227
A110: 26029066025 | B110: Canton Union SD 66 | C110: 26029066025 | D110: 26-029-0660-25_AFR22 Canton Union SD 66
A111: 51084790040 | B111: Capital Area Career Center | C111: 51084790040 | D111: 51-084-7900-40_AFR22 Capital Area Career Center
A112: 49081036002 | B112: Carbon Cliff-Barstow SD 36 | C112: 49081036002 | D112: 49-081-0360-02_AFR22 Carbon Cliff-Barstow SD 36
A113: 30039165016 | B113: Carbondale CHSD 165 | C113: 30039165016 | D113: 30-039-1650-16_AFR22 Carbondale CHSD 165
A114: 30039095002 | B114: Carbondale ESD 95 | C114: 30039095002 | D114: 30-039-0950-02_AFR22 Carbondale ESD 95
A115: 08089723045 | B115: Career & Tech Educ Consortium | C115: 08089723045 | D115: 08-089-7230-45_AFR22 Career & Tech Educ Consortium
A116: 45000000040 | B116: Career Center of Southern IL | C116: 45000000040 | D116: 45-000-0000-40_AFR22 Career Center of Southern IL
A117: 07016228046 | B117: Career Development System | C117: 07016228046 | D117: 07-016-2280-46_AFR22 Career Development System
A118: 04000000046 | B118: Career Educ Assoc of N Central IL | C118: 04000000046 | D118: 04-000-0000-46_AFR22 Career Educ Assoc of N Central IL
A119: 07016790045 | B119: Career Preparation Network | C119: 07016790045 | D119: 07-016-7900-45_AFR22 Career Preparation Network
A120: 40056001026 | B120: Carlinville CUSD 1 | C120: 40056001026 | D120: 40-056-0010-26_AFR22 Carlinville CUSD 1
A121: 13014001026 | B121: Carlyle CUSD 1 | C121: 13014001026 | D121: 13-014-0010-26_AFR22 Carlyle CUSD 1
A122: 20097005026 | B122: Carmi-White County CUSD 5 | C122: 20097005026 | D122: 20-097-0050-26_AFR22 Carmi-White County CUSD 5
A123: 20083002026 | B123: Carrier Mills-Stonefort CUSD 2 | C123: 20083002026 | D123: 20-083-0020-26_AFR22 Carrier Mills-Stonefort CUSD 2
A124: 40031001026 | B124: Carrollton CUSD 1 | C124: 40031001026 | D124: 40-031-0010-26_AFR22 Carrollton CUSD 1
A125: 21100005026 | B125: Carterville CUSD 5 | C125: 21100005026 | D125: 21-100-0050-26_AFR22 Carterville CUSD 5
A126: 26034317004 | B126: Carthage ESD 317 | C126: 26034317004 | D126: 26-034-3170-04_AFR22 Carthage ESD 317
A127: 44063026004 | B127: Cary CCSD 26 | C127: 44063026004 | D127: 44-063-0260-04_AFR22 Cary CCSD 26
A128: 11012004C26 | B128: Casey-Westfield CUSD 4C | C128: 11012004C26 | D128: 11-012-004C-26_AFR22 Casey-Westfield CUSD 4C
A129: 19022063002 | B129: Cass SD 63 | C129: 19022063002 | D129: 19-022-0630-02_AFR22 Cass SD 63
A130: 07016146004 | B130: CCSD 146 | C130: 07016146004 | D130: 07-016-1460-04_AFR22 CCSD 146
A131: 07016168004 | B131: CCSD 168 | C131: 07016168004 | D131: 07-016-1680-04_AFR22 CCSD 168
A132: 19022180004 | B132: CCSD 180 | C132: 19022180004 | D132: 19-022-1800-04_AFR22 CCSD 180
A133: 30073204004 | B133: CCSD 204 | C133: 30073204004 | D133: 30-073-2040-04_AFR22 CCSD 204
A134: 05016062004 | B134: CCSD 62 | C134: 05016062004 | D134: 05-016-0620-04_AFR22 CCSD 62
A135: 19022089004 | B135: CCSD 89 | C135: 19022089004 | D135: 19-022-0890-04_AFR22 CCSD 89
A136: 19022093004 | B136: CCSD 93 | C136: 19022093004 | D136: 19-022-0930-04_AFR22 CCSD 93
A137: 19022066002 | B137: Center Cass SD 66 | C137: 19022066002 | D137: 19-022-0660-02_AFR22 Center Cass SD 66
A138: 11087021026 | B138: Central A & M CUD 21 | C138: 11087021026 | D138: 11-087-0210-26_AFR22 Central A & M CUD 21
A139: 13014071016 | B139: Central CHSD 71 | C139: 13014071016 | D139: 13-014-0710-16_AFR22 Central CHSD 71
A140: 13058133002 | B140: Central City SD 133 | C140: 13058133002 | D140: 13-058-1330-02_AFR22 Central City SD 133
A141: 01001003026 | B141: Central CUSD 3 | C141: 01001003026 | D141: 01-001-0030-26_AFR22 Central CUSD 3
A142: 31045301026 | B142: Central CUSD 301 | C142: 31045301026 | D142: 31-045-3010-26_AFR22 Central CUSD 301
A143: 32038004026 | B143: Central CUSD 4 | C143: 32038004026 | D143: 32-038-0040-26_AFR22 Central CUSD 4
A144: 53102721045 | B144: Central IL Voc Ed Coop | C144: 53102721045 | D144: 53-102-7210-45_AFR22 Central IL Voc Ed Coop
A145: 40000000046 | B145: Central Ill Rural Region | C145: 40000000046 | D145: 40-000-0000-46_AFR22 Central Ill Rural Region
A146: 50082104002 | B146: Central SD 104 | C146: 50082104002 | D146: 50-082-1040-02_AFR22 Central SD 104
A147: 53090051002 | B147: Central SD 51 | C147: 53090051002 | D147: 53-090-0510-02_AFR22 Central SD 51
A148: 07016110002 | B148: Central Stickney SD 110 | C148: 07016110002 | D148: 07-016-1100-02_AFR22 Central Stickney SD 110
A149: 13058200017 | B149: Centralia HSD 200 | C149: 13058200017 | D149: 13-058-2000-17_AFR22 Centralia HSD 200
A150: 13058135002 | B150: Centralia SD 135 | C150: 13058135002 | D150: 13-058-1350-02_AFR22 Centralia SD 135
A151: 30077100026 | B151: Century CUSD 100 | C151: 30077100026 | D151: 30-077-1000-26_AFR22 Century CUSD 100
A152: 39074100026 | B152: Cerro Gordo CUSD 100 | C152: 39074100026 | D152: 39-074-1000-26_AFR22 Cerro Gordo CUSD 100
A153: 08008399026 | B153: Chadwick-Milledgeville CUSD 399 | C153: 08008399026 | D153: 08-008-3990-26_AFR22 Chadwick-Milledgeville CUSD 399
A154: 09010004026 | B154: Champaign CUSD 4 | C154: 09010004026 | D154: 09-010-0040-26_AFR22 Champaign CUSD 4
A155: 56099088002 | B155: Chaney-Monge SD 88 | C155: 56099088002 | D155: 56-099-0880-02_AFR22 Chaney-Monge SD 88
A156: 56099017002 | B156: Channahon SD 17 | C156: 56099017002 | D156: 56-099-0170-02_AFR22 Channahon SD 17
A157: 11015001026 | B157: Charleston CUSD 1 | C157: 11015001026 | D157: 11-015-0010-26_AFR22 Charleston CUSD 1
A158: 45079139026 | B158: Chester CUSD 139 | C158: 45079139026 | D158: 45-079-1390-26_AFR22 Chester CUSD 139
A159: 45079122019 | B159: Chester N HSD 122 | C159: 45079122019 | D159: 45-079-1220-19_AFR22 Chester N HSD 122
A160: 17054061004 | B160: Chester-East Lincoln CCSD 61 | C160: 17054061004 | D160: 17-054-0610-04_AFR22 Chester-East Lincoln CCSD 61
A161: 07016170002 | B161: Chicago Heights SD 170 | C161: 07016170002 | D161: 07-016-1700-02_AFR22 Chicago Heights SD 170
A162: 07016127502 | B162: Chicago Ridge SD 127-5 | C162: 07016127502 | D162: 07-016-1275-02_AFR22 Chicago Ridge SD 127-5
A163: 21028099026 | B163: Christopher USD 99 | C163: 21028099026 | D163: 21-028-0990-26_AFR22 Christopher USD 99
A164: 34049117016 | B164: CHSD 117 | C164: 34049117016 | D164: 34-049-1170-16_AFR22 CHSD 117
A165: 34049128016 | B165: CHSD 128 | C165: 34049128016 | D165: 34-049-1280-16_AFR22 CHSD 128
A166: 44063155016 | B166: CHSD 155 | C166: 44063155016 | D166: 44-063-1550-16_AFR22 CHSD 155
A167: 07016218016 | B167: CHSD 218 | C167: 07016218016 | D167: 07-016-2180-16_AFR22 CHSD 218
A168: 19022094016 | B168: CHSD 94 | C168: 19022094016 | D168: 19-022-0940-16_AFR22 CHSD 94
A169: 19022099016 | B169: CHSD 99 | C169: 19022099016 | D169: 19-022-0990-16_AFR22 CHSD 99
A170: 06016099002 | B170: Cicero SD 99 | C170: 06016099002 | D170: 06-016-0990-02_AFR22 Cicero SD 99
A171: 32038006026 | B171: Cissna Park CUSD 6 | C171: 32038006026 | D171: 32-038-0060-26_AFR22 Cissna Park CUSD 6
A172: 15016299025 | B172: City of Chicago SD 299 | C172: 15016299025 | D172: 15-016-2990-25_AFR22 City of Chicago SD 299
A173: 12013010026 | B173: Clay City CUSD 10 | C173: 12013010026 | D173: 12-013-0100-26_AFR22 Clay City CUSD 10
A174: 12013035046 | B174: Clay/Jasper/Richland/N Wayne RDS | C174: 12013035046 | D174: 12-013-0350-46_AFR22 Clay/Jasper/Richland/N Wayne RDS
A175: 17020015026 | B175: Clinton CUSD 15 | C175: 17020015026 | D175: 17-020-0150-26_AFR22 Clinton CUSD 15
A176: 24032001026 | B176: Coal City CUSD 1 | C176: 24032001026 | D176: 24-032-0010-26_AFR22 Coal City CUSD 1
A177: 30091017022 | B177: Cobden SUD 17 | C177: 30091017022 | D177: 30-091-0170-22_AFR22 Cobden SUD 17
A178: 41057010041 | B178: Collinsville Area Career Ctr | C178: 41057010041 | D178: 41-057-0100-41_AFR22 Collinsville Area Career Ctr
A179: 41057010026 | B179: Collinsville CUSD 10 | C179: 41057010026 | D179: 41-057-0100-26_AFR22 Collinsville CUSD 10
A180: 28037190002 | B180: Colona SD 190 | C180: 28037190002 | D180: 28-037-1900-02_AFR22 Colona SD 190
A181: 45067004026 | B181: Columbia CUSD 4 | C181: 45067004026 | D181: 45-067-0040-26_AFR22 Columbia CUSD 4
A182: 05016059004 | B182: Comm Cons SD 59 | C182: 05016059004 | D182: 05-016-0590-04_AFR22 Comm Cons SD 59
A183: 07016230013 | B183: Cons HSD 230 | C183: 07016230013 | D183: 07-016-2300-13_AFR22 Cons HSD 230
A184: 07016130002 | B184: Cook County SD 130 | C184: 07016130002 | D184: 07-016-1300-02_AFR22 Cook County SD 130
A185: 19022015061 | B185: Coop Assoc for Spec Educ | C185: 19022015061 | D185: 19-022-0150-61_AFR22 Coop Assoc for Spec Educ
A186: 17053426004 | B186: Cornell CCSD 426 | C186: 17053426004 | D186: 17-053-4260-04_AFR22 Cornell CCSD 426
A187: 45079001022 | B187: Coulterville USD 1 | C187: 45079001022 | D187: 45-079-0010-22_AFR22 Coulterville USD 1
A188: 07016160002 | B188: Country Club Hills SD 160 | C188: 07016160002 | D188: 07-016-1600-02_AFR22 Country Club Hills SD 160
A189: 30091043004 | B189: County of Union Sch Dist No43 | C189: 30091043004 | D189: 30-091-0430-04_AFR22 County of Union Sch Dist No43
A190: 04101320026 | B190: County of Winnebago SD 320 | C190: 04101320026 | D190: 04-101-3200-26_AFR22 County of Winnebago SD 320
A191: 53102122017 | B191: County of Woodford School | C191: 53102122017 | D191: 53-102-1220-17_AFR22 County of Woodford School
A192: 11087003A26 | B192: Cowden-Herrick CUSD 3A | C192: 11087003A26 | D192: 11-087-003A-26_AFR22 Cowden-Herrick CUSD 3A
A193: 21100003026 | B193: Crab Orchard CUSD 3 | C193: 21100003026 | D193: 21-100-0030-26_AFR22 Crab Orchard CUSD 3
A194: 32038249026 | B194: Crescent Iroquois CUSD 249 | C194: 32038249026 | D194: 32-038-2490-26_AFR22 Crescent Iroquois CUSD 249
A195: 47071161004 | B195: Creston CCSD 161 | C195: 47071161004 | D195: 47-071-1610-04_AFR22 Creston CCSD 161
A196: 56099201U26 | B196: Crete Monee CUSD 201U | C196: 56099201U26 | D196: 56-099-201U-26_AFR22 Crete Monee CUSD 201U
A197: 53090076002 | B197: Creve Coeur SD 76 | C197: 53090076002 | D197: 53-090-0760-02_AFR22 Creve Coeur SD 76
A198: 44063047004 | B198: Crystal Lake CCSD 47 | C198: 44063047004 | D198: 44-063-0470-04_AFR22 Crystal Lake CCSD 47
A199: 11018077026 | B199: Cumberland CUSD 77 | C199: 11018077026 | D199: 11-018-0770-26_AFR22 Cumberland CUSD 77
A200: 19022200026 | B200: CUSD 200 | C200: 19022200026 | D200: 19-022-2000-26_AFR22 CUSD 200
... 793 more rows
